{"text_format":"1","workbook":"xlsx","n_sheets":11,"sheets":["Instructions","Inputs","Input Summary","Results Table","Results Graphics","Appendix - Default Values","Appendix - Electric DF Values","Results Graphs","Original Calculator","Appendix - Gas DF Values","Appendix - Economic Model Data"],"not_rendered":{"charts":11,"images":0,"macros":1,"external_links":1,"defined_names":15,"comments":4,"pivot_tables":0},"unopened":[],"bounds":{"document_bytes":16777216,"sheet_cells":100000,"rows_first":2000,"rows_last":500,"rows_between":2000,"halvings":0,"cell_chars":16384,"cell_head_chars":4096},"cells_cut":0,"cells_raw":0,"read":"whole","date_system":"1900"}

{"sheet":"Instructions","index":0,"n_rows":37,"n_cols":6,"rows_kept":37,"cut":false,"hidden":false,"merged":[[36,0,36,12],[33,0,33,4],[2,0,2,12],[3,0,21,12],[0,0,0,12],[22,0,22,12],[30,0,30,12],[31,0,31,4],[32,0,32,4],[28,0,28,12],[29,0,29,12],[24,1,24,12],[23,1,23,12],[35,0,35,4],[35,5,35,12],[25,1,25,12],[26,1,26,12],[27,0,27,12],[34,0,34,4],[32,5,32,12],[31,5,31,12],[33,5,33,12],[34,5,34,12]]}
["Commercial Battery-Powered Electric Lawn and Garden Equipment Calculator"]
["Calculator last updated:","2023-09-12"]
["Background"]
["Statewide contract FAC116: Lawns & Grounds, Equipment, Parts and Services includes environmentally prefererable products under Category 8: Commercial Grade Battery-Electric Lawn Equipment. As Massachusetts advances the use of clean, renewable sources for electricity generation, converting from gas to electric power for landscaping can provide numerous benefits, including those outlined below:                                                                     \nEnvironmental benefits:\n• Helping the Commonwealth meet its environmental goals in greenhouse gas emissions reduction, clean air, and toxics use reduction\n• Reduction in toxic exposure and criteria air pollutants (particulate matter, sulfur dioxide, carbon monoxide)                                                                                                                                                                                                                                                             • Reduction in hazardous waste and potential spills                                                                                                                                                                                                                                                      • Reduction in noise pollution and nuisance complaints\n• Reduction in wildlife and habitat exposure to toxic emissions, excessive noise, and ground-sourced particulates\nHealth benefits:\n• Reduction in worker exposures to toxic emissions, excessive noise, excessive vibrations, and ground-sourced particulates\n• Reduction in public exposure to toxic emissions, excessive noise, and ground-sourced particulates\nCost benefits:\n• Avoided fuel costs\n• Lower maintenance costs\n• The possibility for extended work hour options and holiday operation due to lower noise levels\n\nThis calculator provides economic and environmental models for users to better understand the total cost of ownership of battery-powered landscaping equipment compared to gas alternatives, as well as the estimated greenhouse gas emissions savings associated with converting from gas to electric."]
[]
[]
[]
[]
[]
[]
[]
[]
[]
[]
[]
[]
[]
[]
[]
[]
[]
[]
["Calculator Instructions"]
["Tab","Description"]
["Inputs","To use this calculator, click the \"Inputs\" tab and follow the steps outlined on that tab and listed below.\nStep 1: Select the type of equipment you are comparing.\nStep 2: Input data for your battery-powered equipment wherever you see red text. Default values are provided in Column D. If inputting your own values, select \"No\" In Column E and input your value in Column F.\nStep 3: Input data for your gas-powered equipment wherever you see red text. Default values are provided in Column N. If inputting your own values, select \"No\" in Column O and input your value in Column G."]
["Results Table","The Results Table tab shows a simple table of upfront costs of gas vs electric equipment, annual and lifetime costs, and annual and lfietime GHG emissions. (Note: Lifetime is based on length of warranty period on Input tab)"]
["Results Graphics","The Results Graphics tab shows several graphs based on the Results Table. These are formatted in such a way to allow for easy printing, exporting to PDF, or copying/pasting into presentations."]
["This tool is provided to generate estimates only, the Commonwealth makes no guarantees about equipment savings or years of equipment performance."]
["A Note on Default Values"]
["Please note that the Leading by Example program determined default values based on high-level market research. LBE is always looking to refine this calculator with the latest product costs and specifications. Please contact Ryan.Kingston@mass.gov or Julia.Wolfe@mass.gov if you have any feedback, suggestions, or questions on this tool."]
["More Information & Links"]
["FAC116 Contract User Guide",null,null,null,null,"https://www.mass.gov/service-details/facilities-maintenance-repair-and-services"]
["Environmentally Preferable Products Program Website",null,null,null,null,"http://www.mass.gov/epp"]
["Leading by Example Sustainable Landscaping Webpage",null,null,null,null,"https://www.mass.gov/info-details/sustainable-landscaping-at-state-facilities"]
["Contact Julia Wolfe, Director of Environmental Purchasing (OSD) for more information on statewide contracts and OSD's Environmentally Preferable Products Program:",null,null,null,null,"Julia.Wolfe@mass.gov"]
["Contact Ryan Kingston, LBE Sustainability Project Coordinator, for more information on sustainable landscaping efforts and practices for state facilities:",null,null,null,null,"Ryan.Kingston@mass.gov"]
["This calculator was developed in collaboration between Leading by Example, the Operational Services Division, and Quiet Communities. \nThank you to Morgan Bowler, 2023 LBE Summer Intern, for conducting research to provide default values for this tool."]

{"sheet":"Inputs","index":1,"n_rows":28,"n_cols":18,"rows_kept":28,"cut":false,"hidden":false,"merged":[[1,1,1,16],[0,1,0,16],[4,3,4,5],[4,13,4,15],[5,2,5,3],[5,12,5,13],[6,12,6,15],[6,2,6,5],[17,12,17,15],[13,7,13,8],[10,3,10,4],[12,3,12,4],[10,13,10,14],[15,7,16,9],[8,12,9,12],[8,13,9,13],[8,14,9,14],[14,2,14,5],[17,2,17,5],[11,3,11,4],[11,13,11,14],[14,12,14,15],[14,17,17,18],[8,8,12,9],[12,12,13,15],[24,3,24,4],[24,13,24,14],[19,12,19,15],[23,12,23,15],[19,2,19,5],[23,2,23,5],[20,3,20,4],[21,3,21,4],[22,3,22,4]]}
[null,"Economic and Environmental Calculator Inputs"]
[null,"This tool is provided to generate estimates only, the Commonwealth makes no guarantees about equipment savings or years of equipment performance"]
[null,null,null,null,null,null,null,"Step 1","Select Equipment","Riding Zero-Turn Mower 42\""]
[]
[null,null,"Step 2","Select \"Yes\" for each area to use default values for battery-powered equipment option. \nSelect \"No\" to input your own values in Column F.",null,null,null,null,null,null,null,null,"Step 3","Select \"Yes\" for each area to use default values for commercial gasoline equipment option. \nSelect \"No\" to input your own values in Column P."]
[]
[null,null,"Commercial Battery-Powered",null,null,null,null,null,null,null,null,null,"ICE"]
[null,null,null,"Default Data","Use Default Data?","Input (if Default not used)",null,null,null,null,null,null,null,"Default Data","Use Default Data?","Input (if Default not used)"]
[null,null,"Price of Equipment",{"$f":"IFERROR(VLOOKUP(J3,'Appendix - Default Values'!A:AB,2,FALSE),\"\")","v":5899},"Yes",null,null,null,"NOTE: Default values are based on average costs of equipment on and off statewide contracts. Agencies are encouraged to use actual values wherever possible.",null,null,null,"Price of equipment",{"$f":"IFERROR(VLOOKUP(J3,'Appendix - Default Values'!A:AB,13,FALSE),\"\")","v":3900},"Yes"]
[null,null,"Mass Save Rebate*",{"$f":"IFERROR(VLOOKUP(J3,'Appendix - Default Values'!A:AB,4,FALSE),\"\")","v":75},"Yes"]
[null,null,"Prompt Pay Discount","use drop down --->",null,0,null,null,null,null,null,null,"Prompt pay discount (PPD)","use drop down --->",null,0]
[null,null,"Add-ons","Include total cost of any additional features, such as extra chargers, lights, solar canopy, etc",null,null,null,null,null,null,null,null,"Add-ons","Include total cost of any additional features, such as extra lights, extra tanks, etc"]
[null,null,"Additional Number of Batteries to be Purchased","use drop down --->",null,0]
[null,null,"Cost per Additional Battery",{"$f":"IFERROR(VLOOKUP(J3,'Appendix - Default Values'!A:AB,3,FALSE),\"\")","v":0},"Yes"]
[null,null,"Equipment Specifications",null,null,null,null,null,null,null,null,null,"Equipment Specifications",null,null,null,null,"Don't know your equipment's horsepower but know its engine size, often show as \"CC\"? To calculate average horsepower, divide the engine size (CC) by 15.5."]
[null,null,"Battery size (kWh)",{"$f":"IFERROR(VLOOKUP(J3,'Appendix - Default Values'!A:AB,7,FALSE),\"\")","v":3.36},"Yes",null,null,"Don't know kWh but know amp hours (Ah) and Volts (V)? Multiply Ah by V and divide by 1000 to estimate kWh.",null,null,null,null,"Horsepower",{"$f":"IFERROR(VLOOKUP(J3,'Appendix - Default Values'!A:AB,14,FALSE),\"\")","v":23},"Yes"]
[null,null,null,null,null,null,null,null,null,null,null,null,"Gallons of gasoline per hour",{"$f":"IFERROR(VLOOKUP(J3,'Appendix - Default Values'!A:AB,15,FALSE),\"\")","v":2},"Yes"]
[null,null,"Electricity Information",null,null,null,null,null,null,null,null,null,"Fuel Information"]
[null,null,"Electricity cost ($/per kWh)",{"$f":"'Appendix - Default Values'!B96","v":0.1603},"Yes",null,null,null,null,null,null,null,"Price per gallon of gas",{"$f":"'Appendix - Default Values'!B99","v":3.38},"Yes"]
[null,null,"Hours of Operation",null,null,null,null,null,null,null,null,null,"Hours of Operation"]
[null,null,"Hours per day","use drop down --->",null,8,null,null,null,null,null,null,"Hours per day",{"$f":"F21","v":8},"Yes"]
[null,null,"Days per month","use drop down --->",null,15,null,null,null,null,null,null,"Days per month",{"$f":"F22","v":15},"Yes"]
[null,null,"Months per year","use drop down --->",null,6,null,null,null,null,null,null,"Months per year",{"$f":"F23","v":6},"Yes"]
[null,null,"Warranty",null,null,null,null,null,null,null,null,null,"Warranty"]
[null,null,"Length of warranty (years)","use drop down --->",null,3,null,null,null,null,null,null,"Length of warranty (years)","use drop down --->",null,3]
[]
[]
[null,null,"*Mass Save offers rebates based on equipment type and battery size. See Mass Save website for information and requirements."]

{"sheet":"Input Summary","index":2,"n_rows":21,"n_cols":6,"rows_kept":21,"cut":false,"hidden":false,"merged":[[14,1,14,2],[19,1,19,2],[1,1,1,2],[1,4,1,5],[3,4,3,5],[8,1,8,2],[12,1,12,2]]}
[]
[null,"BPLE",null,null,"ICE"]
[null,"Price of Equipment",{"$f":"IF(Inputs!E9=\"Yes\",Inputs!D9,Inputs!F9)","v":5899},null,"Price of equipment",{"$f":"IF(Inputs!O9=\"Yes\",Inputs!N9,Inputs!P9)","v":3900}]
[null,"Total Battery Cost",{"$f":"(IF(Inputs!E14=\"Yes\",Inputs!D14,Inputs!F14))*Inputs!F13","v":0}]
[null,"Sub total",{"$f":"C3+C4","v":5899},null,"Sub total",{"$f":"F3","v":3900}]
[null,"Prompt Pay Discount",{"$f":"Inputs!F11","v":0},null,"Prompt pay discount (PPD)",{"$f":"Inputs!P11","v":0}]
[null,"Rebate",{"$f":"IF(Inputs!E10=\"Yes\",Inputs!D10,Inputs!F10)","v":75}]
[null,"Total Cost with PPD and Rebate",{"$f":"C5-(C5*C6)-C7","v":5824},null,"Total Cost with PPD",{"$f":"F5-(F5*F6)","v":3900}]
[null,"Equipment Specifications",null,null,"Equipment Specifications"]
[null,"Battery size (kWh)",{"$f":"IF(Inputs!E16=\"Yes\",Inputs!D16,Inputs!F16)","v":3.36},null,"Horsepower",{"$f":"IF(Inputs!O16=\"Yes\",Inputs!N16,Inputs!P16)","v":23}]
[null,"Efficiency/Charging loss",0.1,null,"Gallons of gasoline per hour",{"$f":"IF(Inputs!O17=\"Yes\",Inputs!N17,Inputs!P17)","v":2}]
[null,"kWh used per hour",{"$f":"C10+(C10*C11)","v":3.6959999999999997}]
[null,"Electricity Information",null,null,"Fuel Information"]
[null,"Electricity cost ($/per kWh)",{"$f":"IF(Inputs!E19=\"Yes\",Inputs!D19,Inputs!F19)","v":0.1603},null,"Price per gallon of gas",{"$f":"IF(Inputs!O19=\"Yes\",Inputs!N19,Inputs!P19)","v":3.38}]
[null,"Hours of Operation",null,null,"Hours of Operation"]
[null,"Hours per day",{"$f":"Inputs!F21","v":8},null,"Hours per day",{"$f":"IF(Inputs!O21=\"Yes\",Inputs!N21,Inputs!P21)","v":8}]
[null,"Days per month",{"$f":"Inputs!F22","v":15},null,"Days per month",{"$f":"IF(Inputs!O22=\"Yes\",Inputs!N22,Inputs!P22)","v":15}]
[null,"Months per year",{"$f":"Inputs!F23","v":6},null,"Months per year",{"$f":"IF(Inputs!O23=\"Yes\",Inputs!N23,Inputs!P23)","v":6}]
[null,"Hours per Year",{"$f":"C16*C17*C18","v":720},null,"Hours per Year",{"$f":"F16*F17*F18","v":720}]
[null,"Warranty",null,null,"Warranty"]
[null,"Length of warranty (years)",{"$f":"Inputs!F25","v":3},null,"Length of warranty (years)",{"$f":"Inputs!P25","v":3}]

{"sheet":"Results Table","index":3,"n_rows":18,"n_cols":11,"rows_kept":18,"cut":false,"hidden":false,"merged":[[5,1,7,1],[5,10,7,10],[5,5,7,5],[12,9,12,10],[12,5,12,7],[12,1,12,3],[0,1,0,10],[9,1,11,1],[9,2,11,2],[9,3,11,3],[9,5,11,5],[9,6,11,6],[9,7,11,7],[4,1,4,2],[3,1,3,3],[3,5,3,7],[4,5,4,6],[5,9,7,9],[3,9,3,10]]}
[null,"Results Table"]
[]
[]
[null,"ICE Equipment Costs",null,null,null,"BPLE Costs",null,null,null,"Savings by Converting to BPLE"]
[null,"Initial Equipment Cost\n(Including any discounts and rebates included in Input)",null,{"$f":"IFERROR('Input Summary'!F8,\"-\")","v":3900},null,"Initial Equipment Cost\n(Including any discounts and rebates included in Input)",null,{"$f":"IFERROR('Input Summary'!C8,\"-\")","v":5824},null,"Upfront Equipment Cost Savings",{"$f":"IFERROR(D5-H5,\"-\")","v":-1924}]
[null,"Hourly Cost","Hourly Fuel Cost",{"$f":"IFERROR('Input Summary'!F11*'Input Summary'!F14,\"-\")","v":6.76},null,"Hourly Costs","Hourly Fuel Cost",{"$f":"IFERROR('Input Summary'!C12*'Input Summary'!C14,\"-\")","v":0.59246879999999991},null,"Hourly Cost Savings",{"$f":"IFERROR(D8-H8,\"-\")","v":7.2988511300699308}]
[null,null,"Hourly Maintenance Cost*",{"$f":"IFERROR('Appendix - Economic Model Data'!I18,\"-\")","v":1.737089160839161},null,null,"Hourly Maintenance Cost*",{"$f":"IFERROR('Appendix - Economic Model Data'!B18,\"-\")","v":0.60576923076923084}]
[null,null,"Total Hourly Cost",{"$f":"IFERROR(+D6+D7,\"-\")","v":8.4970891608391614},null,null,"Total Hourly Cost",{"$f":"IFERROR((+H6+H7),\"-\")","v":1.1982380307692306}]
[null,"Annual Cost","Annual operating costs",{"$f":"IFERROR(+D8*'Input Summary'!F19,\"-\")","v":6117.9041958041962},null,"Annual Cost","Annual operating costs",{"$f":"IFERROR(+H8*'Input Summary'!C19,\"-\")","v":862.73138215384608},null,"Annual Cost Savings",{"$f":"IFERROR(D9-H9,\"-\")","v":5255.1728136503498}]
[null,"Lifetime","Total operating costs over warranty period",{"$f":"IFERROR(D9*'Input Summary'!F21,\"-\")","v":18353.712587412589},null,"Lifetime","Total operating costs over warranty period",{"$f":"IFERROR(H9*'Input Summary'!C21,\"-\")","v":2588.1941464615384},null,"Total Operating Cost Savings over Warranty Period",{"$f":"IFERROR(D10-H10,\"-\")","v":15765.518440951051}]
[null,null,null,null,null,null,null,null,null,"Percent Annual Cost Reduction",{"$f":"IFERROR(1-(H9/D9),\"-\")","v":0.85898252824136612}]
[null,null,null,null,null,null,null,null,null,"Payback of Initial Equipment Cost",{"$f":"IFERROR(IF(SIGN(Year1Cost)=1,\"Year 1\",IF(SIGN(Year2Cost)=1,\"Year 2\",IF(SIGN(Year3Cost)=1,\"Year 3\",IF(SIGN(Year4Cost)=1,\"Year 4\",IF(SIGN(Year5Cost)=1,\"Year 5\",IF(SIGN(Year6Cost)=1,\"Year 6\", IF(SIGN(Year7Cost)=1,\"Year 7\", IF(SIGN(Year8Cost)=1,\"Year 8\",\"After Year 8\")))))))),\"-\")","v":"Year 1"}]
[null,"ENVIRONMENTAL RESULTS",null,null,null,"ENVIRONMENTAL RESULTS",null,null,null,"ENVIRONMENTAL RESULTS"]
[null,"Annual","Annual Carbon Dioxide (CO2) Emissions (lbs)",{"$f":"IFERROR('Appendix - Economic Model Data'!E124,\"-\")","v":38424.340895154179},null,"Annual","Annual Carbon Dioxide (CO2) Emissions (lbs)",{"$f":"IFERROR('Appendix - Economic Model Data'!E127,\"-\")","v":1493.3412765957435},null,"Annual CO2 Reduction (lbs)",{"$f":"IFERROR(D14-H14,\"-\")","v":36930.999618558439}]
[null,"Lifetime**","CO2 Emissions over warranty period (lbs)",{"$f":"IFERROR(D14*Inputs!P25,\"-\")","v":115273.02268546254},null,"Lifetime**","CO2 Emissions over warranty period (lbs)",{"$f":"IFERROR(H14*Inputs!F25,\"-\")","v":4480.0238297872302},null,"CO2 Reduction over warranty period (lbs)",{"$f":"IFERROR(D15-H15,\"-\")","v":110792.99885567531}]
[]
[null,"*Maintenance includes blade sharpening and replacement oil changes, parts, filters, belts, labor. For BPLE, this only includes blade sharpening and replacement."]
[null,"**For the purposes of analysis, the warranty period is considered the 'lifetime.' However, equipment is likely to be used for a much longer period."]

{"sheet":"Results Graphics","index":4,"n_rows":61,"n_cols":11,"rows_kept":61,"cut":false,"hidden":false,"merged":[[60,1,60,2],[57,1,57,2],[56,1,56,9],[2,1,3,10],[41,1,42,10],[44,1,44,2],[45,1,46,2],[47,1,47,2],[5,1,8,3],[9,2,9,3],[10,2,10,3],[11,2,11,3],[12,2,12,3],[13,2,13,3],[14,2,14,3],[15,2,15,3],[0,1,0,10],[45,3,46,3],[20,1,20,10],[58,1,58,2],[59,1,59,2],[16,2,16,3],[17,2,17,3],[18,2,18,3]]}
[null,"Results Graphics"]
[]
[null,"ICE to BPLE: Cost Savings"]
[]
[]
[null,"Estimated Battery-Powered Electric Equipment Cummulative Cost Benefit"]
[]
[]
[]
[null,{"$f":"'Appendix - Economic Model Data'!B43","v":"Year 1"},{"$f":"'Appendix - Economic Model Data'!C43","v":3331.1728136503498}]
[null,{"$f":"'Appendix - Economic Model Data'!B44","v":"Year 2"},{"$f":"'Appendix - Economic Model Data'!C44","v":8586.3456273006996}]
[null,{"$f":"'Appendix - Economic Model Data'!B45","v":"Year 3"},{"$f":"'Appendix - Economic Model Data'!C45","v":13841.518440951049}]
[null,{"$f":"'Appendix - Economic Model Data'!B46","v":"Year 4"},{"$f":"'Appendix - Economic Model Data'!C46","v":19096.691254601399}]
[null,{"$f":"'Appendix - Economic Model Data'!B47","v":"Year 5"},{"$f":"'Appendix - Economic Model Data'!C47","v":24351.864068251743}]
[null,{"$f":"'Appendix - Economic Model Data'!B48","v":"Year 6"},{"$f":"'Appendix - Economic Model Data'!C48","v":29607.036881902091}]
[null,{"$f":"'Appendix - Economic Model Data'!B49","v":"Year 7"},{"$f":"'Appendix - Economic Model Data'!C49","v":34862.209695552439}]
[null,{"$f":"'Appendix - Economic Model Data'!B50","v":"Year 8"},{"$f":"'Appendix - Economic Model Data'!C50","v":40117.382509202784}]
[null,{"$f":"'Appendix - Economic Model Data'!B51","v":"Year 9"},{"$f":"'Appendix - Economic Model Data'!C51","v":45372.555322853128}]
[null,{"$f":"'Appendix - Economic Model Data'!B52","v":"Year 10"},{"$f":"'Appendix - Economic Model Data'!C52","v":50627.728136503472}]
[]
[null,"Cumulative Costs: Commercial Gas vs BPLE"]
[null,null,"Capital Cost","Year 1","Year 2","Year 3","Year 4","Year 5","Year 6","Year 7","Year 8 "]
[null,"ICE",{"$f":"'Results Table'!D5","v":3900},{"$f":"IFERROR($C$23+'Results Table'!D9,\"-\")","v":10017.904195804196},{"$f":"IFERROR($C$23+('Results Table'!D9*2),\"-\")","v":16135.808391608392},{"$f":"IFERROR($C$23+('Results Table'!D9*3),\"-\")","v":22253.712587412589},{"$f":"IFERROR($C$23+('Results Table'!D9*4),\"-\")","v":28371.616783216785},{"$f":"IFERROR($C$23+('Results Table'!D9*5),\"-\")","v":34489.520979020977},{"$f":"IFERROR($C$23+('Results Table'!D9*6),\"-\")","v":40607.425174825177},{"$f":"IFERROR($C$23+('Results Table'!D9*7),\"-\")","v":46725.329370629377},{"$f":"IFERROR($C$23+('Results Table'!D9*8),\"-\")","v":52843.23356643357}]
[null,"BPLE",{"$f":"'Results Table'!H5","v":5824},{"$f":"IFERROR($C$24+'Results Table'!H9,\"-\")","v":6686.7313821538464},{"$f":"IFERROR($C$24+('Results Table'!H9*2),\"-\")","v":7549.4627643076919},{"$f":"IFERROR($C$24+('Results Table'!H9*3),\"-\")","v":8412.1941464615375},{"$f":"IFERROR($C$24+('Results Table'!H9*4),\"-\")","v":9274.9255286153839},{"$f":"IFERROR($C$24+('Results Table'!H9*5),\"-\")","v":10137.65691076923},{"$f":"IFERROR($C$24+('Results Table'!H9*6),\"-\")","v":11000.388292923077},{"$f":"IFERROR($C$24+('Results Table'!H9*7),\"-\")","v":11863.119675076923},{"$f":"IFERROR($C$24+('Results Table'!H9*8),\"-\")","v":12725.851057230768}]
[null,"Net Savings",{"$f":"C23-C24","v":-1924},{"$f":"D23-D24","v":3331.1728136503498},{"$f":"E23-E24","v":8586.3456273006996},{"$f":"F23-F24","v":13841.518440951051},{"$f":"G23-G24","v":19096.691254601399},{"$f":"H23-H24","v":24351.864068251747},{"$f":"I23-I24","v":29607.036881902102},{"$f":"J23-J24","v":34862.209695552454},{"$f":"K23-K24","v":40117.382509202798}]
[]
[]
[]
[]
[]
[]
[]
[]
[]
[]
[]
[]
[]
[]
[]
[]
[null,"ICE to BPLE: GHG Reductions"]
[]
[]
[null,"Estimated Annual GHG (CO2) Reduction %",null,{"$f":"'Results Table'!K14/'Results Table'!D14","v":0.96113553956148479}]
[null,"Estimated Annual GHG Emissions (CO2) Reduction (lbs)",null,{"$f":"'Results Table'!K14","v":36930.999618558439}]
[]
[null,"Equivalent Numbers of Cars Removed from the Road (comparing CO2 emissions)",null,{"$f":"D46/'Appendix - Economic Model Data'!B77","v":7774.9472881175661}]
[]
[]
[]
[]
[]
[]
[]
[]
[null,"Cumulative GHG Emissions (lbs): Commercial Gas vs BPLE"]
[null,null,null,"Year 1","Year 2","Year 3","Year 4","Year 5","Year 6","Year 7","Year 8 "]
[null,"ICE",null,{"$f":"'Results Table'!D14","v":38424.340895154179},{"$f":"$D$59+D59","v":76848.681790308357},115273.02268546254,153697.36358061671,192121.70447577088,230546.04537092504,268970.38626607921,307394.72716123337]
[null,"BPLE",null,{"$f":"'Results Table'!H14","v":1493.3412765957435},{"$f":"$D$60+D60","v":2986.6825531914869},4480.0238297872302,5973.3651063829739,7466.7063829787176,8960.0476595744603,10453.388936170204,11946.730212765948]
[null,"Net Savings",null,{"$f":"D59-D60","v":36930.999618558439},{"$f":"E59-E60","v":73861.999237116877},{"$f":"F59-F60","v":110792.99885567531},{"$f":"G59-G60","v":147723.99847423375},{"$f":"H59-H60","v":184654.99809279217},{"$f":"I59-I60","v":221585.99771135059},{"$f":"J59-J60","v":258516.99732990901},{"$f":"K59-K60","v":295447.99694846745}]

{"sheet":"Appendix - Default Values","index":5,"n_rows":163,"n_cols":22,"rows_kept":163,"cut":false,"hidden":false,"merged":[]}
["Equipment","Price of BPLE","Battery cost","Mass Save Rebate","Optional add-ons & extra costs","Prompt pay discount (PPD)","Battery size (kWh) Total Machine Battery","Number of batteries","Efficiency/charging loss",null,"Length of warranty (years)","Estimated battery lifetime hours*","Price of Gas Equipment","Gas Equipment Horsepower","Gallons of Gas Per Hour","Gas Equip Warranty",null,null,null,null,"BPLE Example Source","ICE Example Source"]
["Riding Zero-Turn Mower 42\"",5899,null,75,0,null,3.36,2,0.1,null,3,null,3900,23,2,3,null,null,null,null,"https://www.cubcadet.com/en_US/electric-riding-mowers/zt1-42e/34CBA2CS710.html","https://www.stihlusa.com/products/lawn-mowers/zero-turn-mowers/rz142/"]
["Riding Zero-Turn Mower 48\"",27000,null,3500,null,null,24,1,0.1,null,5,null,10719,23.5,2,4,null,null,null,null,"https://commercial.greenworkstools.com/collections/optimus/products/cz48r24x-optimusz-48-24kwh-ride-on-zero-turn-mower","https://www.deere.com/en/mowers/zero-turn-mowers/z700-series/z740r-ztrak-mower/"]
["Riding Zero-Turn Mower 52\"",27000,null,3500,null,null,24,1,0.1,null,4,null,11999,25.5,2,5,null,null,null,null,"https://commercial.greenworkstools.com/collections/optimus/products/cz52r24x-optimusz-52-24kwh-ride-on-zero-turn-mower","https://www.toro.com/en/product/74050"]
["Riding Zero-Turn Mower 60\"",32959,null,3500,null,null,16,4,0.1,null,5,null,14409,25.5,2,5,null,null,null,null,"https://www.gravely.com/en-us/power-equipment/electric/pro-turn-ev/pro-turn-ev60-rd-w-4-batteries ","https://www.deere.com/en/mowers/commercial-mowers/commercial-zero-turn/z900-series/z930m-mower/"]
["Riding Zero-Turn Mower 72-74\"",49940,null,3500,null,null,22,1,0.1,null,5,null,17999,26.5,2,5,null,null,null,null,"https://meangreenproducts.com/evo-74-ztr/","https://www.toro.com/en/product/72922"]
["Stand-on Mower 48\"",32667,null,3500,null,null,16,4,0.1,null,5,null,12199,22,2,5,null,null,null,null,"https://www.gravely.com/en-us/power-equipment/electric/pro-stance-ev/prostance-ev-48sd-w-4batteries","https://www.toro.com/en/product/71504"]
["Stand-on Mower 52\"",32893,null,3500,null,null,16,4,0.1,null,5,null,12959,23.5,2,2,null,null,null,null,"https://www.gravely.com/en-us/power-equipment/electric/pro-stance-ev/prostance-ev-52sd-w-4batteries","https://www.deere.com/en/mowers/commercial-mowers/quiktrak-mowers/652r-mower/?cid=PPC_MDS_00331_01373&gad=1&gclid=Cj0KCQjwzdOlBhCNARIsAPMwjbzFcobF_BobkqBqHZYWQdkmdcgyBgLfoN-lJYJdm5zS-AO15SGWiGcaApvLEALw_wcB&gclsrc=aw.ds"]
["Stand-on Mower 60\"",26000,null,3500,null,null,24,1,0.1,null,5,null,14399,26.5,2,5,null,null,null,null,"https://commercial.greenworkstools.com/collections/optimus/products/cz60s24x-optimusz-60-24kwh-stand-on-zero-turn-mower","https://www.toro.com/en/product/72523"]
["Push-Mower 30-32\"",2999,494,75,null,null,1.3440000000000001,3,0.1,null,2,null,3599,14.5,0.75,1,null,null,null,null,"https://commercial.greenworkstools.com/products/82v-30-self-propelled-lawn-mower-with-3-8ah-batteries-and-dual-port-charger-82lm30s-83dp_","https://www.toro.com/en/product/30672"]
["Handheld Blower 350-400 cfm",200,140,30,null,null,0.14399999999999999,1,0.1,null,2,null,300,1.07,0.43,2,null,null,null,null,"https://rockyseastlongmeadow.stihldealer.net/products/blowers-and-shredder-vacs/battery-blowers/bga57/","https://www.stihlusa.com/products/blowers-and-shredder-vacs/professional-blowers/bg86ce/"]
["Backpack Blower 600-650 cfm",462,null,30,null,null,0.42,1,0.1,null,2,null,500,3.81,0.43,2,null,null,null,null,"https://egopowerplus.com/blower-600cfm/","https://www.husqvarna.com/us/leaf-blowers/560bts/"]
["Backpack Blower 650-700 cfm",899.99,330,100,null,null,0.82,2,0.1,null,2,null,550,3.8,0.43,2,null,null,null,null,"https://commercial.greenworkstools.com/collections/leaf-blowers/products/82ba26-52dp-82-volt-dual-port-backpack-blower-with-two-5ah-batteries-and-one-8a-charger","https://www.stihlusa.com/products/blowers-and-shredder-vacs/professional-blowers/br600/"]
["Backpack Blower 750-800 cfm",1299,499,100,null,null,1.1200000000000001,2,0.1,null,2,null,590,4,0.43,2,null,null,null,null,"https://egopowerplus.com/commercial-800cfm-backpack-blower-lbpx8000/","https://www.husqvarna.com/us/leaf-blowers/570bfs/"]
["String Trimmer 16.5\"",1060,null,30,null,null,0.33839999999999998,1,0.1,null,2,null,490,1.9,0.66043012999999995,2,null,null,null,null,"https://www.stihlusa.com/products/trimmers-and-brushcutters/battery-trimmers/fsa135/","https://www.stihlusa.com/products/trimmers-and-brushcutters/professional-trimmers/fs131r/"]
["Hedge Trimmer 24\"",840,300,null,null,null,0.2591,1,0.1,null,2,null,540,1.2,0.1328125,2,null,null,null,null,"https://www.stihlusa.com/products/hedge-trimmers/battery-hedge-trimmers/hla135k0/","https://www.stihlusa.com/products/hedge-trimmers/professional-hedge-trimmers/hl94k145/"]
["Pole Saw 10\"",880,300,null,null,null,0.25919999999999999,1,0.1,null,2,null,400,1.07,0.15625,2,null,null,null,null,"https://www.stihlusa.com/products/pole-pruners/battery-pole-pruners/hta66/","https://www.stihlusa.com/products/pole-pruners/homeowner-pole-pruners/ht56ce/"]
["Chainsaw 12\"",743,286,30,null,null,0.28000000000000003,1,0.1,null,2,null,620,1.21,0.15850322999999999,2,null,null,null,null,"https://egopowerplus.com/commercial-top-handle-chainsaw-csx3000/","https://www.stihlusa.com/products/chain-saws/in-tree-saws/ms151tce/"]
["Chainsaw 14\"",690,240,30,null,null,0.216,1,0.1,null,2,null,630,2.4,0.15850322999999999,2,null,null,null,null,"https://www.stihlusa.com/products/chain-saws/battery-saws/msa160cbq/","https://www.husqvarna.com/us/chainsaws/t540xp-ii/"]
["Chainsaw 16\"",500,300,30,null,null,0.32800000000000001,1,0.1,null,3,null,640,2.4,0.22454624000000001,2,null,null,null,null,"https://commercial.greenworkstools.com/collections/chainsaws/products/82cs24-4dp-82v-16-2-4kw-chainsaw-with-4ah-battery-and-8a-dual-port-charger","https://www.husqvarna.com/us/chainsaws/t540xp-ii/?article=970484016"]
["Chainsaw 18\"",402,286,30,null,null,0.28000000000000003,1,0.1,null,2,null,820,4.7,0.29058926000000002,2,null,null,null,null,"https://egopowerplus.com/18-inch-chain-saw/","https://www.husqvarna.com/us/chainsaws/562xp/"]
["Chainsaw 20\"",600,300,30,null,null,0.32800000000000001,1,0.1,null,3,null,1130,5.5,0.29058926000000002,2,null,null,null,null,"https://commercial.greenworkstools.com/collections/chainsaws/products/82cs34-4dp-82v-20-3-4kw-chainsaw-with-1-4-ah-battery-dp-charger","https://www.husqvarna.com/us/chainsaws/372xp-x-torq/"]
[]
["*Battery lifetime hours is conservative. These are based off hours running nonstop, before capacity decreases to the point where a replacement would be recommended, but batteries could theoretically last longer, albeit with decreased capacity."]
[]
["Backpack Leaf Blower gas per hour ","https://www.quietcleanpdx.org/wp-content/uploads/2019/11/Gas-Powered-Leaf-Blower-Emissions-Factsheet-11.12.pdf"]
["Push/Commercial Mower gas per hour ","https://obsessedlawn.com/how-much-gas-does-a-lawn-mower-use/"]
["Chainsaw gas per hour","https://www.chainsawspecialists.org/how-much-fuel-per-hour-for-a-chainsaw/#:~:text=The%20amount%20of%20fuel%20your%20chainsaw%20uses%20per,0.6%20to%201.1%20liters%20of%20fuel%20per%20hour."]
["Polesaw gas per hours","https://howpowertool.com/what-kind-of-gas-do-you-put-in-a-gas-pole-saw/#:~:text=Typically%2C%20a%20small%20gas%20pole%20saw%20can%20use,up%20to%2020-30%20ounces%20of%20fuel%20per%20hour."]
["String Trimmer gas per hour","https://homeclasp.com/how-much-gas-does-a-weed-eater-use-per-hour/"]
[]
["Use Default Data?"]
["Yes"]
["No"]
[]
["PPD"]
[0]
[5.0000000000000001E-3]
[0.01]
[1.4999999999999999E-2]
[0.02]
[2.5000000000000001E-2]
[0.03]
[3.5000000000000003E-2]
[0.04]
[4.4999999999999998E-2]
[0.05]
[5.5E-2]
[0.06]
[6.5000000000000002E-2]
[7.0000000000000007E-2]
[7.4999999999999997E-2]
[0.08]
[8.5000000000000006E-2]
[0.09]
[9.5000000000000001E-2]
[0.1]
["Numbers for Dropdowns"]
[0]
[1]
[2]
[3]
[4]
[5]
[6]
[7]
[8]
[9]
[10]
[11]
[12]
[13]
[14]
[15]
[16]
[17]
[18]
[19]
[20]
[21]
[22]
[23]
[24]
[25]
[26]
[27]
[28]
[29]
[30]
[31]
[]
[]
[]
[]
[]
["Cost of electricity (per kWh)",0.1603]
["cost of electricity in 2020: https://www.eia.gov/electricity/sales_revenue_price/pdf/table5_b.pdf"]
[]
["Gallon of Gas cost",3.38]
["https://www.mass.gov/info-details/massachusetts-auto-fuel-prices#retail-gasoline-&-diesel-fuel-prices-"]
[]
[]
[]
["The \"Price of BPLE\" can vary…what prices should we use as a 'default'?"]
["Look into push mowers - average cost; one battery or multiple?"]
[]
[]
[]
["Category 8 Vendors"]
["Able Tool and Equipment"]
["Ariens Company"]
["Bacher Corporation"]
["Bobcat of Connecticut, Inc"]
["The Boston Lawnmower Company"]
["C & J Equipment "]
["Cason's Equipment"]
["Equipment East, LLC"]
["Frank LaBelle's Sales & Service"]
["Husqvarna Professional Products, Inc."]
["James R. Rosencrantz & Sons, Inc"]
["Maestranzi Bros."]
["Mayer Power Products Inc"]
["Summa Humma Enterprises, LLC dba MB Tractor and Equipment"]
["Morrison's Power Equipment Inc"]
["MTE, Inc"]
["Norfolk Power Equipment"]
["Regal Turf Innovations, LLC"]
["Richey & Clapper, Inc"]
["Stewards Power Equipment, Inc"]
["Suzuki of Western Mass, Inc dba AllPower"]
["The Toro Company"]
["Toni's State Line Power Products, LLC"]
["Tri County Contractors Supply, Inc"]
["Turf Products"]
["Ultra Automotive Inc dba Orlando's Garage"]
["United Ag & Turf NE, LLC"]
[]
[]
[]
["BPLE Prices"]
["Product","Manufacturer","Name","SKU/model number","Blade size (mowers)","Included batteries","Cost","Extra battery cost","Battery Voltage","battery Ah","Battery kWh","Source","Notes/additional sources"]
["Zero-Turn Mower","Mean Green","EVO ","EVO74R350","74\"",1,50000,null,null,null,35,"https://www.gardenland.com/product/mean-green-evo-battery-powered-zero-turn-mower/","https://meangreenproducts.com/evo-74-ztr/","Comparable to 40HP diesel mower"]
["Zero-Turn Mower","Mean Green","Rival","RVL60S220","60\"",1,35000,null,null,null,22,"https://meangreenproducts.com/rival/","https://www.russopower.com/mean-green-rival-60-commercial-electric-zero-turn-mower-with-side-discharge","36HP equivalent"]
["Zero-Turn Mower","Mean Green","Demo","CXR-52-130209","52\"",1,24000,null,null,null,null,"https://www.gardenland.com/product/mean-green-2019-cxr-52-industrial-demo-unit-for-sale/"]
["Zero-Turn Mower","Mean Green","Nemesis",null,"48\"",1,13600,null,null,null,7.2,"https://meangreenproducts.com/nemesis/","https://lawnmowerhosp.com/product/mean-green-mowers-nxr-4852-nemesis-1772","28HP "]
["Zero-Turn Mower","Gravely","Pro-Turn EV",997008,"48\"",1,32340,null,null,null,16,"https://www.gravely.com/en-us/power-equipment/electric/pro-turn-ev?gclid=Cj0KCQjw-fmZBhDtARIsAH6H8qguQSfK-ZsqXKW4UXS_-wM0gwl0DhSEXOvYGklTFives5Ydpmwp04oaApQqEALw_wcB","https://dirtydeedspowersports.com/Lawn-Mowers-Riding-Gravely-USA-Pro-Turn-EV-48-in-RD-16-kWh-Li-ion-2022-Longview-TX-6c4f27fb-fe32-47ac-85f4-addb004fb6b3#:~:text=RD%2016%20kWh%20Li%2Dion%20%E2%80%A2%20%2432%2C340"]
["Zero-Turn Mower","Gravely","Pro-Turn EV",997007,"60\"",1,32600,null,null,null,16,"https://www.gravely.com/en-us/power-equipment/electric/pro-turn-ev?gclid=Cj0KCQjw-fmZBhDtARIsAH6H8qguQSfK-ZsqXKW4UXS_-wM0gwl0DhSEXOvYGklTFives5Ydpmwp04oaApQqEALw_wcB","https://performancepowerequipment.org/Lawn-Mowers-Riding-Gravely-USA-Pro-Turn-EV-60-in-SD-16-kWh-Li-ion-2022-Columbia-City-IN-e61e35e9-2f8f-47bd-901a-addb0069b676"]
["Zero-Turn Mower","Greenworks","CZ60R 82-volt ride on zero turn mower",2522302,"60\"",1,19000,null,null,null,16,"https://commercial.greenworkstools.com/products/cz60r-82-volt-60-ride-on-zero-turn-mower"]
["Stand-on Mower","Mean Green","Vanquish",null,"60\"",1,29400,null,null,null,22,"https://lawnmowerhosp.com/product/mean-green-mowers-5260-vanquish-2102","https://meangreenproducts.com/vanquish/","36HP equivalent"]
["Stand-on Mower","Toro","Grandstand Revolution",null,"48\"",1,34000,null,null,null,18.7,"https://revolution.toro.com/grandstand/"]
["Push-Mower","Toro","HD21 Revolution",null,"21\"",2,1800,null,60,12,{"$f":"(I151*J151)/1000","v":0.72},"https://revolution.toro.com/hd-21/","Assumping 12.5 ah battery - https://www.thedailygardener.com/lawn-mower-battery-amps"]
["Push-Mower","Greenworks","Self propelled mower with 8Ah Battery",2542602,"25\"",1,900,500,82,8,{"$f":"(I152*J152)/1000","v":0.65600000000000003},"https://www.greenworkscommercial.com/82lm25s-8dp-82-volt-25-self-propelled-mower-with-8ah-battery-and-8a-dual-port-charger","https://www.greenworkscommercial.com/82v-8-ah-21700-battery-w-bluetooth-and-digital-readout"]
[]
["Walk-Behind Mower","Mean Green","WBX-33 walk behind","WBX33R072","33\"",1,12129,null,null,null,7,"https://lawnmowerhosp.com/product/mean-green-mowers-33-walk-behind-1773"]
["Handheld Leaf Blower","Greenworks","82BH22-4DP 82V HANDHELD BRUSHLESS AXIAL BLOWER WITH 4AH BATTERY AND 8A DUAL PORT CHARGER","2426702VT",null,1,500,330,82,4,{"$f":"(I155*J155)/1000","v":0.32800000000000001},"https://commercial.greenworkstools.com/products/82bh22-82v-handheld-brushless-axial-blower-with-4ah-battery-and-8a-dual-port-charger"]
["Backpack Leaf Blower","Greenworks","82BA26-52DP 82V Dual Port Backpack Blower with Two 5Ah Batteries and One 8A Charger",2424602,null,2,800,330,82,5,{"$f":"(I156*J156)/1000","v":0.41},"https://commercial.greenworkstools.com/products/82ba26-52dp-82-volt-dual-port-backpack-blower-with-two-5ah-batteries-and-one-8a-charger","Comes with two batteries and one charger"]
[]
["String Trimmer","Greenworks","82ST15-4DP 82-Volt Gen II 1.5kW FM String Trimmer with 4Ah Battery and 8A Charger",2129602,null,1,600,330,82,4,{"$f":"(I158*J158)/1000","v":0.32800000000000001},"https://commercial.greenworkstools.com/products/82st15-4dp-82-volt-gen-ii-1-5kw-fm-string-trimmer-with-4ah-battery-and-8a-charger-coming-soon"]
["Chainsaw","Greenworks","82CS27-4DP 82V 18\" 2.7kW Chainsaw with 4Ah Battery and 8A Charge",2025202,"18\"",1,550,330,82,4,{"$f":"(I159*J159)/1000","v":0.32800000000000001},"https://commercial.greenworkstools.com/products/82cs27-4dp-82-volt-18-2-7kw-chainsaw-with-4ah-battery-and-8a-charger-coming-soon","Note that larger batteries are available"]
["Chainsaw","EGO","EGO  POWER+ Commercial 56-volt 12-in Brushless Cordless Electric Chainsaw 5 Ah (Battery & Charger Included)","CSX3003","12\"",1,700,null,56,5,{"$f":"(I160*J160)/1000","v":0.28000000000000003},"https://www.lowes.com/pd/EGO-POWER-Commercial-Series-Top-Handle-Chainsaw-Kit/5002134691"]
[]
[]
["Backpack Battery","EGO","EGO  28 Ah Lithium Ion","BAX1501",null,1,1399,null,56,28,{"$f":"(I163*J163)/1000","v":1.5680000000000001},"https://www.lowes.com/pd/EGO-POWER-Commercial-Backpack-Battery/5000528371?irclickid=2rHXCG2Cazj1TXTycr3UOQJMUkDQ-t3Jo0zb3Y0&irgwc=1&cm_mmc=aff-_-c-_-prd-_-mdv-_-gdy-_-all-_-0-_-2481278-_-0","Can be used with any commercial EGO products"]

{"sheet":"Appendix - Electric DF Values","index":6,"n_rows":188,"n_cols":23,"rows_kept":188,"cut":false,"hidden":true,"merged":[]}
["Product","Manufacturer","Name","SKU/model number","Blade size (mowers)","Zero Turn?","Air Volume (cfm) (blowers)","Bar Length (in) (chain saws)","Blade Length (in) (trimmers)","Cutting Path (in) (string trimmers and edgers)","Engine Capacity (cc)","Included batteries","Built In or Swappable Batteries","Cost","Extra battery cost","Battery Voltage","Battery Ah","Total Machine Battery kWh","Commercial (Mass Save Rebate)","Source","Price Source:","Battery Price Source:","Notes/additional sources"]
["Ride-On Mower","Gravely","Pro-Turn EV ","997005 / 997008","48\"","Yes",null,null,null,null,null,4,"Swappable Batteries",32667,null,null,null,16,"Yes","https://www.gravely.com/en-us/power-equipment/electric/pro-turn-ev/pro-turn-ev48-rd-w-4-batteries",null,null,"Side / Rear Discharge"]
["Ride-On Mower","Gravely","Pro-Turn EV ","997006 / 997009 ","52\"","Yes",null,null,null,null,null,4,"Swappable Batteries",32893,null,null,null,16,"Yes","https://www.gravely.com/en-us/power-equipment/electric/pro-turn-ev/pro-turn-ev52-sd-w-4-batteries",null,null,"Side / Rear Discharge"]
["Ride-On Mower","Gravely","Pro-Turn EV ","997007 / 997010","60\"","Yes",null,null,null,null,null,4,"Swappable Batteries",32959,null,null,null,16,"Yes","https://www.gravely.com/en-us/power-equipment/electric/pro-turn-ev/pro-turn-ev60-rd-w-4-batteries ",null,null,"Side / Rear Discharge"]
["Ride-On Mower","Toro","Z Master Revolution",18748,"48\"","Yes",null,null,null,null,null,10,null,"$38,999 *dependent on dealer",null,null,null,23.4,"Yes","https://www.toro.com/en/product/18748#specifications","https://www.arcolawn.com/products/revolution-series-48-18748#:~:text=Toro%20SKU%3A,TOR-18748%20Price%3A%20%2438%2C999.00"]
["Ride-On Mower","Toro","Z Master Revolution",18752,"52\"","Yes",null,null,null,null,null,10,null,"$39,499 *dependent on dealer",null,null,null,23.4,"Yes","https://www.toro.com/en/product/18752#specifications","https://www.arcolawn.com/products/revolution-series-52-18752"]
["Ride-On Mower","Toro","Z Master Revolution",18760,"60\"","Yes",null,null,null,null,null,10,null,"$41,239 *dependent on dealer",null,null,null,23.4,"Yes","https://www.toro.com/en/product/18760#specifications","https://www.arcolawn.com/products/revolution-series-60-18760"]
["Ride-On Mower","Toro","Z Master Revolution MyRide",18765,"60\"","Yes",null,null,null,null,null,10,null,"*requires call for price, multiple vendors",null,null,null,23.4,"Yes","https://www.toro.com/en/product/18765#specifications"]
["Ride-On Mower","Greenworks","OptimusZ Ride-On Zero-Turn","7414602 (CZ48R24X)","48\"","Yes",null,null,null,null,null,1,"Built in battery",26999.99,null,null,null,24,"Yes","https://commercial.greenworkstools.com/collections/optimus/products/cz48r24x-optimusz-48-24kwh-ride-on-zero-turn-mower"]
["Ride-On Mower","Greenworks","OptimusZ Ride-On Zero-Turn","7411502 (CZ52R24X)","52\"","Yes",null,null,null,null,null,1,"Built in battery",26999.99,null,null,null,24,"Yes","https://commercial.greenworkstools.com/collections/optimus/products/cz52r24x-optimusz-52-24kwh-ride-on-zero-turn-mower"]
["Ride-On Mower","Greenworks","OptimusZ Ride-On Zero-Turn","7411702 (CZ60R24X)","60\"","Yes",null,null,null,null,null,1,"Built in battery",26999.99,null,null,null,24,"Yes","https://commercial.greenworkstools.com/collections/optimus/products/cz60r24x-optimusz-60-24kwh-ride-on-zero-turn-mower"]
["Ride-On Mower","Greenworks","OptimusZ Ride-On Zero-Turn","7414802 (CZ48R18X)","48\"","Yes",null,null,null,null,null,1,"Built in battery",22999.99,null,null,null,18,"Yes","https://commercial.greenworkstools.com/collections/optimus/products/cz48r18x-optimus-draft"]
["Ride-On Mower","Greenworks","OptimusZ Ride-On Zero-Turn","7415002 (CZ52R18X)","52\"","Yes",null,null,null,null,null,1,"Built in battery",22999.99,null,null,null,18,"Yes","https://commercial.greenworkstools.com/collections/optimus/products/cz52r18x-optimus-draft"]
["Ride-On Mower","Greenworks","OptimusZ Ride-On Zero-Turn","7415202 (CZ60R18X)","60\"","Yes",null,null,null,null,null,1,"Built in battery",22999.99,null,null,null,18,"Yes","https://commercial.greenworkstools.com/collections/optimus/products/cz60r18x-optimus-draft-1"]
["Ride-On Mower","Mean Green","EVO Zero Turn",null,"74\"","Yes",null,null,null,null,null,1,"Built in battery","$49,940 *dependent on dealer and maybe battery size",null,null,null,14.5,"Yes","https://meangreenproducts.com/evo-74-ztr/","https://www.gardenland.com/product/mean-green-evo-battery-powered-zero-turn-mower/"]
["Ride-On Mower","Mean Green","EVO Zero Turn ",null,"74\"","Yes",null,null,null,null,null,1,"Built in battery","$49,940 *dependent on dealer and maybe battery size",null,null,null,22,"Yes","https://meangreenproducts.com/evo-74-ztr/","https://www.gardenland.com/product/mean-green-evo-battery-powered-zero-turn-mower/"]
["Ride-On Mower","Mean Green","EVO Zero Turn ",null,"74\"","Yes",null,null,null,null,null,1,"Built in battery","$49,940 *dependent on dealer and maybe battery size",null,null,null,35,"Yes","https://meangreenproducts.com/evo-74-ztr/","https://www.gardenland.com/product/mean-green-evo-battery-powered-zero-turn-mower/"]
["Ride-On Mower","Mean Green ","RIVAL Zero Turn ","RVL52S220 / RVL52R220","52\"","Yes",null,null,null,null,null,1,"Built in battery","$34,649 / $36,299 (for 22kWh) *dependent on dealer",null,null,null,"14.5 or 22","Yes","https://meangreenproducts.com/rival/\n","https://lawnmowerhosp.com/product/mean-green-mowers-5260-rival-1898",null,"Side/Rear Discharge"]
["Ride-On Mower","Mean Green ","RIVAL Zero Turn ","RVL60S220 / RVL60R220","60\"","Yes",null,null,null,null,null,1,"Built in battery","$34,649 / $36,299 (for 22kWh) *dependent on dealer",null,null,null,"14.5 or 22","Yes","https://meangreenproducts.com/rival/","https://lawnmowerhosp.com/product/mean-green-mowers-5260-rival-1898",null,"Side/Rear Discharge"]
["Ride-On Mower","Mean Green ","VANQUISH Zero Turn ",null,"52\"","Yes",null,null,null,null,null,1,"Built in battery",34650,null,null,null,"14.5 or 22","Yes","https://meangreenproducts.com/vanquish/"]
["Ride-On Mower","Mean Green ","VANQUISH Zero Turn ",null,"60\"","Yes",null,null,null,null,null,1,"Built in battery",34650,null,null,null,"14.5 or 22","Yes","https://meangreenproducts.com/vanquish/"]
["Ride-On Mower","Mean Green ","NEMESIS Zero Turn ",null,"48\"","Yes",null,null,null,null,null,1,"Built in battery",16499,null,null,null,7.2,"Yes","https://meangreenproducts.com/nemesis/ ","https://opereviews.com/mean-green-nemesis-electric-zero-turn-mower/#:~:text=Mean%20Green%20Nemesis%20Price,the%20smaller%2048%2Dinch%20deck."]
["Ride-On Mower","Mean Green ","NEMESIS Zero Turn ",null,"60\"","Yes",null,null,null,null,null,1,"Built in battery",16999,null,null,null,7.2,"Yes","https://meangreenproducts.com/nemesis/ ","https://opereviews.com/mean-green-nemesis-electric-zero-turn-mower/#:~:text=Mean%20Green%20Nemesis%20Price,the%20smaller%2048%2Dinch%20deck."]
["Ride-On Mower","Cub Cadet ","ZT1 42E","ZT1 42E","42\"","Yes",null,null,null,null,null,2,null,5899,null,56,60,{"$f":"((P24*Q24)/1000)","v":3.36},"No","https://www.cubcadet.com/en_US/electric-riding-mowers/zt1-42e/34CBA2CS710.html"]
["Stand-On Mower","Mean Green ","FURY Compact Zero Turn ",null,"32\"","Yes",null,null,null,null,null,1,"Built in battery",26179,null,null,null,11,"Yes","https://meangreenproducts.com/fury/"]
["Stand-On Mower","Mean Green ","FURY Compact Zero Turn ",null,"36\"","Yes",null,null,null,null,null,1,"Built in battery",26399,null,null,null,11,"Yes","https://meangreenproducts.com/fury/"]
["Stand-On Mower","Greenworks","OptimusZ Stand-On Zero-Turn","7411402 (CZ48S24X)","48\"","Yes",null,null,null,null,null,1,"Built in battery",25999.99,null,null,null,24,"Yes","https://commercial.greenworkstools.com/collections/optimus/products/optimusz-48-24kwh-stand-on-zero-turn-mower-cz48s24x"]
["Stand-On Mower","Greenworks","OptimusZ Stand-On Zero-Turn","7411602 (CZ52S24X)","52\"","Yes",null,null,null,null,null,1,"Built in battery",25999.99,null,null,null,24,"Yes","https://commercial.greenworkstools.com/collections/optimus/products/cz52s24x-optimusz-52-24kwh-stand-on-zero-turn-mower"]
["Stand-On Mower","Greenworks","OptimusZ Stand-On Zero-Turn","7414502 (CZ60S24X)","60\"","Yes",null,null,null,null,null,1,"Built in battery",25999.99,null,null,null,24,"Yes","https://commercial.greenworkstools.com/collections/optimus/products/cz60s24x-optimusz-60-24kwh-stand-on-zero-turn-mower"]
["Stand-On Mower","Greenworks","OptimusZ Stand-On Zero-Turn","7414702 (CZ48S18X)","48\"","Yes",null,null,null,null,null,1,"Built in battery",21999.99,null,null,null,18,"Yes","https://commercial.greenworkstools.com/collections/optimus/products/cz48s18x-optimus-draft"]
["Stand-On Mower","Greenworks","OptimusZ Stand-On Zero-Turn","7414902 (CZ52S18X)","52\"","Yes",null,null,null,null,null,1,"Built in battery",21999.99,null,null,null,18,"Yes","https://commercial.greenworkstools.com/collections/optimus/products/cz52s18x-optimus-draft"]
["Stand-On Mower","Greenworks","OptimusZ Stand-On Zero-Turn","7415102 (CZ60S18X)","60\"","Yes",null,null,null,null,null,1,"Built in battery",21999.99,null,null,null,18,"Yes","https://commercial.greenworkstools.com/collections/optimus/products/cz60s18x-optimus-draft"]
["Stand-On Mower","Greenworks","OptimusZ Stand-On Zero-Turn","7409902 (CZ32S8)","32\"","Yes",null,null,null,null,null,1,"Built in battery",12999.99,null,null,null,8,"Yes","https://commercial.greenworkstools.com/collections/optimus/products/cz32s8-optimusz-32-8kwh-stand-on-zero-turn-mower"]
["Stand-On Mower","Greenworks","OptimusZ Stand-On Zero-Turn","7415502 (CZ36S8X)","36\"","Yes",null,null,null,null,null,1,"Built in battery",12999.99,null,null,null,8,"Yes","https://commercial.greenworkstools.com/collections/optimus/products/cz36s8-optimusz-36-8kwh-stand-on-zero-turn-mower"]
["Stand-On Mower","Toro","GrandStand Revolution",18562,"48\"",null,null,null,null,null,null,8,null,"$40,090 *dependent on dealer",null,null,null,18.399999999999999,"Yes","https://www.toro.com/en/product/18562\n","https://www.ssacehardware.com/new-models/toro-grandstand-revolution-48-122-cm-18562-29009557b"]
["Stand-On Mower","Toro","GrandStand Revolution",18560,"52\"",null,null,null,null,null,null,8,null,"$34,999 *dependent on dealer",null,null,null,18.399999999999999,"Yes","https://www.toro.com/en/product/18560#specifications\n","https://www.arcolawn.com/products/revolution-grandstand%C2%AE-52-18560?pr_prod_strat=use_description&pr_rec_id=4fcabc1de&pr_rec_pid=6796828213318&pr_ref_pid=6796828180550&pr_seq=uniform"]
["Stand-On Mower","Toro","GrandStand Revolution",18564,"60\"",null,null,null,null,null,null,8,null,"$35,499 *dependent on dealer ",null,null,null,18.399999999999999,"Yes","https://www.toro.com/en/product/18564","https://www.arcolawn.com/products/revolution-grandstand%C2%AE-60-18564"]
["Stand-On Mower","Gravely ","Pro-Stance EV","998001 / 998004","48\"",null,null,null,null,null,null,4,"Swappable Batteries",32667,null,null,null,16,"Yes","https://www.gravely.com/en-us/power-equipment/electric/pro-stance-ev/prostance-ev-48sd-w-4batteries",null,null,"Side / Rear Discharge "]
["Stand-On Mower","Gravely ","Pro-Stance EV","998002 / 998005","52\"",null,null,null,null,null,null,4,"Swappable Batteries",32893,null,null,null,16,"Yes","https://www.gravely.com/en-us/power-equipment/electric/pro-stance-ev/prostance-ev-52sd-w-4batteries",null,null,"Side / Rear Discharge "]
["Stand-On Mower","Gravely ","Pro-Stance EV","998003 / 998006","60\"",null,null,null,null,null,null,4,"Swappable Batteries",32959,null,null,null,16,"Yes","https://www.gravely.com/en-us/power-equipment/electric/pro-stance-ev/prostance-ev-60rd-w-4batteries",null,null,"Side / Rear Discharge "]
["Stand-On Mower ","exMark","Vertex V-Series","VXV060B1852A00","52\"",null,null,null,null,null,null,1,null,39999,null,null,null,18.399999999999999,"Yes","https://www.exmark.com/products/mowers/stand-on/vertex/vertex-v-series#features"]
["Ride-On Mower","EGO","Power+ Zero Turn Mower with E-Steer Technology","ZT4205S","42\"","Yes",null,null,null,null,null,4,null,5999,576.28142857142802,56,12,{"$f":"((P42*Q42)/1000)","v":0.67200000000000004},"No","https://egopowerplus.com/42-inch-zero-turn-mower-e-steer-zt4205s/","https://egopowerplus.com/battery-12-amp-ba6720t/",null,"Charger included"]
["Ride-On Mower","EGO","Power+ 52” Z6 Zero Turn Riding Mower","ZT5207L","52\"","Yes",null,null,null,null,null,6,null,6570.57,576.28142857142802,56,12,{"$f":"((P43*Q43)/1000)*L43","v":4.032},"No","https://egopowerplus.com/52inch-zero-turn-riding-mower-zt5200l/",null,null,"Charger included"]
["Ride-On Mower","EGO","Power+ 42” Z6 Zero Turn Riding Mower","ZT4204L","42\"","Yes",null,null,null,null,null,4,null,4693.2228571428504,null,56,10,{"$f":"((P44*Q44)/1000)*L44","v":2.2400000000000002},"No","https://egopowerplus.com/zero-turn-riding-mower-zt4204l/"]
["Push Mower","Greenworks ","82V 30\" Self-propelled Lawn Mower","2544702 (82LM30S-83DP)","30\"",null,null,null,null,null,null,3,null,2999,494,56,24,{"$f":"(P45*Q45)/1000","v":1.3440000000000001},"No","https://commercial.greenworkstools.com/products/82v-30-self-propelled-lawn-mower-with-3-8ah-batteries-and-dual-port-charger-82lm30s-83dp_",null,"https://commercial.greenworkstools.com/products/82v-8-ah-21700-battery-w-bluetooth-and-digital-readout-coming-in-2022?_pos=7&_sid=2ae20554c&_ss=r","Dual Port Charger Included"]
["Push Mower","Greenworks","82V 25\" Self-propelled Lawn Mower","2542602 (82LM25S-8DP)","25\"",null,null,null,null,null,null,1,null,899,494,56,8,{"$f":"(P46*Q46)/1000","v":0.44800000000000001},"No","https://commercial.greenworkstools.com/products/82lms25-8dp-82-volt-25-self-propelled-mower-with-8ah-battery-and-8a-dual-port-charger \nExtra Battery: https://commercial.greenworkstools.com/products/82v-8-ah-21700-battery-w-bluetooth-and-digital-readout-coming-in-2022?_pos=7&_sid=2ae20554c&_ss=r",null,null,"Dual Port Charger Included"]
["Push Mower","Greenworks","82V 21\" Brushless Self-Propelled Mower","2542802 (82LM21S-8DP)","21\"",null,null,null,null,null,null,1,null,899,494,56,8,0.44800000000000001,"No","https://commercial.greenworkstools.com/collections/lawn-mowers/products/82lms21-8dp-82-volt-21-self-propelled-mower-with-8ah-battery-and-8a-dual-port-charger \nExtra Battery: https://commercial.greenworkstools.com/products/82v-8-ah-21700-battery-w-bluetooth-and-digital-readout-coming-in-2022?_pos=7&_sid=2ae20554c&_ss=r",null,null,"Dual Port Charger Included"]
["Push Mower","Greenworks","82V 21\" Brushless Push Mower","2541502 (82LM21-5DP)","21\"",null,null,null,null,null,null,1,null,749,329,56,5,0.28000000000000003,"No","https://commercial.greenworkstools.com/collections/lawn-mowers/products/gm-210-5dp-82-volt-21-brushless-push-mower-with-5ah-battery-and-8a-charger-coming-soon \nExtra Battery Cost: https://commercial.greenworkstools.com/products/82v-5-ah-battery-w-bluetooth-and-digital-readout-new-for-2022-replaces-gl500?_pos=10&_sid=2ae20554c&_ss=r",null,null,"Dual Port Charger Included"]
["Push Mower","Greenworks","82V 21” Self-Propelled Mower","2544602 (MO82410)","21\"",null,null,null,null,null,null,1,null,499,299,56,4,0.224,"No","https://commercial.greenworkstools.com/collections/lawn-mowers/products/82v-21-self-propelled-mower-with-4ah-battery-and-single-port-charger-mo82410 \nExtra Battery: https://commercial.greenworkstools.com/products/gl400bt-82-volt-4ah-bluetooth-capable-battery?_pos=6&_sid=2ae20554c&_ss=r",null,null,"Single Port Charger Included"]
["Push Mower","Greenworks","48V/24V 21\" Dual-Volt Lawn Mower",2527002,"21\"",null,null,null,null,null,null,null,null,399,null,"48/24",null,{"$error":"#VALUE!"},"No","https://commercial.greenworkstools.com/collections/lawn-mowers/products/48pm21-48v-24v-21-dual-volt-lawn-mower-with-battery-and-charger",null,null,"Charger included"]
["Push Mower ","EGO","Power+ Select Cut XP Mower - Touchdrive","LM2156SP-2","21\"",null,null,null,null,null,null,2,null,1099,499,56,10,{"$f":"(P51*Q51)/1000*L51","v":1.1200000000000001},"No","https://egopowerplus.com/21-inch-self-propelled-mower-select-cut-xp-lm2156sp/",null,"https://egopowerplus.com/battery-10-amp/","Charger included"]
["Push Mower ","EGO","Power+ Select Cut XP Mower - Touchdrive","LM2156SP","21\"",null,null,null,null,null,null,1,null,799.33,499,56,10,{"$f":"(P52*Q52)/1000*L52","v":0.56000000000000005},"No","https://egopowerplus.com/21-inch-self-propelled-mower-select-cut-xp-lm2156sp/",null,"https://egopowerplus.com/battery-10-amp/","Charger included"]
["Push Mower ","EGO","Power+ Select Cut Mower - Touchdrive","LM2135SP","21\"",null,null,null,null,null,null,1,null,773.58749999999998,399,56,7.5,0.42,"No","https://egopowerplus.com/21-inch-self-propelled-mower-select-cut/","https://egopowerplus.com/battery-7-5amp-fuel-gauge/",null,"Charger included"]
["Push Mower ","EGO","Power+ Select Cut Mower","LM2135","21\"",null,null,null,null,null,null,1,null,649,299,56,7.5,0.42,"No","https://egopowerplus.com/21-inch-mower-select-cut/","https://egopowerplus.com/battery-5-0-amp-fuel-gauge/",null,"Charger included"]
["Push Mower ","EGO","Power+ Select Cut Mower","LM2133","21\"",null,null,null,null,null,null,1,null,737.72,293.62222222222198,56,5,0.28000000000000003,"No","https://egopowerplus.com/21-inch-mower-select-cut/",null,"https://egopowerplus.com/battery-5-0-amp-fuel-gauge/","Charger included"]
["Push Mower ","EGO","Power+ Select Cut XP Mower - SpeedIQ","LM2167SP","21\"",null,null,null,null,null,null,1,null,999.33,599,56,12,0.67200000000000004,"No","https://egopowerplus.com/select-cut-xp-sp-speed-iq-lm2160sp/","https://egopowerplus.com/battery-12-amp-ba6720t/",null,"Charger included"]
["Push Mower ","EGO","Power+ Mower - Touchdrive","LM2125SP","21\"",null,null,null,null,null,null,1,null,527.83166666666602,399,56,7.5,0.42,"No","https://egopowerplus.com/21-inch-self-propelled-mower-touch-drive-lm2120sp/",null,null,"Charger included"]
["Push Mower ","EGO","Power+ Self-Propelled Mower","LM2114SP","21\"",null,null,null,null,null,null,1,null,545,339,56,6,0.33600000000000002,"No","https://egopowerplus.com/21-inch-self-propelled-mower-lm2110sp/","https://egopowerplus.com/battery-6-amp-ba3360t/",null,"Charger included"]
["Push Mower ","EGO","Power+ Mower","LM2114","21\"",null,null,null,null,null,null,1,null,436.5,339,56,6,0.33600000000000002,"No","https://egopowerplus.com/21-inch-mower-lm2110/","https://egopowerplus.com/battery-6-amp-ba3360t/",null,"Charger included"]
["Push Mower ","EGO","Power+ Self-Propelled Mower","LM2102SP","21\"",null,null,null,null,null,null,1,null,651.49249999999995,399,56,7.5,0.42,"No","https://egopowerplus.com/21-inch-self-propelled-mower/","https://egopowerplus.com/battery-7-5amp-fuel-gauge/",null,"Rapid Charger included"]
["Push Mower ","EGO","Power+ Self-Propelled Mower","LM2102SP-A","21\"",null,null,null,null,null,null,2,null,639,219.71,56,4,{"$f":"((P61*Q61)/1000)*L61","v":0.44800000000000001},"No","https://egopowerplus.com/21-inch-self-propelled-mower/",null,"https://egopowerplus.com/battery-4amp-ba2242t/","Rapid Charger included"]
["Push Mower ","EGO","Power+ Mower ","LM2101","21\"",null,null,null,null,null,null,1,null,447.37,293.62222222222198,56,5,{"$f":"(P62*Q62)/1000","v":0.28000000000000003},"No","https://egopowerplus.com/mower-21-inch/","https://egopowerplus.com/battery-5-0-amp-fuel-gauge/",null,"Rapid Charger included"]
["Push Mower ","EGO","Power+ 21\" Self-Propelled Mower with Peak Power ","LM2142SP","21\"",null,null,null,null,null,null,2,null,817.71875,293.62222222222198,56,5,0.28000000000000003,"No","https://egopowerplus.com/mower-21-inch-self-propelled-dual-battery/","https://egopowerplus.com/battery-5-0-amp-fuel-gauge/",null,"Rapid Charger included"]
["Push Mower ","EGO","Power+ 20\" Self-Propelled Mower with Steel Deck ","LM2022SP","20\"",null,null,null,null,null,null,1,null,699,399,56,7.5,0.42,"No","https://egopowerplus.com/20-inch-self-propelled-mower-with-steel-deck/","https://egopowerplus.com/battery-7-5amp-fuel-gauge/",null,"Rapid Charger included"]
["Push Mower ","Echo","Echo eForce","DLM-2100SP","21\"",null,null,null,null,null,null,1,null,549.99,"*Dependent on dealer",56,5,0.28000000000000003,"No","https://www.echo-usa.com/mowers/dlm-2100sp",null,null,"includes charger "]
["Push Mower ","Echo","Echo eForce","DLM-2100","21\"",null,null,null,null,null,null,1,null,449.99,"*Dependent on dealer",56,5,0.28000000000000003,"No","https://www.echo-usa.com/mowers/dlm-2100",null,null,"includes standard charger"]
["Backpack Blower","Greenworks ","82V Backpack Blower","2424602 (82BA26-52DP)",null,null,690,null,null,null,null,2,null,899.99,329.99,82,5,{"$f":"((P67*Q67)/1000)*L67","v":0.82},"Yes","https://commercial.greenworkstools.com/collections/leaf-blowers/products/82ba26-52dp-82-volt-dual-port-backpack-blower-with-two-5ah-batteries-and-one-8a-charger",null,"https://commercial.greenworkstools.com/products/82v-5-ah-battery-w-bluetooth-and-digital-readout-new-for-2022-replaces-gl500?_pos=1&_sid=e525e33f1&_ss=r","Includes one dual port charger "]
["Backpack Blower","EGO","Commercial 800 CFM Backpack Blower with Peak Power","LBPX8006-2",null,null,800,null,null,null,null,2,null,1299.396,499.44,56,10,{"$f":"((P68*Q68)/1000)*L68","v":1.1200000000000001},"Yes","https://egopowerplus.com/commercial-800cfm-backpack-blower-lbpx8000/",null,"https://egopowerplus.com/battery-10-amp/","Includes Dual port charger"]
["Backpack Blower","EGO","Commercial 800 CFM Backpack Blower with Peak Power","LBPX8004-2",null,null,800,null,null,null,null,2,null,699.33,339,56,6,0.67200000000000004,"Yes","https://egopowerplus.com/commercial-800cfm-backpack-blower-lbpx8000/",null,"https://egopowerplus.com/battery-6-amp-ba3360t/","Includes Dual port charger"]
["Handheld Blower","EGO","Power+ 765 CFM Blower","LB7654-2",null,null,765,null,null,null,null,2,null,499.2475,286.11666666666599,56,5,0.56000000000000005,"Yes","https://egopowerplus.com/blower-765cfm/",null,"https://egopowerplus.com/battery-5-0-amp-fuel-gauge/","Includes rapid charger"]
["Handheld Blower","EGO","Power+ 765 CFM Blower","LB7654 ",null,null,765,null,null,null,null,1,null,499.2475,286.11666666666599,56,5,{"$f":"((P71*Q71)/1000)*L71","v":0.28000000000000003},"No","https://egopowerplus.com/blower-765cfm/",null,"https://egopowerplus.com/battery-5-0-amp-fuel-gauge/","Includes rapid charger"]
["Backpack Blower","EGO","Power+ 600 CFM Backpack Blower","LB6003",null,null,600,null,null,null,null,1,null,461.54111111111098,403.37400000000002,56,7.5,{"$f":"((P72*Q72)/1000)*L72","v":0.42},"No","https://egopowerplus.com/blower-600cfm/",null,"https://egopowerplus.com/battery-7-5amp-fuel-gauge/","Includes standard charger and battery with fuel gauge"]
["Backpack Blower","EGO","Power+ 600 CFM Backpack Blower","LB6002",null,null,600,null,null,null,null,1,null,299.47500000000002,null,56,5,{"$f":"((P73*Q73)/1000)*L73","v":0.28000000000000003},"No","https://egopowerplus.com/blower-600cfm/",null,"https://egopowerplus.com/battery-5amp/","Includes standard charger; 5Ah is not sold separately"]
["Backpack Blower","Husqvarna ","550iBTX","967 68 11‑04",null,null,452.03,null,null,null,null,0,null,499.99,null,40,null,{"$f":"((P74*Q74)/1000)*L74","v":0},"No","https://www.husqvarna.com/us/leaf-blowers/550ibtx/"]
["Backpack Blower","Husqvarna ","340iBT","967 68 12‑04",null,null,483.81,null,null,null,null,0,null,499.99,null,40,null,{"$f":"((P75*Q75)/1000)*L75","v":0},"No","https://www.husqvarna.com/us/leaf-blowers/340ibt/"]
["Handheld Blower","Greenworks ","82V Handheld Brushless Axial Blower","2426702VT (82BH22-4DP)",null,null,760,null,null,null,null,1,null,499.99,null,82,4,{"$f":"((P76*Q76)/1000)*L76","v":0.32800000000000001},"No","https://commercial.greenworkstools.com/collections/leaf-blowers/products/82bh22-82v-handheld-brushless-axial-blower-with-4ah-battery-and-8a-dual-port-charger",null,null,"Includes one dual port charger "]
["Handheld Blower","Greenworks ","Dual-Volt Axial Blower","2417202 (48B500)",null,null,500,null,null,null,null,1,null,299.99,null,"48/24",2,{"$error":"#VALUE!"},"No","https://commercial.greenworkstools.com/collections/leaf-blowers/products/48b500-48v-24v-500-cfm-dual-volt-axial-blower-with-battery-and-charger",null,null,"Can use 4Ah battery too"]
["Handheld Blower","Greenworks ","Dual-Volt Axial Blower","2417102 (48B450)",null,null,450,null,null,null,null,1,null,179.99,null,"48/24",2,{"$error":"#VALUE!"},"No","https://commercial.greenworkstools.com/collections/leaf-blowers/products/48b450-48v-24v-450-cfm-dual-volt-axial-blower-with-battery-and-charger",null,null,"Can use 4Ah battery too"]
["Handheld Blower","Greenworks ","Axial Blower","2413802 (24B315)",null,null,315,null,null,null,null,1,null,119.99,null,24,2,4.8000000000000001E-2,"No","https://commercial.greenworkstools.com/collections/leaf-blowers/products/24b315-24-volt-315-cfm-axial-blower-with-battery-and-charger"]
["Handheld Blower","Greenworks ","82V Handheld Blower","2428002 (BL82210)",null,null,660,null,null,null,null,1,null,249.99,null,82,2,0.16400000000000001,"No","https://commercial.greenworkstools.com/collections/leaf-blowers/products/82v-handheld-blower-with-2ah-battery-and-single-port-charger-bl82210",null,null,"Includes one single port charger "]
["Handheld Blower","EGO","Power+ 670 CFM Blower","LB6703",null,null,670,null,null,null,null,1,null,267,null,56,4,0.224,"No","https://egopowerplus.com/blower-670cfm-lb6700/",null,null,"Includes one charger "]
["Handheld Blower","EGO","Power+ 650 CFM Blower","LB6504",null,null,650,null,null,null,null,1,null,294.221,null,56,5,0.28000000000000003,"No","https://egopowerplus.com/blower-650cfm/",null,null,"Includes standard charger"]
["Handheld Blower","EGO","Power+ 650 CFM Blower","LB6503",null,null,650,null,null,null,null,1,null,259.14,219.71166700000001,56,4,0.224,"No","https://egopowerplus.com/blower-650cfm/",null,"https://egopowerplus.com/battery-4amp-ba2242t/","Includes standard charger"]
["Handheld Blower","EGO","Power+ 615 CFM Blower","LB6153",null,null,615,null,null,null,null,1,null,183,null,56,4,0.224,"No","https://egopowerplus.com/blower-615cfm-lb6151/",null,null,"standard charger included; battery comes with fuel gauge"]
["Handheld Blower","EGO","Power+ 615 CFM Blower","LB6151",null,null,615,null,null,null,null,1,null,215.99666666666599,176.685714285714,56,2.5,0.14000000000000001,null,"https://egopowerplus.com/blower-615cfm-lb6151/",null,"https://egopowerplus.com/battery-2-5amp-fuel-gauge/","standard charger included; battery comes with fuel gauge"]
["Handheld Blower","EGO","Power+ 580 CFM Blower","LB5804",null,null,580,null,null,null,null,1,null,315.17250000000001,null,56,5,0.28000000000000003,"No","https://egopowerplus.com/blower-580cfm/",null,null,"includes standard charger "]
["Handheld Blower","EGO","Power+ 530 CFM Blower","LB5302",null,null,530,null,null,null,null,1,null,203.48500000000001,null,56,2.5,0.14000000000000001,"No","https://egopowerplus.com/blower-530cfm/",null,null,"includes standard charger "]
["Handheld Blower","EGO","Power+ 480 CFM Blower","LB4803",null,null,480,null,null,null,null,1,null,171.16333333333299,null,56,2.5,0.14000000000000001,"No","https://egopowerplus.com/blower-480cfm/",null,null,"includes standard charger "]
["Handheld Blower","Echo","ECHO eFORCE","DPB-2500",null,null,549,null,null,null,null,1,null,249.99,null,56,5,0.28000000000000003,"No","https://www.echo-usa.com/blowers/dpb-2500#specs",null,null,"includes rapid charger"]
["Handheld Blower","Echo","ECHO eFORCE","DPB-2501",null,null,549,null,null,null,null,1,null,199.99,null,56,2.5,0.14000000000000001,"No","https://www.echo-usa.com/blowers/dpb-2500#specs",null,null,"includes rapid charger"]
["Handheld Blower","Stihl ","BGA 60","BGA 60",null,null,null,null,null,null,null,1,null,299.99,null,36,5.2,0.18720000000000001,"No","https://rockyseastlongmeadow.stihldealer.net/products/blowers-and-shredder-vacs/battery-blowers/bga60/#specifications_tab",null,"https://www.stihlusa.com/products/batteries-chargers/batteries/ak30/","includes charger "]
["Handheld Blower","Stihl ","BGA 45","BGA 46",null,null,247,null,null,null,null,"Integrated battery ",null,139.99,159.99,null,null,null,"No","https://rockyseastlongmeadow.stihldealer.net/products/blowers-and-shredder-vacs/battery-blowers/bga45/"]
["Handheld Blower","Stihl ","BGA 57","BGA 58",null,null,365,null,null,null,null,1,null,199.99,139.99,36,4,0.14399999999999999,"No","https://rockyseastlongmeadow.stihldealer.net/products/blowers-and-shredder-vacs/battery-blowers/bga57/",null,"https://www.stihlusa.com/products/batteries-chargers/batteries/ak20/"]
["Handheld Blower","Stihl ","BGA 86","BGA 86",null,null,459,null,null,null,null,1,null,769.97,"*Dependent on dealer ",36,9.4,0.33840000000000003,"No","https://rockyseastlongmeadow.stihldealer.net/products/blowers-and-shredder-vacs/battery-blowers/bga86/",null,"https://www.stihlusa.com/products/batteries-chargers/batteries/ap500s/"]
["Chainsaw","Stihl ","MSA 120 C-B","MSA 120 C-B",null,null,null,12,null,null,null,0,null,279.99,139.99,36,4,{"$f":"((P95*Q95)/1000)","v":0.14399999999999999},"No","https://www.stihlusa.com/products/chain-saws/battery-saws/msa120cbq/#specifications",null,"https://www.stihlusa.com/products/batteries-chargers/batteries/ak20/#specifications","could purchase with battery and charger included but would need to find the right dealer "]
["Chainsaw","Stihl ","MSA 220 C-B","MSA 220 C-B",null,null,null,16,null,null,null,1,null,979.97,"AP 500 S only sold separately at select dealers",36,9.4,0.33840000000000003,"No","https://www.stihlusa.com/products/chain-saws/battery-saws/msa220cb/",null,null,"includes charger; other battery capacity and charger options"]
["Chainsaw","Stihl ","MSA 300 C-O","MSA 300 C-O",null,null,null,20,null,null,null,1,null,1379.97,"AP 500 S only sold separately at select dealers",36,9.4,0.33840000000000003,"No","https://www.stihlusa.com/products/chain-saws/battery-saws/msa300co/"]
["Chainsaw","Stihl ","MSA 200 C-B","MSA 200 C-B",null,null,null,14,null,null,null,1,null,939.97,"AP 500 S only sold separately at select dealers",36,9.4,0.33840000000000003,"No","https://www.stihlusa.com/products/chain-saws/battery-saws/msa200cbq/",null,null,"includes charger; comes in different bar lengths; other battery capacity and charger options"]
["Chainsaw","Stihl ","MSA 160 C-B","MSA 160 C-B",null,null,null,14,null,null,null,1,null,689.93,239.99,36,6,0.216,"No","https://www.stihlusa.com/products/chain-saws/battery-saws/msa160cbq/",null,"https://www.stihlusa.com/products/batteries-chargers/batteries/ap300redesign/","includes charger; comes in different bar lengths "]
["Chainsaw","Stihl ","MSA 161 T","MSA 161 T",null,null,null,12,null,null,null,1,null,859.97,299.99,36,7.2,0.25919999999999999,"No","https://www.stihlusa.com/products/chain-saws/battery-saws/msa161t/",null,"https://www.stihlusa.com/products/batteries-chargers/batteries/ap300s/","includes charger"]
["Chainsaw","Stihl ","MSA 220 TC-O","MSA 220 TC-O",null,null,null,14,null,null,null,1,null,1169.97,"AP 500 S only sold separately at select dealers",36,9.4,0.33840000000000003,"No","https://www.stihlusa.com/products/chain-saws/battery-saws/msa220tco/",null,null,"includes charger; comes in different battery sizes "]
["Chainsaw","Stihl ","MSA 140 C-B","MSA 140 C-B",null,null,null,12,null,null,null,0,null,319.99,159.99,36,5.2,0.18720000000000001,"No","https://www.stihlusa.com/products/chain-saws/battery-saws/msa140cbq/",null,"https://www.stihlusa.com/products/batteries-chargers/batteries/ak30/","could purchase with battery and charger included but would need to find the right dealer "]
["Chainsaw","Greenworks ","20\" 3.4kW Chainsaw","2025802 (82CS34-4DP)",null,null,null,20,null,null,65,1,null,599.99,299.99,82,4,{"$f":"((P103*Q103)/1000)*L103","v":0.32800000000000001},"No","https://commercial.greenworkstools.com/collections/chainsaws/products/82cs34-4dp-82v-20-3-4kw-chainsaw-with-1-4-ah-battery-dp-charger",null,"https://commercial.greenworkstools.com/products/gl400bt-82-volt-4ah-bluetooth-capable-battery?_pos=1&_psq=82V+4&_ss=e&_v=1.0","Includes one dual port charger "]
["Chainsaw","Greenworks ","18\" 2.7kW Chainsaw","2025202 (82CS27-4DP)",null,null,null,18,null,null,55,1,null,549.99,299.99,82,4,{"$f":"((P104*Q104)/1000)*L104","v":0.32800000000000001},"No","https://commercial.greenworkstools.com/collections/chainsaws/products/82cs27-4dp-82-volt-18-2-7kw-chainsaw-with-4ah-battery-and-8a-charger-coming-soon",null,"https://commercial.greenworkstools.com/products/gl400bt-82-volt-4ah-bluetooth-capable-battery?_pos=1&_psq=82V+4&_ss=e&_v=1.0","Includes one dual port charger "]
["Chainsaw","Greenworks ","12\" Top-Handle Chainsaw","2013702 (48TH12)",null,null,null,12,null,null,31,1,null,549.99,"Not sold separately ",48,4,0.192,"No","https://commercial.greenworkstools.com/collections/chainsaws/products/48th12-48-volt-12-top-handle-chainsaw-with-battery-and-charger",null,null,"Includes one single port charger "]
["Chainsaw","Greenworks ","16\" 2.4kW Chainsaw","2026002 (82CS24-4DP)",null,null,null,16,null,null,45,1,null,499.99,299.99,82,4,0.32800000000000001,"No","https://commercial.greenworkstools.com/collections/chainsaws/products/82cs24-4dp-82v-16-2-4kw-chainsaw-with-4ah-battery-and-8a-dual-port-charger",null,"https://commercial.greenworkstools.com/products/gl400bt-82-volt-4ah-bluetooth-capable-battery?_pos=1&_psq=82V+4&_ss=e&_v=1.0","Includes one dual port charger "]
["Chainsaw","Greenworks ","82V Chainsaw","2026902 (CS82410)",null,null,null,16,null,null,null,1,null,349.99,"Not sold separately ",82,2,0.16400000000000001,"No","https://commercial.greenworkstools.com/collections/chainsaws/products/82v-chainsaw-with-4ah-battery-and-single-port-charger-cs82410",null,null,"Includes one single port charger "]
["Chainsaw","EGO","Power+ Commercial Series Top-Handle Chainsaw","CSX3003",null,null,null,12,null,null,40,1,null,743.12,286.22666666666601,56,5,0.28000000000000003,"No","https://egopowerplus.com/commercial-top-handle-chainsaw-csx3000/",null,"https://egopowerplus.com/battery-4amp-ba2242t/","Rapid Charger included; compatible with 14 and 16 inch bar and chain too "]
["Chainsaw","EGO","Power+ 16\" Chain Saw (40CC)","CS1613",null,null,null,16,null,null,30,1,null,254.16499999999999,212.49833333333299,56,4,0.224,"No","https://egopowerplus.com/16-inch-chain-saw-40cc/",null,"https://egopowerplus.com/battery-2-5amp-fuel-gauge/","Standard charger included; battery w/fuel gauge; CS1611 comes with 2.5Ah for average $285"]
["Chainsaw","EGO","Power+ 16\" Chain Saw (40CC)","CS1611",null,null,null,16,null,null,30,1,null,259.16500000000002,null,56,2.5,0.14000000000000001,"No","https://egopowerplus.com/16-inch-chain-saw-40cc/",null,"https://egopowerplus.com/battery-2-5amp-fuel-gauge/"]
["Chainsaw","EGO","Power+ 18\" Chain Saw","CS1804",null,null,null,18,null,null,45,1,null,401.662222222222,286.22666666666601,56,5,0.28000000000000003,"No","https://egopowerplus.com/18-inch-chain-saw/",null,"https://egopowerplus.com/battery-5-0-amp-fuel-gauge/","Standard charger included; battery w/fuel gauge"]
["Chainsaw","EGO","Power+ 16\" Chain Saw","CS1604",null,null,null,16,null,null,null,1,null,342.141111111111,286.22666666666601,56,5,0.28000000000000003,"No","https://egopowerplus.com/16-inch-chain-saw/",null,"https://egopowerplus.com/battery-5-0-amp-fuel-gauge/","Standard charger included"]
["Chainsaw","EGO","Power+ 14\" Chain Saw","CS1401",null,null,null,14,null,null,30,1,null,284.61624999999998,172.88571428571399,56,2.5,0.14000000000000001,"No","https://egopowerplus.com/14-inch-chain-saw/",null,"https://egopowerplus.com/battery-2-5amp-fuel-gauge/","Standard charger included; battery w/fuel gauge"]
["Chainsaw","Husqvarna ","T540i XP","12\": 967 86 37‑12\n14\": 967 86 37‑14\n16\": 967 86 37‑16",null,null,null,"12, 14, or 16",null,null,null,0,null,629.99,"Dependent on battery size ",40,null,0,"No","https://www.husqvarna.com/us/chainsaws/t540i-xp-without-battery-and-charger/"]
["Chainsaw","Husqvarna ","350i","970 60 12‑02",null,null,null,18,null,null,null,1,null,499.99,"Dependent on battery size ",36,7.7,0.2772,"No","https://www.husqvarna.com/us/chainsaws/power-axe-350i-with-battery-and-charger/",null,null,"Charger included"]
["Chainsaw","Husqvarna ","535i XP","967 89 38‑74",null,null,null,14,null,null,null,0,null,489.99,"Dependent on battery size ",40,null,0,"No","https://www.husqvarna.com/us/chainsaws/535i-xp/"]
["Chainsaw","Husqvarna ","T535i XP","967 89 39‑72",null,null,null,12,null,null,null,0,null,489.99,"Dependent on battery size ",40,null,0,"No","https://www.husqvarna.com/us/chainsaws/t535i-xp/"]
["Chainsaw","Husqvarna ","120i","967 09 81‑04",null,null,null,14,null,null,null,1,null,259.99,189.99,36,4,0.14399999999999999,"No","https://www.husqvarna.com/us/chainsaws/120i-with-battery-and-charger/",null,"https://www.husqvarna.com/us/battery-series-accessories/battery-bli22/","Charger included"]
["Chainsaw","Husqvarna ","540i XP","967 86 40‑02",null,null,null,14,null,null,null,1,null,999.99,319.99,36,9.4,{"$f":"((P119*Q119)/1000)*L119","v":0.33840000000000003},"No","https://www.husqvarna.com/us/chainsaws/540i-xp-with-battery-and-charger/"]
["Chainsaw","Husqvarna ","540i XP","967 86 40‑03",null,null,null,16,null,null,null,1,null,999.99,319.99,36,9.4,0.33840000000000003,"No","https://www.husqvarna.com/us/chainsaws/540i-xp-with-battery-and-charger/",null,"https://www.husqvarna.com/us/battery-series-accessories/battery-bli300/","Charger included"]
["Chainsaw","Husqvarna ","T540i XP","967 86 37‑02",null,null,null,12,null,null,null,1,null,1049.99,286.39999999999998,36,5,{"$f":"((P121*Q121)/1000)*L121","v":0.18},"No","https://www.husqvarna.com/us/chainsaws/t540i-xp-with-battery-and-charger/"]
["Chainsaw","Husqvarna ","T540i XP","967 86 37‑03",null,null,null,14,null,null,null,1,null,1049.99,286.39999999999998,36,5,0.18,"No","https://www.husqvarna.com/us/chainsaws/t540i-xp-with-battery-and-charger/"]
["Chainsaw","Husqvarna ","T540i XP","967 86 37‑04",null,null,null,16,null,null,null,1,null,1049.99,286.39999999999998,36,5,0.18,"No","https://www.husqvarna.com/us/chainsaws/t540i-xp-with-battery-and-charger/",null,"https://www.husqvarna.com/us/battery-series-accessories/battery-bli200x/"]
["Chainsaw","Echo","ECHO eFORCE","DCS-2500T",null,null,null,12,null,null,null,1,null,569.99,"*Dependent on dealer",56,2.5,0.14000000000000001,"No","https://www.echo-usa.com/chainsaws/dcs-2500t",null,"https://www.echo-usa.com/56v-battery-accessories/2-5ah-lithium-ion-battery","Includes rapid charger; standard charger included for lesser price "]
["Chainsaw","Echo","ECHO eFORCE","DCS-5000",null,null,null,18,null,null,null,1,null,299.99,"*Dependent on dealer",56,5,0.28000000000000003,"No","https://www.echo-usa.com/chainsaws/dcs-5000",null,"https://www.echo-usa.com/56v-battery-accessories/5-0ah-lithium-ion-battery","includes charger "]
["Polesaw","Greenworks ","82V Polesaw ","1408002 -(PS82210)",null,null,null,16,null,null,null,1,null,299.99,"Not sold separately ",82,2,0.16400000000000001,"No","https://commercial.greenworkstools.com/collections/chainsaws/products/82v-polesaw-with-2ah-battery-and-single-port-charger-ps82210",null,null,"Includes one single port charger "]
["Polesaw","Greenworks ","8V/24V Dual-Volt 8\" Pole Saw","1404902 (48PS8)",null,null,null,8,null,null,null,1,null,249.99,"Not sold separately ","48/24",2,null,"No","https://commercial.greenworkstools.com/collections/chainsaws/products/48ps8-48v-24v-dual-volt-8-pole-saw-with-battery-and-charger",null,null,"Charger included"]
["Polesaw","Husqvarna ","530iP4","967 88 46‑11",null,null,null,10,null,null,null,0,null,449.99,"Dependent on battery size ",36,null,0,"No","https://www.husqvarna.com/us/pole-saws/530ip4/"]
["Polesaw","Husqvarna ","530iPT5","967 88 50‑11",null,null,null,10,null,null,null,0,null,549.99,"Dependent on battery size ",36,null,0,"No","https://www.husqvarna.com/us/pole-saws/530ipt5/"]
["Polesaw","Husqvarna ","120iTK4-P","970 51 60‑04",null,null,null,10,null,null,null,1,null,319.99,189.99,36,4,0.14399999999999999,"No","https://www.husqvarna.com/us/pole-saws/120itk4-p-with-battery-and-charger/",null,"https://www.husqvarna.com/us/battery-series-accessories/battery-bli22/"]
["Polesaw","Stihl ","HTA 50","HTA 50",null,null,null,10,null,null,null,1,null,499.99,139.99,36,4,0.14399999999999999,"No","https://www.stihlusa.com/products/pole-pruners/battery-pole-pruners/hta50/",null,"https://www.stihlusa.com/products/batteries-chargers/batteries/ak20/","Charger included"]
["Polesaw","Stihl ","HTA 135","HTA 135",null,null,null,10,null,null,null,1,null,1049.97,299.99,36,7.2,0.25919999999999999,"No","https://www.stihlusa.com/products/pole-pruners/battery-pole-pruners/hta135/",null,"https://www.stihlusa.com/products/batteries-chargers/batteries/ap300s/","Charger included"]
["Polesaw","Stihl ","HTA 135","HTA 135",null,null,null,10,null,null,null,1,null,1199.97,null,36,9.4,0.33840000000000003,"No","https://www.stihlusa.com/products/pole-pruners/battery-pole-pruners/hta135/",null,"https://www.stihlusa.com/products/batteries-chargers/batteries/ap500s/","Charger included"]
["Polesaw","Stihl ","HTA 86","HTA 86",null,null,null,10,null,null,null,1,null,979.97,299.99,36,7.2,{"$f":"((P134*Q134)/1000)*L134","v":0.25919999999999999},"No","https://www.stihlusa.com/products/pole-pruners/battery-pole-pruners/hta86/",null,"https://www.stihlusa.com/products/batteries-chargers/batteries/ap300s/","Charger included"]
["Polesaw","Stihl ","HTA 86","HTA 86",null,null,null,null,null,null,null,1,null,869.97,189.99,36,4.8,0.17279999999999998,"No","https://www.stihlusa.com/products/pole-pruners/battery-pole-pruners/hta86/",null,"https://www.stihlusa.com/products/batteries-chargers/batteries/ap200/"]
["Polesaw","Stihl ","HTA 66","HTA 66",null,null,null,10,null,null,null,1,null,879.97,299.99,36,7.2,{"$f":"((P136*Q136)/1000)*L136","v":0.25919999999999999},"No ","https://www.stihlusa.com/products/pole-pruners/battery-pole-pruners/hta66/",null,"https://www.stihlusa.com/products/batteries-chargers/batteries/ap300s/","Charger included; could also purchase AP 200 battery for lesser price"]
["Polesaw","Stihl ","HTA 66","HTA 66",null,null,null,null,null,null,null,1,null,769.97,189.99,36,4.8,0.17279999999999998,"No","https://www.stihlusa.com/products/pole-pruners/battery-pole-pruners/hta66/",null,"https://www.stihlusa.com/products/batteries-chargers/batteries/ap200/"]
["Hedge Trimmer","Stihl ","HSA 94 T","HSA 94 T",null,null,null,null,"24\"",null,null,1,null,1629.99,1149.99,36,27.4,{"$f":"(P138*Q138)/1000","v":0.98639999999999994},"Yes","https://www.stihlusa.com/products/hedge-trimmers/battery-hedge-trimmers/hsa94t/",null,"https://www.stihlusa.com/products/batteries-chargers/batteries/ar2000l/","This is the backpack battery version; also includes nonbackpack version"]
["Hedge Trimmer","Stihl ","HSA 94 R","HSA 94 R",null,null,null,null,"24\"",null,null,1,null,1629.99,1149.99,36,27.4,0.98639999999999994,"Yes","https://www.stihlusa.com/products/hedge-trimmers/battery-hedge-trimmers/hsa94r/",null,"https://www.stihlusa.com/products/batteries-chargers/batteries/ar2000l/","This is the backpack battery version; also includes nonbackpack version"]
["String Trimmer ","Stihl ","FSA 90 R","FSA 90 R",null,null,null,null,null,"15\"",null,1,null,939.97,null,36,9.4,0.33840000000000003,"No","https://www.stihlusa.com/products/trimmers-and-brushcutters/battery-trimmers/fsa90r/",null,null,"comes with different battery and charger capacities"]
["String Trimmer ","Stihl ","FSA 135 R","FSA 135 R",null,null,null,null,null,"16.5\"",null,1,null,969.97,null,36,9.4,0.33840000000000003,"No","https://www.stihlusa.com/products/trimmers-and-brushcutters/battery-trimmers/fsa135r/",null,null,"comes with different battery and charger capacities"]
["String Trimmer ","Stihl ","FSA 135","FSA 136",null,null,null,null,null,"16.5\"",null,1,null,1059.97,null,36,9.4,0.33840000000000003,"No","https://www.stihlusa.com/products/trimmers-and-brushcutters/battery-trimmers/fsa135/",null,null,"comes with different battery and charger capacities"]
["String Trimmer ","Stihl ","FSA 86 R","FSA 86 R",null,null,null,null,null,"13.8\"",null,1,null,819.97,null,36,9.4,0.33840000000000003,"No","https://www.stihlusa.com/products/trimmers-and-brushcutters/battery-trimmers/fsa86r/",null,null,"comes with different battery and charger capacities"]
["String Trimmer ","Greenworks ","1.5kW String Trimmer","2129602 (82ST15-4DP)",null,null,null,null,null,"16\"",null,1,null,599.99,null,82,4,0.32800000000000001,"No","https://commercial.greenworkstools.com/collections/trimmers-edgers/products/82st15-4dp-82-volt-gen-ii-1-5kw-fm-string-trimmer-with-4ah-battery-and-8a-charger",null,null,"Includes one dual port charger "]
["String Trimmer ","Greenworks ","24-Volt 12\" String Trimmer","2115902 (24T12)",null,null,null,null,null,"12\"",null,1,null,119.99,null,24,null,null,"No","https://commercial.greenworkstools.com/collections/trimmers-edgers/products/24t12-24-volt-12-string-trimmer-with-battery-and-charger"]
["String Trimmer ","Greenworks ","48V/24V Dual-Volt 16\" String Trimmer","2119702 (48T16)",null,null,null,null,null,"16\"",null,1,null,199.99,null,"48/24",2,null,"No","https://commercial.greenworkstools.com/collections/trimmers-edgers/products/48t16-48v-24v-dual-volt-16-string-trimmer-with-battery-and-charger"]
["String Trimmer ","Greenworks ","48V/24V Dual-Volt 15\" String Trimmer","2119602 (48T15)",null,null,null,null,null,"15\"",null,1,null,159.99,null,"48/24",2,null,"No","https://commercial.greenworkstools.com/collections/trimmers-edgers/products/48t15-48v-24v-dual-volt-15-string-trimmer-with-battery-and-charger"]
["String Trimmer ","Greenworks ","1.2kW String Trimmer","2131802 (82ST12-4DP)",null,null,null,null,null,"16\"",null,1,null,569.99,null,82,4,{"$f":"(P148*Q148)/1000","v":0.32800000000000001},"No","https://commercial.greenworkstools.com/collections/trimmers-edgers/products/82st12-82v-gen-ii-1-2kw-string-trimmer-tool-only",null,null,"Includes one dual port charger "]
["String Trimmer ","Greenworks ","16\" String Trimmer","2132302 (ST82210)",null,null,null,null,null,"16\"",null,1,null,249.99,null,82,2,{"$f":"(P149*Q149)/1000","v":0.16400000000000001},"No","https://commercial.greenworkstools.com/collections/trimmers-edgers/products/82v-16-string-trimmer-with-2ah-battery-and-single-port-charger-st82210",null,null,"Includes one single port charger "]
["String Trimmer ","EGO","Power+ Powerload String Trimmer with Line IQ","ST1623T",null,null,null,null,null,"16\"",null,1,null,312.64333333333298,null,56,4,{"$f":"(P150*Q150)/1000","v":0.224},"No","https://egopowerplus.com/string-trimmer-powerload-line-iq/",null,null,"Includes charger "]
["String Trimmer ","EGO","Power+ 15\" Powerload String Timmer with Telescopic Aluminum Shaft ","ST1511T",null,null,null,null,null,"15\"",null,1,null,232.42250000000001,null,56,2.5,{"$f":"(P151*Q151)/1000","v":0.14000000000000001},"No","https://egopowerplus.com/15-inch-string-trimmer-powerload-aluminum-st1511t/",null,null,"Includes standard charger"]
["String Trimmer ","EGO","Power+ 15\" String Trimmer with Powerload","ST1524",null,null,null,null,null,"15\"",null,1,null,355.11,null,56,5,{"$f":"(P152*Q152)/1000","v":0.28000000000000003},"No","https://egopowerplus.com/15-inch-string-trimmer-powerload/",null,null,"Includes standard charger; selected purchase comes with carbon fiber straight shaft but other options include different shafts, materials, and battery sizes "]
["String Trimmer ","EGO","Commercial Backpack Series String Trimmer","STX3800",null,null,null,null,null,"15\"",null,1,null,450.86142857142801,null,null,null,null,"No","https://egopowerplus.com/commercial-string-trimmer/"]
["String Trimmer ","EGO","Power+ 15\" String Trimmer with Rapid Reload","ST1502SA",null,null,null,null,null,"15\"",null,0,null,425.04833333333301,null,56,2.5,{"$f":"(P154*Q154)/1000","v":0.14000000000000001},"No","https://egopowerplus.com/15-inch-string-trimmer-rapid-reload/",null,null,"Includes standard charger; other battery and shaft orientations available "]
["String Trimmer ","EGO","Power+ 15” Rear Motor String Trimmer Kit","ST1534",null,null,null,null,null,"15\"",null,1,null,424.796666666666,199.95,36,4,0.14399999999999999,"No","https://egopowerplus.com/power-15-rear-motor-string-trimmer-with-rapid-reload/",null,null,"Includes standard charger"]
["String Trimmer ","Husqvarna","525iLST","970 55 19‑01",null,null,null,null,null,"18.1\"",null,0,null,399.99,319.99,36,9.4,0.33840000000000003,"No","https://www.husqvarna.com/us/string-trimmers/525ilst/",null,"https://www.husqvarna.com/us/battery-series-accessories/battery-bli300/","compatible with BLi 200, BLi 300, and BLi 950x; Bli 300 used for extra battery and total machine battery"]
["String Trimmer ","Husqvarna","520iLX","967 91 61‑12",null,null,null,null,null,"16\"",null,0,null,299.99,319.99,36,9.4,0.33840000000000003,"No","https://www.husqvarna.com/us/string-trimmers/520ilx/",null,"https://www.husqvarna.com/us/battery-series-accessories/battery-bli300/","Bli 300 used for extra battery and total machine battery"]
["String Trimmer ","Echo","ECHO eFORCE","DSRM-2600",null,null,null,null,null,"17\"",null,1,null,499.99,null,56,5,0.28000000000000003,"No","https://www.echo-usa.com/trimmers-brushcutters/dsrm-2600",null,null,"includes rapid charger; includes standard charger for lesser price"]
["String Trimmer ","Echo","ECHO eFORCE","DSRM-2600U",null,null,null,null,null,"17\"",null,1,null,549.99,null,56,5,0.28000000000000003,"No","https://www.echo-usa.com/trimmers-brushcutters/dsrm-2600u",null,null,"includes rapid charger; includes standard charger for lesser price"]
["String Trimmer ","Echo","ECHO eFORCE","DSRM-2100",null,null,null,null,null,"14\" or 16\"",null,1,null,199.99,null,56,2.5,0.14000000000000001,"No","https://www.echo-usa.com/trimmers-brushcutters/dsrm-2100",null,null,"includes charger "]
["Lawn Edger ","Husqvarna","525iES","970 55 20‑01",null,null,null,null,null,null,null,0,null,499.99,null,null,null,{"$f":"(P161*Q161)/1000","v":0},"No","https://www.husqvarna.com/us/lawn-edgers/525ies/",null,null,"Compatible with all BLi 36V batteries and chargers "]
["Lawn Edger ","Husqvarna","525iECS","970 55 21-01",null,null,null,null,null,null,null,0,null,429.99,null,null,null,null,"No","https://www.husqvarna.com/us/lawn-edgers/525iecs/"]
["Lawn Edger ","EGO","Power+ 8\" Edger & Power Head","ME0801",null,null,null,null,null,null,null,1,null,334,null,56,2.5,null,"No","https://egopowerplus.com/multi-head-edger-combo/",null,null,"Includes standard charger, compatible with any EGO 56V battery "]
["Lawn Edger ","Greenworks ","82V Edger","2702702 (82ES15-4DP)",null,null,null,null,null,"22\"",null,1,null,599.99,null,82,4,{"$f":"(P164*Q164)/1000","v":0.32800000000000001},"No","https://commercial.greenworkstools.com/collections/trimmers-edgers/products/82es15-4dp-82-volt-gen-ii-edger-with-4ah-battery-and-8a-charger-coming-soon",null,null,"Includes one dual port charger "]
["Lawn Edger ","Stihl ","FCA 135","FCA 135",null,null,null,null,null,null,null,1,null,929.97,null,36,9.4,{"$f":"(P165*Q165)/1000","v":0.33840000000000003},"No","https://www.stihlusa.com/products/edgers/battery-edgers/fca135/",null,null,"comes with different battery and charger capacities"]
["Lawn Edger ","Stihl ","FCA 140","FCA 141",null,null,null,null,null,null,null,1,null,1009.97,null,36,9.4,{"$f":"(P166*Q166)/1000","v":0.33840000000000003},"No","https://www.stihlusa.com/products/edgers/battery-edgers/fca140/#specifications",null,null,"comes with different battery and charger capacities"]
["Hedge Trimmer","Stihl ","HLA 66","HLA 66",null,null,null,null,"20\"",null,null,1,null,759.97,299.99,36,7.2,{"$f":"(P167*Q167)/1000","v":0.25919999999999999},null,"https://www.stihlusa.com/products/hedge-trimmers/battery-hedge-trimmers/hla66/",null,"https://www.stihlusa.com/products/batteries-chargers/batteries/ap300s/","includes charger "]
["Hedge Trimmer","Stihl ","HLA 135 (145°)","HLA 135 (145°)",null,null,null,null,"24\"",null,null,1,null,889.97,299.99,36,7.2,0.25919999999999999,"No","https://www.stihlusa.com/products/hedge-trimmers/battery-hedge-trimmers/hla135/",null,null,"includes charger "]
["Hedge Trimmer","Stihl ","HLA 135 K (145°)","HLA 135 K (145°)",null,null,null,null,"24\"",null,null,1,null,859.97,299.99,36,7.2,0.25919999999999999,"No","https://www.stihlusa.com/products/hedge-trimmers/battery-hedge-trimmers/hla135k/",null,"https://www.stihlusa.com/products/batteries-chargers/batteries/ap300s/","includes other battery options "]
["Hedge Trimmer","Stihl ","HLA 135 K (0°)","HLA 135 K (0°)",null,null,null,null,"24\"",null,null,1,null,839.97,299.99,36,7.2,0.25919999999999999,"No","https://www.stihlusa.com/products/hedge-trimmers/battery-hedge-trimmers/hla135k0/",null,"https://www.stihlusa.com/products/batteries-chargers/batteries/ap300s/","includes other battery options "]
["Hedge Trimmer","Stihl ","HSA 100","HSA 100",null,null,null,null,"23.6\"",null,null,0,null,339.99,189.99,36,4.8,0.17279999999999998,"No","https://www.stihlusa.com/products/hedge-trimmers/battery-hedge-trimmers/hsa100/",null,"https://www.stihlusa.com/products/batteries-chargers/batteries/ap200/","no included battery option"]
["Hedge Trimmer","Stihl ","HLA 86","HLA 86",null,null,null,null,"20\"",null,null,1,null,889.97,299.99,36,7.2,0.25919999999999999,"No","https://www.stihlusa.com/products/hedge-trimmers/battery-hedge-trimmers/hla86/",null,"https://www.stihlusa.com/products/batteries-chargers/batteries/ap300s/","includes other battery options "]
["Hedge Trimmer","Stihl ","HSA 130 T","HSA 130 T",null,null,null,null,"24\"",null,null,0,null,549.99,null,null,null,null,"No","https://www.stihlusa.com/products/hedge-trimmers/battery-hedge-trimmers/hsa130t/",null,null,"no included battery option"]
["Hedge Trimmer","Stihl ","HSA 130 R","HSA 130 R",null,null,null,null,"24\"",null,null,0,null,549.99,null,null,null,null,"No","https://www.stihlusa.com/products/hedge-trimmers/battery-hedge-trimmers/hsa130r/",null,null,"no included battery option"]
["Hedge Trimmer","Greenworks ","82V Short Pole Hedge Trimmer","2306902 (82PH30F-25DP)",null,null,null,null,"24\"",null,null,1,null,599.99,null,82,2.5,{"$f":"(P175*Q175)/1000","v":0.20499999999999999},"No","https://commercial.greenworkstools.com/collections/hedge-trimmers/products/82ph30f-25dp-82-volt-gen-ii-short-pole-hedge-trimmer-with-2-5ah-battery-and-8a-charger-coming-soon",null,null,"Includes one dual port charger "]
["Hedge Trimmer","Greenworks ","26\" Hedge Trimmer","2209402 (48HT26)",null,null,null,null,"26\"",null,null,1,null,399.99,null,48,4,{"$f":"(P176*Q176)/1000","v":0.192},"No","https://commercial.greenworkstools.com/collections/hedge-trimmers/products/48ht26-48-volt-26-hedge-trimmer-with-battery-and-charger",null,null,"Includes one single port charger "]
["Hedge Trimmer","Greenworks ","22\" Hedge Trimmer","2208902 (24H20)",null,null,null,null,"22\"",null,null,1,null,119.99,null,24,2,{"$f":"(P177*Q177)/1000","v":4.8000000000000001E-2},"No","https://commercial.greenworkstools.com/collections/hedge-trimmers/products/24h20-24-volt-22-hedge-trimmer-with-battery-and-charger",null,null,"Includes one single port charger "]
["Hedge Trimmer","Greenworks ","24\" Dual-Volt Hedge Trimmer","2210902 (48HT24)",null,null,null,null,"24\"",null,null,1,null,199.99,null,"48/24",2,null,"No","https://commercial.greenworkstools.com/collections/hedge-trimmers/products/48ht24-48v-24v-24-dual-volt-hedge-trimmer"]
["Hedge Trimmer","Greenworks ","Dual-Volt Pole Hedge Trimmer","2304502 (48PH18)",null,null,null,null,"20\"",null,null,1,null,249.99,null,"48/25",3,null,"No","https://commercial.greenworkstools.com/collections/hedge-trimmers/products/48ph18-48v-24v-20-dual-volt-pole-hedge-trimmer"]
["Hedge Trimmer","Greenworks ","24\" Hedge Trimmer","2215402 (HT82210)",null,null,null,null,"24\"",null,null,1,null,249.99,null,82,2,{"$f":"(P180*Q180)/1000","v":0.16400000000000001},"No","https://commercial.greenworkstools.com/collections/hedge-trimmers/products/82v-24-hedge-trimmer-with-2ah-battery-and-single-port-charger-ht82210",null,null,"Includes one single port charger "]
["Hedge Trimmer","EGO","Power+ 26” Hedge Trimmer","HT2601",null,null,null,null,"26\"",null,null,1,null,249.19800000000001,null,56,2.5,{"$f":"(P181*Q181)/1000","v":0.14000000000000001},"No","https://egopowerplus.com/26-inch-hedge-trimmer-ht2601/",null,null,"Includes charger "]
["Hedge Trimmer","EGO","Power+ 25\" Hedge Trimmer","HT2501",null,null,null,null,"25\"",null,null,1,null,345.13857142857103,null,56,2.5,{"$f":"(P182*Q182)/1000","v":0.14000000000000001},"No","https://egopowerplus.com/25inch-hedge-trimmer-ht2501/",null,null,"Includes standard charger; battery with fuel gauge"]
["Hedge Trimmer","EGO","Power+ Brushless Hedge Trimmer ","HT2411",null,null,null,null,"24\"",null,null,1,null,218.60749999999999,null,56,2.5,{"$f":"(P183*Q183)/1000","v":0.14000000000000001},"No","https://egopowerplus.com/brushless-hedge-trimmer/",null,null,"Includes standard charger"]
["Hedge Trimmer","EGO","Power+ Hedge Trimmer","HT2400",null,null,null,null,"24\"",null,null,0,null,127.04,null,null,null,null,"No","https://egopowerplus.com/hedge-trimmer/"]
["Hedge Trimmer","EGO","Commerical Backpack Series Hedge Trimmer","HTX6500",null,null,null,null,"25\"",null,null,0,null,448.86428571428502,null,null,null,null,"No","https://egopowerplus.com/commercial-hedge-trimmer-htx6500/"]
["Hedge Trimmer","EGO","Power+ Commercial Pole Hedge Attachment ","PTX5100",null,null,null,null,"22\"",null,null,0,null,331.99374999999998,null,null,null,null,"No","https://egopowerplus.com/power-commercial-pole-hedge-attachment-ptx5100/"]
["Hedge Trimmer ","Husqvarna","520iHT4","967 97 12‑04",null,null,null,null,"22\"",null,null,0,null,499.99,null,null,null,null,"No","https://www.husqvarna.com/us/hedge-trimmers/520iht4/",null,null,"Compatible with all BLi batteries and chargers "]
["Hedge Trimmer ","Husqvarna","520iHE3","967 91 58‑14",null,null,null,null,"22\"",null,null,0,null,469.99,null,null,null,null,"No","https://www.husqvarna.com/us/hedge-trimmers/520ihe3/",null,null,"Compatible with all BLi batteries and chargers "]

{"sheet":"Results Graphs","index":7,"n_rows":103,"n_cols":13,"rows_kept":103,"cut":false,"hidden":true,"merged":[[12,3,12,8],[0,0,0,12],[1,0,1,12],[2,0,2,1],[2,11,2,12],[3,0,3,1],[3,2,3,10],[3,11,3,12],[4,0,4,1],[4,11,4,12],[10,0,10,1],[10,11,10,12],[11,5,11,7],[25,0,25,1],[25,11,25,12],[13,3,14,8],[13,9,14,9],[14,0,14,1],[14,11,14,12],[15,3,15,8],[16,11,17,12],[17,0,17,1],[17,2,17,10],[18,5,18,7],[21,0,21,1],[21,11,21,12],[23,0,23,1],[23,11,23,12],[71,7,71,8],[28,11,28,12],[58,6,61,8],[62,7,62,8],[63,7,63,8],[64,7,64,8],[65,7,65,8],[66,7,66,8],[67,7,67,8],[68,7,68,8],[69,7,69,8],[70,7,70,8],[102,0,102,4],[94,5,95,6],[94,8,95,9],[98,0,98,12],[99,0,99,4],[100,0,100,4],[101,0,101,4]]}
["Economic and Environmental Calculator"]
["This tool is provided to generate estimates only, the Commonwealth makes no guarantees about equipment savings or years of equipment performance"]
["User Input Data: Red Text Below",null,null,null,null,null,null,null,null,null,null,"User Input Data: Red Text Below"]
["Commercial Battery-Powered",null,"ENVIRONMENTAL RESULTS",null,null,null,null,null,null,null,null,"Commercial Gasoline"]
["Equipment Costs",null,null,null,null,null,null,null,null,null,null,"Equipment Costs"]
["Price of equipment",15000,null,null,null,null,null,null,null,null,null,"Price of equipment",750]
["(If applicable) Additional battery cost",0,null,null,null,null,null,null,null,null,null,"(If applicable) Additional gas can cost",0]
["Number of additional batteries",0,null,null,null,null,null,null,null,null,null,"Number of additional gas cans",0]
["Optional add-ons & extra costs",0,null,null,null,null,null,null,null,null,null,"Optional add-ons & extra costs",0]
["Prompt pay discount (PPD)",0.01,null,null,null,null,null,null,null,null,null,"Prompt pay discount (PPD)",0.01]
["Equipment Specifications",null,null,null,null,null,null,null,null,null,null,"Equipment Specifications"]
["Battery size (kWh)",1,null,null,null,"See More Information Here",null,null,null,null,null,"Equipment Type (select from list)","Zero-Turn Mower"]
["Number of batteries",1,null,"Estimated Annual GHG (CO2) Reduction %",null,null,null,null,null,{"$f":"(M25-B25)/M25","v":0.99754477540785325},null,"Horsepower",10]
["Efficiency/charging loss",0.1,null,"Estimated Annual GHG Emissions (CO2) Reduction (Metric Tonnes)",null,null,null,null,null,{"$f":"M25-B25","v":17.386374176018943},null,"Gallons of gasoline per hour",1]
["Electricity Information",null,null,null,null,null,null,null,null,null,null,"Fuel Information"]
["Electricity cost ($/per kWh)",0.14000000000000001,null,"Equivalent Numbers of Cars Removed from the Road (comparing CO2 emissions)",null,null,null,null,null,{"$f":"J14/'Appendix - Economic Model Data'!B77","v":3.6602893002145143},null,"Price per gallon of gas",3]
["Portion of facility electricity from renewable generation",0.2,null,null,null,null,null,null,null,null,null,"Hours of Operation"]
["Hours of Operation",null,"ECONOMIC RESULTS"]
["Hours per day",8,null,null,null,"See More Information Here",null,null,null,null,null,"Hours per day",8]
["Days per month",4,null,null,null,null,null,null,null,null,null,"Days per month",4]
["Months per year",6,null,null,null,null,null,null,null,null,null,"Months per year",6]
["Warranty",null,null,null,null,null,null,null,null,null,null,"Warranty"]
["Length of warranty (years)",2,null,null,null,null,null,null,null,null,null,"Length of warranty (years)",2]
["ENVIRONMENTAL RESULTS",null,null,null,null,null,null,null,null,null,null,"ENVIRONMENTAL RESULTS"]
["Annual Carbon Dioxide (CO2) Emissions (Metric Tonnes)",{"$f":"(1-B17)*(((B29*B33))*'Appendix - Economic Model Data'!E73)","v":4.2792518689475582E-2},null,null,null,null,null,null,null,null,null,"Annual Carbon Dioxide (CO2) Emissions (Metric Tonnes)",{"$f":"'Appendix - Economic Model Data'!F124","v":17.429166694708417}]
["ECONOMIC RESULTS",null,null,null,null,null,null,null,null,null,null,"ECONOMIC RESULTS"]
["Prompt pay discount (PPD)",{"$f":"((+B6+(B7*B8)+B9)*B10)","v":150},null,null,null,null,null,null,null,null,null,"Prompt pay discount (PPD)",{"$f":"((+M6+(M7*M8)+M9)*M10)","v":7.5}]
["Total initial cost",{"$f":"((+B6+(B7*B8)+B9)-B27)","v":14850},null,null,null,null,null,null,null,null,null,"Total initial cost",{"$f":"((+M6+(M7*M8)+M9)-M27)","v":742.5}]
["kWh used per hour",{"$f":"((B12*B13)+((B12*B13)*B14))","v":1.1000000000000001}]
["Total electricity cost per hour",{"$f":"(+B16*B29)","v":0.15400000000000003},null,null,null,null,null,null,null,null,null,"Cost of gasoline per hour",{"$f":"(+M16*M14)","v":3}]
["Cost of maintenance per hour (blade sharpening and replacement)",{"$f":"('Appendix - Economic Model Data'!B18)","v":0.60576923076923084},null,null,null,null,null,null,null,null,null,"Cost of maintenance per hour (blade sharpening and replacement; oil changes; parts, filters, belts,  labor)",{"$f":"('Appendix - Economic Model Data'!I18)","v":1.737089160839161}]
["Total operating cost per hour",{"$f":"(+B30+B31)","v":0.75976923076923086},null,null,null,null,null,null,null,null,null,"Total operating cost per hour",{"$f":"+M30+M31","v":4.7370891608391608}]
["Hours per year",{"$f":"((B19*B20)*B21)","v":192},null,null,null,null,null,null,null,null,null,"Hours per year",{"$f":"((M19*M20)*M21)","v":192}]
["Annual operating costs",{"$f":"+B32*B33","v":145.87569230769233},null,null,null,null,null,null,null,null,null,"Annual operating costs",{"$f":"+M32*M33","v":909.52111888111881}]
["Amortized cost per year over warranty period",{"$f":"((B28+B34)/B23)","v":7497.9378461538463},null,null,null,null,null,null,null,null,null,"Amortized cost per year over warranty period",{"$f":"(M28+M34)/M23","v":826.0105594405594}]
[]
[]
[]
[]
[]
[]
[]
[]
[]
[]
[]
[]
[]
[]
[]
[]
[]
[]
[]
[]
[]
[]
[]
[null,null,null,null,null,null,"Estimated Battery-Powered Electric Equipment Cost Benefit"]
[]
[]
[]
[null,null,null,null,null,null,{"$f":"'Appendix - Economic Model Data'!B43","v":"Year 1"},{"$f":"'Appendix - Economic Model Data'!C43","v":3331.1728136503498}]
[null,null,null,null,null,null,{"$f":"'Appendix - Economic Model Data'!B44","v":"Year 2"},{"$f":"'Appendix - Economic Model Data'!C44","v":8586.3456273006996}]
[null,null,null,null,null,null,{"$f":"'Appendix - Economic Model Data'!B45","v":"Year 3"},{"$f":"'Appendix - Economic Model Data'!C45","v":13841.518440951049}]
[null,null,null,null,null,null,{"$f":"'Appendix - Economic Model Data'!B46","v":"Year 4"},{"$f":"'Appendix - Economic Model Data'!C46","v":19096.691254601399}]
[null,null,null,null,null,null,{"$f":"'Appendix - Economic Model Data'!B47","v":"Year 5"},{"$f":"'Appendix - Economic Model Data'!C47","v":24351.864068251743}]
[null,null,null,null,null,null,{"$f":"'Appendix - Economic Model Data'!B48","v":"Year 6"},{"$f":"'Appendix - Economic Model Data'!C48","v":29607.036881902091}]
[null,null,null,null,null,null,{"$f":"'Appendix - Economic Model Data'!B49","v":"Year 7"},{"$f":"'Appendix - Economic Model Data'!C49","v":34862.209695552439}]
[null,null,null,null,null,null,{"$f":"'Appendix - Economic Model Data'!B50","v":"Year 8"},{"$f":"'Appendix - Economic Model Data'!C50","v":40117.382509202784}]
[null,null,null,null,null,null,{"$f":"'Appendix - Economic Model Data'!B51","v":"Year 9"},{"$f":"'Appendix - Economic Model Data'!C51","v":45372.555322853128}]
[null,null,null,null,null,null,{"$f":"'Appendix - Economic Model Data'!B52","v":"Year 10"},{"$f":"'Appendix - Economic Model Data'!C52","v":50627.728136503472}]
[]
[]
[]
[]
[]
[]
[]
[]
[]
[]
[]
[]
[]
[]
[]
[]
[]
[]
[]
[]
[]
[]
[null,null,null,null,null,"Battery-Powered Warranty Period:",null,null,"Gasoline Warranty Period:"]
[]
[null,null,null,null,null,{"$f":"B23","v":2},"Year(s)",null,{"$f":"M23","v":2},"Year(s)"]
[]
["More Information & Links"]
["• FAC88 Contract User Guide",null,null,null,null,"https://www.mass.gov/doc/fac88/download"]
["• Environmentally Preferable Products Program Website",null,null,null,null,"https://www.mass.gov/environmentally-preferable-products-epp-procurement-programs"]
["• Leading by Example Program Website",null,null,null,null,"https://www.mass.gov/leading-by-example-program"]
["• US EPA: Exhaust Emission Factors\n for Nonroad Engine Modeling - Spark Ignition ",null,null,null,null,"https://nepis.epa.gov/Exe/ZyPDF.cgi/P10081YF.PDF?Dockey=P10081YF.PDF"]

{"sheet":"Original Calculator","index":8,"n_rows":103,"n_cols":13,"rows_kept":103,"cut":false,"hidden":true,"merged":[[102,0,102,4],[101,0,101,4],[23,11,23,12],[23,0,23,1],[99,0,99,4],[100,0,100,4],[28,11,28,12],[25,0,25,1],[25,11,25,12],[66,7,66,8],[62,7,62,8],[69,7,69,8],[70,7,70,8],[71,7,71,8],[58,6,61,8],[63,7,63,8],[64,7,64,8],[98,0,98,12],[21,0,21,1],[21,11,21,12],[65,7,65,8],[67,7,67,8],[68,7,68,8],[94,5,95,6],[94,8,95,9],[18,5,18,7],[0,0,0,12],[2,0,2,1],[2,11,2,12],[3,0,3,1],[3,11,3,12],[1,0,1,12],[3,2,3,10],[10,0,10,1],[17,2,17,10],[10,11,10,12],[16,11,17,12],[12,3,12,8],[13,3,14,8],[15,3,15,8],[11,5,11,7],[4,0,4,1],[4,11,4,12],[14,0,14,1],[17,0,17,1],[14,11,14,12],[13,9,14,9]]}
["Economic and Environmental Calculator"]
["This tool is provided to generate estimates only, the Commonwealth makes no guarantees about equipment savings or years of equipment performance"]
["User Input Data: Red Text Below",null,null,null,null,null,null,null,null,null,null,"User Input Data: Red Text Below"]
["Commercial Battery-Powered",null,"ENVIRONMENTAL RESULTS",null,null,null,null,null,null,null,null,"Commercial Gasoline"]
["Equipment Costs",null,null,null,null,null,null,null,null,null,null,"Equipment Costs"]
["Price of equipment",5000,null,null,null,null,null,null,null,null,null,"Price of equipment",750]
["(If applicable) Additional battery cost",0,null,null,null,null,null,null,null,null,null,"(If applicable) Additional gas can cost",0]
["Number of additional batteries",0,null,null,null,null,null,null,null,null,null,"Number of additional gas cans",0]
["Optional add-ons & extra costs",0,null,null,null,null,null,null,null,null,null,"Optional add-ons & extra costs",0]
["Prompt pay discount (PPD)",0.01,null,null,null,null,null,null,null,null,null,"Prompt pay discount (PPD)",0.01]
["Equipment Specifications",null,null,null,null,null,null,null,null,null,null,"Equipment Specifications"]
["Battery size (kWh)",1,null,null,null,"See More Information Here",null,null,null,null,null,"Equipment Type (select from list)","Zero-Turn Mower"]
["Number of batteries",1,null,"Estimated Annual GHG (CO2) Reduction %",null,null,null,null,null,{"$f":"(M25-B25)/M25","v":0.99754477540785325},null,"Horsepower",25]
["Efficiency/charging loss",0.1,null,"Estimated Annual GHG Emissions (CO2) Reduction (Metric Tonnes)",null,null,null,null,null,{"$f":"M25-B25","v":17.386374176018943},null,"Gallons of gasoline per hour",1]
["Electricity Information",null,null,null,null,null,null,null,null,null,null,"Fuel Information"]
["Electricity cost ($/per kWh)",0.14000000000000001,null,"Equivalent Numbers of Cars Removed from the Road (comparing CO2 emissions)",null,null,null,null,null,{"$f":"J14/'Appendix - Economic Model Data'!B77","v":3.6602893002145143},null,"Price per gallon of gas",3]
["Portion of facility electricity from renewable generation",0.2,null,null,null,null,null,null,null,null,null,"Hours of Operation"]
["Hours of Operation",null,"ECONOMIC RESULTS"]
["Hours per day",8,null,null,null,"See More Information Here",null,null,null,null,null,"Hours per day",8]
["Days per month",4,null,null,null,null,null,null,null,null,null,"Days per month",4]
["Months per year",6,null,null,null,null,null,null,null,null,null,"Months per year",6]
["Warranty",null,null,null,null,null,null,null,null,null,null,"Warranty"]
["Length of warranty (years)",2,null,null,null,null,null,null,null,null,null,"Length of warranty (years)",2]
["ENVIRONMENTAL RESULTS",null,null,null,null,null,null,null,null,null,null,"ENVIRONMENTAL RESULTS"]
["Annual Carbon Dioxide (CO2) Emissions (Metric Tonnes)",{"$f":"(1-B17)*(((B29*B33))*'Appendix - Economic Model Data'!E73)","v":4.2792518689475582E-2},null,null,null,null,null,null,null,null,null,"Annual Carbon Dioxide (CO2) Emissions (Metric Tonnes)",{"$f":"'Appendix - Economic Model Data'!F124","v":17.429166694708417}]
["ECONOMIC RESULTS",null,null,null,null,null,null,null,null,null,null,"ECONOMIC RESULTS"]
["Prompt pay discount (PPD)",{"$f":"((+B6+(B7*B8)+B9)*B10)","v":50},null,null,null,null,null,null,null,null,null,"Prompt pay discount (PPD)",{"$f":"((+M6+(M7*M8)+M9)*M10)","v":7.5}]
["Total initial cost",{"$f":"((+B6+(B7*B8)+B9)-B27)","v":4950},null,null,null,null,null,null,null,null,null,"Total initial cost",{"$f":"((+M6+(M7*M8)+M9)-M27)","v":742.5}]
["kWh used per hour",{"$f":"((B12*B13)+((B12*B13)*B14))","v":1.1000000000000001}]
["Total electricity cost per hour",{"$f":"(+B16*B29)","v":0.15400000000000003},null,null,null,null,null,null,null,null,null,"Cost of gasoline per hour",{"$f":"(+M16*M14)","v":3}]
["Cost of maintenance per hour (blade sharpening and replacement)",{"$f":"('Appendix - Economic Model Data'!B18)","v":0.60576923076923084},null,null,null,null,null,null,null,null,null,"Cost of maintenance per hour (blade sharpening and replacement; oil changes; parts, filters, belts,  labor)",{"$f":"('Appendix - Economic Model Data'!I18)","v":1.737089160839161}]
["Total operating cost per hour",{"$f":"(+B30+B31)","v":0.75976923076923086},null,null,null,null,null,null,null,null,null,"Total operating cost per hour",{"$f":"+M30+M31","v":4.7370891608391608}]
["Hours per year",{"$f":"((B19*B20)*B21)","v":192},null,null,null,null,null,null,null,null,null,"Hours per year",{"$f":"((M19*M20)*M21)","v":192}]
["Annual operating costs",{"$f":"+B32*B33","v":145.87569230769233},null,null,null,null,null,null,null,null,null,"Annual operating costs",{"$f":"+M32*M33","v":909.52111888111881}]
["Amortized cost per year over warranty period",{"$f":"((B28+B34)/B23)","v":2547.9378461538463},null,null,null,null,null,null,null,null,null,"Amortized cost per year over warranty period",{"$f":"(M28+M34)/M23","v":826.0105594405594}]
[]
[]
[]
[]
[]
[]
[]
[]
[]
[]
[]
[]
[]
[]
[]
[]
[]
[]
[]
[]
[]
[]
[]
[null,null,null,null,null,null,"Estimated Battery-Powered Electric Equipment Cost Benefit"]
[]
[]
[]
[null,null,null,null,null,null,{"$f":"'Appendix - Economic Model Data'!B43","v":"Year 1"},{"$f":"'Appendix - Economic Model Data'!C43","v":3331.1728136503498}]
[null,null,null,null,null,null,{"$f":"'Appendix - Economic Model Data'!B44","v":"Year 2"},{"$f":"'Appendix - Economic Model Data'!C44","v":8586.3456273006996}]
[null,null,null,null,null,null,{"$f":"'Appendix - Economic Model Data'!B45","v":"Year 3"},{"$f":"'Appendix - Economic Model Data'!C45","v":13841.518440951049}]
[null,null,null,null,null,null,{"$f":"'Appendix - Economic Model Data'!B46","v":"Year 4"},{"$f":"'Appendix - Economic Model Data'!C46","v":19096.691254601399}]
[null,null,null,null,null,null,{"$f":"'Appendix - Economic Model Data'!B47","v":"Year 5"},{"$f":"'Appendix - Economic Model Data'!C47","v":24351.864068251743}]
[null,null,null,null,null,null,{"$f":"'Appendix - Economic Model Data'!B48","v":"Year 6"},{"$f":"'Appendix - Economic Model Data'!C48","v":29607.036881902091}]
[null,null,null,null,null,null,{"$f":"'Appendix - Economic Model Data'!B49","v":"Year 7"},{"$f":"'Appendix - Economic Model Data'!C49","v":34862.209695552439}]
[null,null,null,null,null,null,{"$f":"'Appendix - Economic Model Data'!B50","v":"Year 8"},{"$f":"'Appendix - Economic Model Data'!C50","v":40117.382509202784}]
[null,null,null,null,null,null,{"$f":"'Appendix - Economic Model Data'!B51","v":"Year 9"},{"$f":"'Appendix - Economic Model Data'!C51","v":45372.555322853128}]
[null,null,null,null,null,null,{"$f":"'Appendix - Economic Model Data'!B52","v":"Year 10"},{"$f":"'Appendix - Economic Model Data'!C52","v":50627.728136503472}]
[]
[]
[]
[]
[]
[]
[]
[]
[]
[]
[]
[]
[]
[]
[]
[]
[]
[]
[]
[]
[]
[]
[null,null,null,null,null,"Battery-Powered Warranty Period:",null,null,"Gasoline Warranty Period:"]
[]
[null,null,null,null,null,{"$f":"B23","v":2},"Year(s)",null,{"$f":"M23","v":2},"Year(s)"]
[]
["More Information & Links"]
["• FAC88 Contract User Guide",null,null,null,null,"https://www.mass.gov/doc/fac88/download"]
["• Environmentally Preferable Products Program Website",null,null,null,null,"https://www.mass.gov/environmentally-preferable-products-epp-procurement-programs"]
["• Leading by Example Program Website",null,null,null,null,"https://www.mass.gov/leading-by-example-program"]
["• US EPA: Exhaust Emission Factors\n for Nonroad Engine Modeling - Spark Ignition ",null,null,null,null,"https://nepis.epa.gov/Exe/ZyPDF.cgi/P10081YF.PDF?Dockey=P10081YF.PDF"]

{"sheet":"Appendix - Gas DF Values","index":9,"n_rows":328,"n_cols":20,"rows_kept":328,"cut":false,"hidden":false,"merged":[]}
["Product","Manufacturer","Name","SKU/model number","Blade size (mowers)","Zero Turn?","Air Volume (cubic ft/min)","Bar Length (in)","Cutting Width ","Blade Length ","Cost","Horsepower","Fuel Capacity (gal)","Fuel Capacity (oz)","MPH","Displacement ","Gallons of gas used per hour","Source","Price Source","Additional Notes"]
["Riding Mower","Stihl","RZ 152","RZ 152",52,"Yes",null,null,null,null,5649.99,25,3,null,8,724,null,"https://www.stihlusa.com/products/lawn-mowers/zero-turn-mowers/rz152/"]
["Riding Mower","Stihl","RZ 142","RZ 142",42,"Yes",null,null,null,null,3899.99,23,3,null,7,724,null,"https://www.stihlusa.com/products/lawn-mowers/zero-turn-mowers/rz142/"]
["Riding Mower","Stihl","RZ 552","RZ 552",52,"Yes",null,null,null,null,9949.99,24,5.5,null,10,null,null,"https://www.stihlusa.com/products/lawn-mowers/zero-turn-mowers/rz500series/#specifications"]
["Riding Mower","Stihl","RZ 552 K ","RZ 552 K",52,"Yes",null,null,null,null,10449.99,24,5.5,null,10,null,null,"https://www.stihlusa.com/products/lawn-mowers/zero-turn-mowers/rz500series/#specifications"]
["Riding Mower","Stihl","RZ 560","RZ 561",60,"Yes",null,null,null,null,10499.99,24,5.5,null,10,null,null,"https://www.stihlusa.com/products/lawn-mowers/zero-turn-mowers/rz500series/#specifications"]
["Riding Mower","Stihl","RZ 560 K ","RZ 560 K ",60,"Yes",null,null,null,null,10999.99,24,5.5,null,10,null,null,"https://www.stihlusa.com/products/lawn-mowers/zero-turn-mowers/rz500series/#specifications"]
["Riding Mower","Stihl","RZ 960i","RZ 960i",60,"Yes",null,null,null,null,17899.990000000002,null,null,null,12,null,null,"https://www.stihlusa.com/products/lawn-mowers/zero-turn-mowers/rz900series/"]
["Riding Mower","Stihl","RZ 960 K","RZ 960 K",60,"Yes",null,null,null,null,17899.990000000002,null,null,null,12,null,null,"https://www.stihlusa.com/products/lawn-mowers/zero-turn-mowers/rz900series/"]
["Riding Mower","Stihl","RZ 960i K ","RZ 960i K ",60,"Yes",null,null,null,null,18199.990000000002,null,null,null,12,null,null,"https://www.stihlusa.com/products/lawn-mowers/zero-turn-mowers/rz900series/"]
["Riding Mower","Stihl","RZ 972i","RZ 972i",72,"Yes",null,null,null,null,18399.990000000002,null,null,null,12,null,null,"https://www.stihlusa.com/products/lawn-mowers/zero-turn-mowers/rz900series/"]
["Riding Mower","Stihl","RZ 972 K ","RZ 972 K ",72,"Yes",null,null,null,null,18399.990000000002,null,null,null,12,null,null,"https://www.stihlusa.com/products/lawn-mowers/zero-turn-mowers/rz900series/"]
["Riding Mower","Stihl","RZ 972i K ","RZ 972i K ",72,"Yes",null,null,null,null,18699.990000000002,null,null,null,12,null,null,"https://www.stihlusa.com/products/lawn-mowers/zero-turn-mowers/rz900series/"]
["Riding Mower","Stihl","RZ 261","RZ 261",61,"Yes",null,null,null,null,7449.99,25,3,null,8.5,724,null,"https://www.stihlusa.com/products/lawn-mowers/zero-turn-mowers/rz261/"]
["Riding Mower","Stihl","RZ 752i","RZ 752i",52,"Yes",null,null,null,null,13149.99,null,11,null,10,null,null,"https://www.stihlusa.com/products/lawn-mowers/zero-turn-mowers/rz700series/"]
["Riding Mower","Stihl","RZ 752 K","RZ 752 K",52,"Yes",null,null,null,null,11899.99,null,11,null,10,null,null,"https://www.stihlusa.com/products/lawn-mowers/zero-turn-mowers/rz700series/"]
["Riding Mower","Stihl","RZ 752i K ","RZ 752i K ",52,"Yes",null,null,null,null,11849.99,null,11,null,10,null,null,"https://www.stihlusa.com/products/lawn-mowers/zero-turn-mowers/rz700series/"]
["Riding Mower","Stihl","RZ 760i","RZ 760i",60,"Yes",null,null,null,null,13849.99,null,11,null,10,null,null,"https://www.stihlusa.com/products/lawn-mowers/zero-turn-mowers/rz700series/"]
["Riding Mower","Stihl","RZ 760 K ","RZ 760 K ",60,"Yes",null,null,null,null,12499.99,null,11,null,10,null,null,"https://www.stihlusa.com/products/lawn-mowers/zero-turn-mowers/rz700series/"]
["Riding Mower","Stihl","RZ 760i K ","RZ 760i K ",60,"Yes",null,null,null,null,12499.99,null,11,null,10,null,null,"https://www.stihlusa.com/products/lawn-mowers/zero-turn-mowers/rz700series/"]
["Riding Mower","Husqvarna ","Z560LS","Z560LS",60,"Yes",null,null,null,null,14799,38.5,12,null,12,null,null,"https://www.husqvarna.com/us/zero-turn-mowers/z560ls/"]
["Riding Mower","Husqvarna ","Z448","Z448",48,"Yes",null,null,null,null,8399.99,22,6,null,10,null,null,"https://www.husqvarna.com/us/zero-turn-mowers/z448/"]
["Riding Mower","Husqvarna ","Z454","Z455",54,"Yes",null,null,null,null,8699.99,22,6,null,10,null,null,"https://www.husqvarna.com/us/zero-turn-mowers/z454/"]
["Riding Mower","Husqvarna ","Z460","Z460",60,"Yes",null,null,null,null,9199.99,23,6,null,10,null,null,"https://www.husqvarna.com/us/zero-turn-mowers/z460/"]
["Riding Mower","Husqvarna ","Z454XS","Z454XS",54,"Yes",null,null,null,null,10599.99,23.5,12,null,11,null,null,"https://www.husqvarna.com/us/zero-turn-mowers/z454xs/"]
["Riding Mower","Husqvarna ","Z460XS","Z460XS",60,"Yes",null,null,null,null,10899.99,23.5,12,null,11,null,null,"https://www.husqvarna.com/us/zero-turn-mowers/z460xs/"]
["Riding Mower","Husqvarna ","Z554L","Z554L",54,"Yes",null,null,null,null,13099.99,27,12,null,12,null,null,"https://www.husqvarna.com/us/zero-turn-mowers/z554l/"]
["Riding Mower","Husqvarna ","Z560L","Z560L",60,"Yes",null,null,null,null,13399.99,27,12,null,12,null,null,"https://www.husqvarna.com/us/zero-turn-mowers/z560l/"]
["Riding Mower","Husqvarna ","Z554X","Z554X",54,"Yes",null,null,null,null,14499.99,31,12,null,12,null,null,"https://www.husqvarna.com/us/zero-turn-mowers/z554x/"]
["Riding Mower","Husqvarna ","Z560X","Z560X",60,"Yes",null,null,null,null,14799.99,31,12,null,12,null,null,"https://www.husqvarna.com/us/zero-turn-mowers/z560x/"]
["Riding Mower","Husqvarna ","Z572X","Z572X",72,"Yes",null,null,null,null,15399.99,31,12,null,12,null,null,"https://www.husqvarna.com/us/zero-turn-mowers/z572x/"]
["Riding Mower","Toro","Z Master Gas 2000 Series 52 in",77283,52,"Yes",null,null,null,null,9199,24.5,7,null,10,708,null,"https://www.toro.com/en/product/77283"]
["Riding Mower","Toro","Z Master Gas 2000 Series 48 in",77281,48,"Yes",null,null,null,null,8999,24.5,7,null,10,708,null,"https://www.toro.com/en/product/77281"]
["Riding Mower","Toro","Z Master Gas 2000 Series 60 in",77285,60,"Yes",null,null,null,null,9599,24.5,7,null,10,708,null,"https://www.toro.com/en/product/77285"]
["Riding Mower","Toro","Z Master Gas 2000 Series HDX Pro 60 in",77288,60,"Yes",null,null,null,null,"$13,340 *Dependent on dealer ",28,7,null,10,810,null,"https://www.toro.com/en/product/77288","https://www.weknowmow.com/new-models/toro-2000-series-hdx-pro-60-152-cm-28-hp-810cc-77288-29009567b"]
["Riding Mower","Toro","Z Master Gas 2000 Series MyRIDE® HDX 52 in",77291,52,"Yes",null,null,null,null,11099,23.5,7,null,10,747,null,"https://www.toro.com/en/product/77291"]
["Riding Mower","Toro","Z Master Gas 2000 Series MyRIDE® HDX 60 in",77294,60,"Yes",null,null,null,null,11299,23.5,7,null,10,747,null,"https://www.toro.com/en/product/77294"]
["Riding Mower","Toro","Z Master 2000 Series 48 in",77280,48,"Yes",null,null,null,null,8699,24.5,7,null,10,708,null,"https://www.toro.com/en/product/77280"]
["Riding Mower","Toro","Z Master 2000 Series MyRIDE® HDX 52 in",77290,52,"Yes",null,null,null,null,10599,23.5,7,null,11,747,null,"https://www.toro.com/en/product/77290"]
["Riding Mower","Toro","Z Master 2000 Series MyRIDE® HDX 60 in",77293,60,"Yes",null,null,null,null,10899,23.5,7,null,11,747,null,"https://www.toro.com/en/product/77293"]
["Riding Mower","Toro","Z Master 4000 Pro Series 48 in",74000,48,"Yes",null,null,null,null,11699,24.5,10,null,10,852,null,"https://www.toro.com/en/product/74000"]
["Riding Mower","Toro","Z Master 4000 Pro Series 52 in",74002,52,"Yes",null,null,null,null,11799,25.5,10.5,null,10,852,null,"https://www.toro.com/en/product/74002"]
["Riding Mower","Toro","Z Master 4000 Pro Series 60 in",74004,60,"Yes",null,null,null,null,12399,25.5,10,null,10,852,null,"https://www.toro.com/en/product/74004"]
["Riding Mower","Toro","Z Master 4000 Pro Series 60 in",74035,60,"Yes",null,null,null,null,12799,26.5,10,null,10,747,null,"https://www.toro.com/en/product/74035"]
["Riding Mower","Toro","Z Master 4000 Series HDX Pro 52 in",74010,52,"Yes",null,null,null,null,13299,31,10.5,null,12,999,null,"https://www.toro.com/en/product/74010"]
["Riding Mower","Toro","Z Master 4000 Series HDX Pro 60 in",74015,60,"Yes",null,null,null,null,13699,31,10,null,12,999,null,"https://www.toro.com/en/product/74015"]
["Riding Mower","Toro","Z Master 4000 Series HDX Pro XL 72 in",74022,72,"Yes",null,null,null,null,14599,35,10,null,12,999,null,"https://www.toro.com/en/product/74022"]
["Riding Mower","Toro","Z Master 4000 Series HDX Pro XL 60 in",74020,60,"Yes",null,null,null,null,13999,35,10,null,12,999,null,"https://www.toro.com/en/product/74020"]
["Riding Mower","Toro","Z Master 4000 Series MyRIDE® HDX 52 in",74052,52,"Yes",null,null,null,null,13599,31,10,null,12,999,null,"https://www.toro.com/en/product/74052"]
["Riding Mower","Toro","Z Master 4000 Series MyRIDE® HDX 60 in",74055,60,"Yes",null,null,null,null,13999,31,10,null,12,999,null,"https://www.toro.com/en/product/74055"]
["Riding Mower","Toro","Z Master 4000 HD Series 52 in",74050,52,"Yes",null,null,null,null,11999,25.5,10.5,null,12,852,null,"https://www.toro.com/en/product/74050"]
["Riding Mower","Toro","Z Master 4000 HD Series 60 in",74054,60,"Yes",null,null,null,null,12499,25.5,10,null,12,852,null,"https://www.toro.com/en/product/74054"]
["Riding Mower","Toro","Z Master 5000 Series 52 in EFI",72906,52,"Yes",null,null,null,null,"$15,899 *Dependent on dealer ",25,12,null,10,747,null,"https://www.toro.com/en/product/72906","https://sleequipment.com/toro-72906-zmaster-5000-mower.html"]
["Riding Mower","Toro","Z Master 5000 Series 60 in",72910,60,"Yes",null,null,null,null,"$14,999 *Dependent on dealer ",25.5,12,null,10,852,null,"https://www.toro.com/en/product/72910","https://sleequipment.com/toro-72910-zmaster-5000-mower.html"]
["Riding Mower","Toro","Z Master 5000 Series 60 in",72911,60,"Yes",null,null,null,null,"$16,800 *Dependent on dealer ",25,12,null,10,747,null,"https://www.toro.com/en/product/72911","https://www.midwestpowerparts.com/new-models/toro-5000-series-60-152-cm-25-hp-747cc-72911-28562588b"]
["Riding Mower","Toro","Z Master 5000 Series 72 in",72912,72,"Yes",null,null,null,null,17899,26.5,12,null,10,747,null,"https://www.toro.com/en/product/72912"]
["Riding Mower","Toro","Z Master 5000 Series 72 in EFI",72918,72,"Yes",null,null,null,null,"$16,699 *Dependent on dealer ",26.5,12,null,10,747,null,"https://www.toro.com/en/product/72918","https://catoespowerequipment.com/shop/toro/toro-5000-series-72-26-5-hp-efi-747cc-72918/"]
["Riding Mower","Toro","Z Master 5000 Series Rear Discharge 60 in EFI",72921,60,"Yes",null,null,null,null,"$16,900 *Dependent on dealer ",25,12,null,10,747,null,"https://www.toro.com/en/product/72921","https://www.midwestpowerparts.com/new-models/toro-5000-series-rear-discharge-60-152-cm-265-hp-efi-747cc-72921-28562590b"]
["Riding Mower","Toro","Z Master 5000 Series Rear Discharge 72 in",72922,72,"Yes",null,null,null,null,"$17,999 *Dependent on dealer ",26.5,12,null,10,747,null,"https://www.toro.com/en/product/72922","https://sleequipment.com/toro-72922-zmaster-5000-mower.html"]
["Riding Mower","Toro","Z Master 5000 Series 60 in EFI",72930,60,"Yes",null,null,null,null,"$15,500 *Dependent on dealer ",25,12,null,10,747,null,"https://www.toro.com/en/product/72930","https://www.midwestpowerparts.com/new-models/toro-5000-series-60-152-cm-25-hp-efi-747cc-72930-28562596b"]
["Riding Mower","Toro","Z Master 5000 Series MyRIDE® 60 in EFI",72951,60,"Yes",null,null,null,null,"$16,800 *Dependent on dealer ",25,12,null,10,747,null,"https://www.toro.com/en/product/72951","https://www.midwestpowerparts.com/new-models/toro-5000-series-myride-60-152-cm-25-hp-efi-747cc-72951-28562600b"]
["Riding Mower","Toro","Z Master 5000 Series MyRIDE® 52 in EFI",72955,52,"Yes",null,null,null,null,"$16,000 *Dependent on dealer ",25,12,null,10,747,null,"https://www.toro.com/en/product/72955","https://www.midwestpowerparts.com/new-models/toro-5000-series-myride-52-132-cm-25-hp-efi-747cc-72955-28562601b"]
["Riding Mower","Toro","6000 Series 60 in",72926,60,"Yes",null,null,null,null,"$18,099 *Dependent on dealer ",26.5,12,null,11.5,747,null,"https://www.toro.com/en/product/72926","https://catoespowerequipment.com/shop/toro/toro-6000-series-60-26-5-hp-747cc-72926/"]
["Riding Mower","Toro","6000 Series 72 in",72928,72,"Yes",null,null,null,null,"$21,419 *Dependent on dealer ",26.5,12,null,11.5,747,null,"https://www.toro.com/en/product/72928","https://southernhardwareinc.com/shop/toro/toro-6000-series-72-26-5-hp-747cc-72928/"]
["Riding Mower","Toro","6000 Series 60 in w/Horizon Technology ",72946,60,"Yes",null,null,null,null,"$19,000 *Dependent on dealer ",38,12,null,11.5,999,null,"https://www.toro.com/en/product/72946","https://www.midwestpowerparts.com/new-models/toro-6000-series-60-152-cm-38-hp-999cc-whorizon-technology-72946-28562612b"]
["Riding Mower","Toro","6000 Series 72 in w/Horizon Technology",72947,72,"Yes",null,null,null,null,"$19,500 *Dependent on dealer ",38,12,null,11.5,999,null,"https://www.toro.com/en/product/72947","https://www.midwestpowerparts.com/new-models/toro-6000-series-72-183-cm-38-hp-999cc-whorizon-technology-72947-28562613b"]
["Riding Mower","Toro","6000 Series 60 in",72960,60,"Yes",null,null,null,null,"$21,534 *Dependent on dealer ",31,12,null,11.5,999,null,"https://www.toro.com/en/product/72960","https://southernhardwareinc.com/shop/toro/toro-6000-series-60-31-hp-999cc-72960/"]
["Riding Mower","Toro","6000 Series 72 in",72961,72,"Yes",null,null,null,null,"$19,399 *Dependent on dealer ",31,12,null,11.5,999,null,"https://www.toro.com/en/product/72961","https://sleequipment.com/toro-72961-zero-turn-mower.html"]
["Riding Mower","Toro","6000 Series 60 in",72965,60,"Yes",null,null,null,null,"$19,699 *Dependent on dealer ",31,12,null,11.5,999,null,"https://www.toro.com/en/product/72965","https://sleequipment.com/toro-zmaster-72965.html"]
["Riding Mower","Toro","6000 Series MyRIDE® 60 in",72967,60,"Yes",null,null,null,null,"$18,400 *Dependent on dealer ",31,12,null,11.5,921,null,"https://www.toro.com/en/product/72967","https://www.midwestpowerparts.com/new-models/toro-6000-series-myride-60-152-cm-31-hp-999cc-72967-28562608b"]
["Riding Mower","Toro","6000 Series MyRIDE® 72 in",72968,72,"Yes",null,null,null,null,"$18,900 *Dependent on dealer ",31,12,null,11.5,921,null,"https://www.toro.com/en/product/72968","https://www.midwestpowerparts.com/new-models/toro-6000-series-myride-72-183-cm-31-hp-999cc-72968-28562610b"]
["Riding Mower","Toro","6000 Series 60 in",72980,60,"Yes",null,null,null,null,"$19,499 *Dependent on dealer ",37,12,null,12,993,null,"https://www.toro.com/en/product/72980","https://catoespowerequipment.com/shop/toro/toro-6000-series-60-37-hp-993cc-72980/"]
["Riding Mower","Toro","6000 Series 72 in",72982,72,"Yes",null,null,null,null,"$19,000 *Dependent on dealer ",37,12,null,12,993,null,"https://www.toro.com/en/product/72982","https://www.midwestpowerparts.com/new-models/toro-6000-series-72-183-cm-37-hp-993cc-72982-28562603b"]
["Riding Mower","Toro","8000 Series 48 in",74312,48,"Yes",null,null,null,null,"$19,599 *Dependent on dealer ",23,7.5,null,7,747,null,"https://www.toro.com/en/product/74312","https://sleequipment.com/toro-74312-zero-turn-mower.html"]
["Riding Mower","Toro","8000 Series 42 in",74315,42,"Yes",null,null,null,null,"$18,499 *Dependent on dealer ",25,7.5,null,7,725,null,"https://www.toro.com/en/product/74315","https://sleequipment.com/toro-74315-zero-turn-mower.html"]
["Riding Mower","John Deere","Z760R Ztrack","22A0TC",54,"Yes",null,null,null,null,11479,27,8,null,10,852,null,"https://www.deere.com/en/mowers/zero-turn-mowers/z700-series/z760r-ztrak-mower/"]
["Riding Mower","John Deere","Z760R Ztrack","22A0TC",60,"Yes",null,null,null,null,{"$f":"11479+330","v":11809},27,8,null,10,852,null,"https://www.deere.com/en/mowers/zero-turn-mowers/z700-series/z760r-ztrak-mower/","https://e-marketing.deere.com/AddAccessories.do?lid=1875429536&newproduct=22A0TC&newproducts=22A0TC,1502_HCPRO_INBASE"]
["Riding Mower","John Deere","Z730M Ztrack","2261TC",54,"Yes",null,null,null,null,9729,24,8,null,9.5,726,null,"https://www.deere.com/en/mowers/zero-turn-mowers/z700-series/z730m-ztrak-mower/"]
["Riding Mower","John Deere","Z730M Ztrack","2261TC",60,"Yes",null,null,null,null,{"$f":"K78+330","v":10059},24,8,null,9.5,726,null,"https://www.deere.com/en/mowers/zero-turn-mowers/z700-series/z730m-ztrak-mower/","https://e-marketing.deere.com/AddAccessories.do?lid=2119449465&newproduct=2261TC&newproducts=2261TC,PPPR_Z700M_NO,1502_HCPRO_INBASE"]
["Riding Mower","John Deere","Z740R Ztrack","2287TC",48,"Yes",null,null,null,null,10719,23.5,8,null,10,726,null,"https://www.deere.com/en/mowers/zero-turn-mowers/z700-series/z740r-ztrak-mower/"]
["Riding Mower","John Deere","Z740R Ztrack","2287TC",54,"Yes",null,null,null,null,{"$f":"K80+330","v":11049},23.5,8,null,10,726,null,"https://www.deere.com/en/mowers/zero-turn-mowers/z700-series/z740r-ztrak-mower/","https://e-marketing.deere.com/AddAccessories.do?lid=643019982&newproduct=2287TC&newproducts=2287TC,PPPR_Z700R_NO,1500_HCPRO_INBASE"]
["Riding Mower","John Deere","Z740R Ztrack","2287TC",60,"Yes",null,null,null,null,{"$f":"K80+660","v":11379},23.5,8,null,10,726,null,"https://www.deere.com/en/mowers/zero-turn-mowers/z700-series/z740r-ztrak-mower/","https://e-marketing.deere.com/AddAccessories.do?lid=643019982&newproduct=2287TC&newproducts=2287TC,PPPR_Z700R_NO,1500_HCPRO_INBASE"]
["Riding Mower","John Deere","Z720E Ztrack","2241TC",48,"Yes",null,null,null,null,8079,23,8,null,8,726,null,"https://www.deere.com/en/mowers/zero-turn-mowers/z700-series/z720e-ztrak-mower/"]
["Riding Mower","John Deere","Z720E Ztrack","2241TC",54,"Yes",null,null,null,null,{"$f":"K83+330","v":8409},23,8,null,8,726,null,"https://www.deere.com/en/mowers/zero-turn-mowers/z700-series/z720e-ztrak-mower/","https://e-marketing.deere.com/AddAccessories.do?lid=2129068245&newproduct=2241TC&newproducts=2241TC,PPPR_Z700E_NO,1500_HCPRO_INBASE"]
["Riding Mower","John Deere","Z720E Ztrack","2241TC",60,"Yes",null,null,null,null,{"$f":"K83+660","v":8739},23,8,null,8,726,null,"https://www.deere.com/en/mowers/zero-turn-mowers/z700-series/z720e-ztrak-mower/","https://e-marketing.deere.com/AddAccessories.do?lid=2129068245&newproduct=2241TC&newproducts=2241TC,PPPR_Z700E_NO,1500_HCPRO_INBASE"]
["Riding Mower","John Deere","Z735E ZTrak","2251TC",60,"Yes",null,null,null,null,8919,25,8,null,8,810,null,"https://www.deere.com/en/mowers/zero-turn-mowers/z700-series/z735e-ztrak-mower/"]
["Riding Mower","John Deere","Z735M ZTrack","2271TC",48,"Yes",null,null,null,null,9209,25,8,null,9.5,810,null,"https://www.deere.com/en/mowers/zero-turn-mowers/z700-series/z735m-ztrak-mower/"]
["Riding Mower","John Deere","Z735M ZTrack","2271TC",54,"Yes",null,null,null,null,{"$f":"K87+330","v":9539},25,8,null,9.5,810,null,"https://www.deere.com/en/mowers/zero-turn-mowers/z700-series/z735m-ztrak-mower/","https://e-marketing.deere.com/AddAccessories.do?lid=966646221&newproduct=2271TC&newproducts=2271TC,1500_HCPRO_INBASE,PPPR_Z700M_NO"]
["Riding Mower","John Deere","Z735M ZTrack","2271TC",60,"Yes",null,null,null,null,{"$f":"K87+660","v":9869},25,8,null,9.5,810,null,"https://www.deere.com/en/mowers/zero-turn-mowers/z700-series/z735m-ztrak-mower/","https://e-marketing.deere.com/AddAccessories.do?lid=966646221&newproduct=2271TC&newproducts=2271TC,1500_HCPRO_INBASE,PPPR_Z700M_NO"]
["Riding Mower","John Deere","Z930M Ztrack Side-Discharge ","216CTC",54,"Yes",null,null,null,null,{"$f":"14409-400","v":14009},25.5,11.5,null,10,852,null,"https://www.deere.com/en/mowers/commercial-mowers/commercial-zero-turn/z900-series/z930m-mower/","https://www.deere.com/en/mowers/commercial-mowers/commercial-zero-turn/z900-series/z930m-mower/"]
["Riding Mower","John Deere","Z930M Ztrack Side Discharge ","216CTC",60,"Yes",null,null,null,null,14409,25.5,11.5,null,10,852,null,"https://www.deere.com/en/mowers/commercial-mowers/commercial-zero-turn/z900-series/z930m-mower/","https://www.deere.com/en/mowers/commercial-mowers/commercial-zero-turn/z900-series/z930m-mower/"]
["Riding Mower","John Deere","Z930M Ztrack Mulch-on-Demand ","216CTC",60,"Yes",null,null,null,null,{"$f":"14409+1100","v":15509},25.5,11.5,null,10,852,null,"https://www.deere.com/en/mowers/commercial-mowers/commercial-zero-turn/z900-series/z930m-mower/","https://www.deere.com/en/mowers/commercial-mowers/commercial-zero-turn/z900-series/z930m-mower/"]
["Riding Mower","John Deere","Z930M Ztrack Rear-Discharge","216CTC",60,"Yes",null,null,null,null,{"$f":"14409+1050","v":15459},25.5,11.5,null,10,852,null,"https://www.deere.com/en/mowers/commercial-mowers/commercial-zero-turn/z900-series/z930m-mower/","https://www.deere.com/en/mowers/commercial-mowers/commercial-zero-turn/z900-series/z930m-mower/"]
["Riding Mower","John Deere","Z950M","0694TC",60,"Yes",null,null,null,null,14899,27,11.5,null,10,852,null,"https://www.deere.com/en/mowers/commercial-mowers/commercial-zero-turn/z900-series/z950m-mower/"]
["Riding Mower","John Deere","Z920M ZTrak","2147TC",48,"Yes",null,null,null,null,{"$f":"13499-320","v":13179},23.5,11.5,null,10,726,null,"https://www.deere.com/en/mowers/commercial-mowers/commercial-zero-turn/z900-series/z920m-mower/","https://e-marketing.deere.com/AddAccessories.do?lid=1211089370&newproduct=2147TC&newproducts=2147TC,1500_48_SD,2091_INBASE_ZTRAK,NO_MCS,TIRES,PPPR_Z900_NO"]
["Riding Mower","John Deere","Z920M ZTrak","2147TC",54,"Yes",null,null,null,null,{"$f":"13499","v":13499},23.5,11.5,null,10,726,null,"https://www.deere.com/en/mowers/commercial-mowers/commercial-zero-turn/z900-series/z920m-mower/","https://e-marketing.deere.com/AddAccessories.do?lid=1211089370&newproduct=2147TC&newproducts=2147TC,1500_48_SD,2091_INBASE_ZTRAK,NO_MCS,TIRES,PPPR_Z900_NO"]
["Riding Mower","John Deere","Z920M ZTrak","2147TC",60,"Yes",null,null,null,null,{"$f":"13499+400","v":13899},23.5,11.5,null,10,726,null,"https://www.deere.com/en/mowers/commercial-mowers/commercial-zero-turn/z900-series/z920m-mower/","https://e-marketing.deere.com/AddAccessories.do?lid=1211089370&newproduct=2147TC&newproducts=2147TC,1500_48_SD,2091_INBASE_ZTRAK,NO_MCS,TIRES,PPPR_Z900_NO"]
["Riding Mower","John Deere","Z960M Ztrak Side Discharge ","2233TC",60,"Yes",null,null,null,null,{"$f":"15809","v":15809},31,11.5,null,10,999,null,"https://www.deere.com/en/mowers/commercial-mowers/commercial-zero-turn/z900-series/z960m-mower/","https://e-marketing.deere.com/AddAccessories.do?lid=982498130&newproduct=2233TC&newproducts=2233TC,2091_INBASE_ZTRAK,NO_MCS,TIRES,1504_60_SD_INBASE,PPPR_Z900_NO"]
["Riding Mower","John Deere","Z960M Ztrak Side Discharge ","2233TC",72,"Yes",null,null,null,null,{"$f":"15809+750","v":16559},31,11.5,null,10,999,null,"https://www.deere.com/en/mowers/commercial-mowers/commercial-zero-turn/z900-series/z960m-mower/","https://e-marketing.deere.com/AddAccessories.do?lid=982498130&newproduct=2233TC&newproducts=2233TC,2091_INBASE_ZTRAK,NO_MCS,TIRES,1504_60_SD_INBASE,PPPR_Z900_NO"]
["Riding Mower","John Deere","Z960M Ztrak Mulch-on-Demand ","2233TC",60,"Yes",null,null,null,null,{"$f":"15809+1100","v":16909},31,11.5,null,10,999,null,"https://www.deere.com/en/mowers/commercial-mowers/commercial-zero-turn/z900-series/z960m-mower/","https://e-marketing.deere.com/AddAccessories.do?lid=982498130&newproduct=2233TC&newproducts=2233TC,2091_INBASE_ZTRAK,NO_MCS,TIRES,1504_60_SD_INBASE,PPPR_Z900_NO"]
["Riding Mower","John Deere","Z960M Ztrak Rear Discharge ","2233TC",60,"Yes",null,null,null,null,{"$f":"15809+1050","v":16859},31,11.5,null,10,999,null,"https://www.deere.com/en/mowers/commercial-mowers/commercial-zero-turn/z900-series/z960m-mower/","https://e-marketing.deere.com/AddAccessories.do?lid=982498130&newproduct=2233TC&newproducts=2233TC,2091_INBASE_ZTRAK,NO_MCS,TIRES,1504_60_SD_INBASE,PPPR_Z900_NO"]
["Riding Mower","John Deere","Z960M Ztrak Rear Discharge ","2233TC",72,"Yes",null,null,null,null,{"$f":"15809+1600","v":17409},31,11.5,null,10,999,null,"https://www.deere.com/en/mowers/commercial-mowers/commercial-zero-turn/z900-series/z960m-mower/","https://e-marketing.deere.com/AddAccessories.do?lid=982498130&newproduct=2233TC&newproducts=2233TC,2091_INBASE_ZTRAK,NO_MCS,TIRES,1504_60_SD_INBASE,PPPR_Z900_NO"]
["Stand On Mower","Toro","GrandStand® 48 in (California Model)",71504,48,"No",null,null,null,null,"$12,199 *Dependent on dealer ",22,10.5,null,10,726,null,"https://www.toro.com/en/product/71504","https://www.johnsonfleetandfarm.com/PrintInventory-Toro-Lawn-Mower-GrandStand-48-122-cm-22-HP-726cc-71504--id-9688443"]
["Stand On Mower","Toro","GrandStand® 52 in (California Model)",71505,52,"No",null,null,null,null,"$10,599 *Dependent on dealer ",22,10.5,null,10,726,null,"https://www.toro.com/en/product/71505","https://www.hoffmanspowerequipment.com/new-models/toro-grandstand-52-132-cm-22-hp-726cc-california-model-71505-29009644b"]
["Stand On Mower","Toro","GrandStand® 48 in",72504,48,"No",null,null,null,null,"$11,899 *Dependent on dealer ",22,10.5,null,10,726,null,"https://www.toro.com/en/product/72504","https://sleequipment.com/toro-72504-grandstand-mower.html"]
["Stand On Mower","Toro","GrandStand® 52 in",72505,52,"No",null,null,null,null,"$11,999 *Dependent on dealer ",22,10.5,null,10,726,null,"https://www.toro.com/en/product/72505","https://sleequipment.com/toro-grandstand-72505-stand-on-mower.html"]
["Stand On Mower","Toro","GrandStand® 60 in",72509,60,"No",null,null,null,null,"$12,499 *Dependent on dealer ",23.5,10.5,null,10,726,null,"https://www.toro.com/en/product/72509","https://sleequipment.com/toro-grandstand-72509-stand-on-mower.html"]
["Stand On Mower","Toro","GrandStand® 60 in EFI",72513,60,"No",null,null,null,null,"$13,199 *Dependent on dealer ",25,10.5,null,10,747,null,"https://www.toro.com/en/product/72513","https://sleequipment.com/toro-grandstand-72513-stand-on-mower.html"]
["Stand On Mower","Toro","GrandStand® 48 in EFI (California Model)",72518,48,"No",null,null,null,null,"$ 12,599*Dependent on dealer ",23,10.5,null,10,747,null,"https://www.toro.com/en/product/72518","https://sleequipment.com/toro-72518-48-grandstand-stand-on-mower-23-hp-kohler-efi.html"]
["Stand On Mower","Toro","GrandStand® 52 in EFI",72519,52,"No",null,null,null,null,"$12,799 *Dependent on dealer ",25,10.5,null,10,747,null,"https://www.toro.com/en/product/72519","https://sleequipment.com/toro-grandstand-72519-stand-on-mower.html"]
["Stand On Mower","Toro","GrandStand® 36 in",74534,36,"No",null,null,null,null,"$9,699 *Dependent on dealer ",15,7.8,null,8,603,null,"https://www.toro.com/en/product/74534","https://sleequipment.com/toro-grandstand-74534-stand-on-mower.html"]
["Stand On Mower","Toro","GrandStand® 40 in",74536,40,"No",null,null,null,null,"$9,999 *Dependent on dealer ",15,7.8,null,8,541,null,"https://www.toro.com/en/product/74536","https://www.midwestpowerparts.com/new-models/toro-grandstand-40-102-cm-15-hp-541cc-74536-28562633b"]
["Stand On Mower","Toro","GrandStand® 36 in (California Model)",79534,36,"No",null,null,null,null,"$11,899 *Dependent on dealer ",15,7.8,null,8,603,null,"https://www.toro.com/en/product/79534","https://www.balawn.com/search/inventory/type/Commercial%20Lawn%20Mowers/class/Stand-On%20Mowers/availability/In%20Stock/brand/Toro"]
["Stand On Mower","Toro","GrandStand® MULTI FORCE 60 in EFI",72523,60,"No",null,null,null,null,"$14,399 *Dependent on dealer ",26.5,10.5,null,10,747,null,"https://www.toro.com/en/product/72523","https://www.arcolawn.com/products/multi-force-60-26-5hp-747cc-efi-72523"]
["Stand On Mower","Toro","GrandStand® MULTI FORCE 52 in EFI",72529,52,"No",null,null,null,null,"$13,900 *Dependent on dealer ",26.5,10.5,null,10,747,null,"https://www.toro.com/en/product/72529","https://www.midwestpowerparts.com/new-models/toro-multi-force-52-265hp-747cc-efi-72529-28431239b"]
["Stand On Mower","Toro","GrandStand® MULTI FORCE 60 in EFI",72524,60,"No",null,null,null,null,"$16,199 *Dependent on dealer ",26.5,10.5,null,10,747,null,"https://www.toro.com/en/product/72524","https://www.arcolawn.com/products/multi-force-60-26-5hp-747cc-efi-w-low-flow-hydraulics-72524"]
["Stand On Mower","Toro","GrandStand® MULTI FORCE 52 in EFI",72530,52,"No",null,null,null,null,"$15,599 *Dependent on dealer ",26.5,10.5,null,10,747,null,"https://www.toro.com/en/product/72530","https://sleequipment.com/toro-72530-52-grandstand-multiforce-stand-on-mower-26-5hp-koh-efi.html"]
["Stand On Mower","John Deere","652E QuikTrak",null,52,"No",null,null,null,null,12044,22,5.6,null,9.5,726,null,"https://www.deere.com/en/mowers/commercial-mowers/quiktrak-mowers/652e-mower/"]
["Stand On Mower","John Deere","636M QuikTrak",null,36,"No",null,null,null,null,11319,19,5.5,null,8.1999999999999993,603,null,"https://www.deere.com/en/mowers/commercial-mowers/quiktrak-mowers/636m-mower/"]
["Stand On Mower","John Deere","648M QuikTrack",null,48,"No",null,null,null,null,12134,22,5.5,null,8.1999999999999993,726,null,"https://www.deere.com/en/mowers/commercial-mowers/quiktrak-mowers/648m-mower/"]
["Stand On Mower","John Deere","652M QuikTrack",null,52,"No",null,null,null,null,12554,22,5.5,null,8.1999999999999993,726,null,"https://www.deere.com/en/mowers/commercial-mowers/quiktrak-mowers/652m-mower/"]
["Stand On Mower","John Deere","648R QuikTrak",null,48,"No",null,null,null,null,12669,22,5.6,null,9.6,726,null,"https://www.deere.com/en/mowers/commercial-mowers/quiktrak-mowers/648r-mower/"]
["Stand On Mower","John Deere","652R QuikTrak",null,52,"No",null,null,null,null,12959,23.5,5.6,null,9.6,726,null,"https://www.deere.com/en/mowers/commercial-mowers/quiktrak-mowers/652r-mower/?cid=PPC_MDS_00331_01373&gad=1&gclid=Cj0KCQjwzdOlBhCNARIsAPMwjbzFcobF_BobkqBqHZYWQdkmdcgyBgLfoN-lJYJdm5zS-AO15SGWiGcaApvLEALw_wcB&gclsrc=aw.ds"]
["Stand On Mower","John Deere","652R EFI QuikTrak",null,52,"No",null,null,null,null,14144,20,5.6,null,9.5,747,null,"https://www.deere.com/en/mowers/commercial-mowers/quiktrak-mowers/652r-efi-mower/"]
["Stand On Mower","John Deere","661R QuikTrak",null,61,"No",null,null,null,null,13774,23.5,5.6,null,9.6,726,null,"https://www.deere.com/en/mowers/commercial-mowers/quiktrak-mowers/661r-mower/"]
["Push Mower","Husqvarna ","W520","W520",20,null,null,null,null,null,1299.99,null,null,null,3.7,null,null,"https://www.husqvarna.com/us/push-lawn-mowers/w520/"]
["Push Mower","Toro","PROLINE™ HDX 48 in",44448,48,null,null,null,null,null,"$9,599 *Dependent on dealer ",22,5,null,7,726,null,"https://www.toro.com/en/product/44448","https://sleequipment.com/toro-44448-48-proline-walk-behind-mower-22hp-kawasaki.html"]
["Push Mower","Toro","PROLINE™ HDX 54 in (50-State Model)",44454,54,null,null,null,null,null,"$9,899 *Dependent on dealer ",22,5,null,7,726,null,"https://www.toro.com/en/product/44454","https://sleequipment.com/toro-44454-54-proline-walk-behind-mower-20hp-kawasaki.html"]
["Push Mower","Toro","PROLINE™ HDX 60 in (50-State Model)",44460,60,null,null,null,null,null,"$10,099 *Dependent on dealer ",22,5,null,7,726,null,"https://www.toro.com/en/product/44460","https://sleequipment.com/toro-44460-proline-walk-behind-mower.html"]
["Push Mower","Toro","PROLINE™ HDX 36 in (50-State Model)",44436,36,null,null,null,null,null,"$9,399 *Dependent on dealer ",15.5,5,null,7,726,null,"https://www.toro.com/en/product/44436","https://sleequipment.com/toro-44436-proline-walk-behind-mower.html"]
["Push Mower","Toro","PROLINE™ 36 in (California Model)",44409,36,null,null,null,null,null,"$9,399 *Dependent on dealer ",14.5,5,null,7,603,null,"https://www.toro.com/en/product/44409","https://sleequipment.com/toro-44436-proline-walk-behind-mower.html"]
["Push Mower","Toro","PROLINE™ 36 in",44410,36,null,null,null,null,null,"$6,949 *Dependent on dealer ",14.5,5,null,7,603,null,"https://www.toro.com/en/product/44410","https://sleequipment.com/toro-44410-36-proline-walk-behind-mower-14-5hp-kawasaki.html"]
["Push Mower","Toro","PROLINE™ 48 in (California Model)",44423,48,null,null,null,null,null,"$7,555 *Dependent on dealer ",15,5,null,7,603,null,"https://www.toro.com/en/product/44423","https://www.claysequipment.com/new-models/toro-proline-48-122-cm-mid-size-mower-california-model-44423-28562649b"]
["Push Mower","Toro","PROLINE™ 48 in",44424,48,null,null,null,null,null,"$7,599 *Dependent on dealer ",15,5,null,7,603,null,"https://www.toro.com/en/product/44424","https://sleequipment.com/toro-44424-48-proline-walk-behind-mower-15hp-kawasaki.html"]
["Push Mower","Toro","PROLINE™ 54 in",44427,54,null,null,null,null,null,"$8,199 *Dependent on dealer ",18.5,5,null,7,603,null,"https://www.toro.com/en/product/44427","https://sleequipment.com/toro-44427-54-proline-walk-behind-mower-18hp-kawasaki.html"]
["Push Mower","Toro","PROLINE™ 60 in",44430,60,null,null,null,null,null,"$8,399 *Dependent on dealer ",22,5,null,7,726,null,"https://www.toro.com/en/product/44430","https://sleequipment.com/toro-44430-60-proline-walk-behind-mower-22hp-kawasaki.html"]
["Push Mower","Toro","32\" Fixed Deck Gear Drive Pistol Grip",30632,32,null,null,null,null,null,3599,14.5,5,null,6.2,603,null,"https://www.toro.com/en/product/30632"]
["Push Mower","Toro","32 in. Fixed Deck Gear Drive T-Bar",30672,32,null,null,null,null,null,3599,14.5,5,null,6.2,603,null,"https://www.toro.com/en/product/30672"]
["Push Mower","Toro","36 in. Fixed Deck Gear Drive Pistol Grip (50-State) ",39634,36,null,null,null,null,null,"$5,399 *Dependent on dealer ",14.5,5,null,6.2,603,null,"https://www.toro.com/en/product/39634","https://sleequipment.com/toro-39634-walk-behind-mower-pistol-grip-36.html"]
["Push Mower","Toro","48 in. Fixed Deck Gear Drive Pistol Grip (50-State)",39638,48,null,null,null,null,null,"$6,474 *Dependent on dealer ",14.5,5,null,6.2,603,null,"https://www.toro.com/en/product/39638","https://www.powerequipmentplus1.com/toro/toro-48-fixed-deck-gear-drive-pistol-grip-50-st-39638-inventory.htm?id=2683797&in-stock=1"]
["Push Mower","Toro","36 in. Fixed Deck Gear Drive T-Bar (50-State)",39674,36,null,null,null,null,null,"$6,610 *Dependent on dealer ",14.5,5,null,6.2,603,null,"https://www.toro.com/en/product/39674","https://www.richardsonsaw.com/toro-mid-size-walk-behind-36-fixed-deck-gear-drive-t-bar-39674"]
["Push Mower","Toro","30 in TurfMaster® HDX",22215,30,null,null,null,null,null,"$2,799 *Dependent on dealer ",null,1,null,4,179,null,"https://www.toro.com/en/product/22215","https://www.arcolawn.com/products/30-turfmaster%C2%AE-hdx-kawasaki-engine-22215"]
["Push Mower","Toro","30 in TurfMaster® HDX",22225,30,null,null,null,null,null,"$2,949 *Dependent on dealer ",null,1,null,4,200,null,"https://www.toro.com/en/product/22225","https://www.arcolawn.com/products/30-turfmaster%C2%AE-hdx-kohler-engine-22225"]
["Push Mower","Toro","30 in. TurfMaster® HDX",22235,30,null,null,null,null,null,"$3,332 *Dependent on dealer ",null,1,null,4,224,null,"https://www.toro.com/en/product/22235","https://www.richardsonsaw.com/toro-30-turfmaster-r-hdx-lawnmower-22235"]
["Push Mower","Toro","21 in. Heavy Duty Variable Speed Zone Start Kohler® 2-Bail",22287,21,null,null,null,null,null,"$2,006 *Dependent on dealer ",null,0.5,null,4.2,null,null,"https://www.toro.com/en/product/22287","https://www.acmetools.com/toro-lawn-mower-self-propel-zone-start-kohler-21-22287/021038222875.html"]
["Push Mower","Toro","21 in Heavy Duty Self-Propelled Zone Start Honda",22295,21,null,null,null,null,null,"$2,221 *Dependent on dealer ",null,1,null,4.2,null,null,"https://www.toro.com/en/product/22295","https://www.acmetools.com/toro-lawn-mower-self-propelled-commercial-honda-21-22295/021038222950.html"]
["Push Mower","Toro","21 in Heavy Duty Self-Propelled BBC Honda",22296,21,null,null,null,null,null,"$2,388 *Dependent on dealer ",null,1,null,4.2,null,null,"https://www.toro.com/en/product/22296","https://www.acmetools.com/toro-lawn-mower-commercial-walk-behind-22296/021038222967.html"]
["Push Mower","Toro","21 in Heavy Duty Self-Propelled Zone Start Kawasaki",22297,21,null,null,null,null,null,"$2,233 *Dependent on dealer ",null,1,null,4.2,null,null,"https://www.toro.com/en/product/22297","https://www.acmetools.com/toro-lawn-mower-commercial-self-propelled-kawasaki-22297/021038222974.html"]
["Push Mower","Toro","21 in Heavy Duty Self-Propelled BBC Kawasaki",22298,21,null,null,null,null,null,"$1,999 *Dependent on dealer ",null,1,null,4.2,null,null,"https://www.toro.com/en/product/22298","https://catoespowerequipment.com/shop/toro/toro-21-heavy-duty-self-propelled-bbc-kawasaki-22298/"]
["Push Mower","John Deere","W36M ",null,36,null,null,null,null,null,6649,14.5,5.4,null,6.5,603,null,"https://www.deere.com/en/mowers/commercial-mowers/commercial-walk-behind-mowers/w36m-mower/"]
["Push Mower","John Deere","W48M",null,48,null,null,null,null,null,7009,14.5,5.4,null,6.5,603,null,"https://www.deere.com/en/mowers/commercial-mowers/commercial-walk-behind-mowers/w48m-mower/"]
["Push Mower","John Deere","W36R",null,36,null,null,null,null,null,8529,15.5,5.4,null,7.5,603,null,"https://www.deere.com/en/mowers/commercial-mowers/commercial-walk-behind-mowers/w36r-mower/"]
["Push Mower","John Deere","W48R",null,48,null,null,null,null,null,9519,19,5.4,null,7.5,603,null,"https://www.deere.com/en/mowers/commercial-mowers/commercial-walk-behind-mowers/w48r-mower/"]
["Push Mower","John Deere","W52R",null,52,null,null,null,null,null,10039,19,5.4,null,7.5,603,null,"https://www.deere.com/en/mowers/commercial-mowers/commercial-walk-behind-mowers/w52r-mower/"]
["Push Mower","John Deere","W61R",null,61,null,null,null,null,null,11689,23.5,5.4,null,7.5,726,null,"https://www.deere.com/en/mowers/commercial-mowers/commercial-walk-behind-mowers/w61r-mower/"]
["Backpack Blower ","Stihl","BR 600","BR 600",null,null,677,null,null,null,549.99,3.8,null,47.3,null,64.8,null,"https://www.stihlusa.com/products/blowers-and-shredder-vacs/professional-blowers/br600/"]
["Backpack Blower ","Stihl","BR 800 C-E Magnum","BR 800 C-E Magnum",null,null,912,null,null,null,699.99,4.4000000000000004,null,67.599999999999994,null,79.900000000000006,null,"https://www.stihlusa.com/products/blowers-and-shredder-vacs/professional-blowers/br800ce/"]
["Backpack Blower ","Stihl","BR 700","BR 700",null,null,912,null,null,null,619.99,3.8,null,47.3,null,64.8,null,"https://www.stihlusa.com/products/blowers-and-shredder-vacs/professional-blowers/br700/"]
["Backpack Blower ","Stihl","BR 450","BR 450",null,null,642,null,null,null,499.99,3.9,null,57.5,null,63.3,null,"https://www.stihlusa.com/products/blowers-and-shredder-vacs/professional-blowers/br450/"]
["Backpack Blower ","Stihl","BR 800 X Magnum","BR 800 X Magnum",null,null,912,null,null,null,649.99,4.4000000000000004,null,67.599999999999994,null,79.900000000000006,null,"https://www.stihlusa.com/products/blowers-and-shredder-vacs/professional-blowers/br800x/"]
["Backpack Blower ","Stihl","BR 700 X","BR 700 X",null,null,901,null,null,null,619.99,3.8,null,47.3,null,64.8,null,"https://www.stihlusa.com/products/blowers-and-shredder-vacs/professional-blowers/br700x/"]
["Backpack Blower ","Stihl","BR 500","BR 500",null,null,544,null,null,null,559.99,2.7,null,47.3,null,64.8,null,"https://www.stihlusa.com/products/blowers-and-shredder-vacs/professional-blowers/br500/"]
["Backpack Blower ","Husqvarna","570BFS","570BFS",null,null,768,null,null,null,589.99,4,null,74.400000000000006,null,65.599999999999994,null,"https://www.husqvarna.com/us/leaf-blowers/570bfs/"]
["Backpack Blower ","Husqvarna","570BTS","570BTS",null,null,768,null,null,null,589.99,4,null,74.400000000000006,null,65.599999999999994,null,"https://www.husqvarna.com/us/leaf-blowers/570bts/"]
["Backpack Blower ","Husqvarna","560BTS","560BTS",null,null,631,null,null,null,499.99,3.81,null,74.400000000000006,null,65.599999999999994,null,"https://www.husqvarna.com/us/leaf-blowers/560bts/"]
["Backpack Blower ","Husqvarna","350BT","350BT",null,null,494.41,null,null,null,379.99,2.1,null,42.27,null,50,null,"https://www.husqvarna.com/us/leaf-blowers/350bt/"]
["Backpack Blower ","Echo","PB-770H","PB-770H",null,null,756,null,null,null,529.99,null,null,68.3,null,63.3,null,"https://www.echo-usa.com/blowers/pb-770h#specs"]
["Backpack Blower ","Echo","PB-770T","PB-770T",null,null,756,null,null,null,529.99,null,null,68.3,null,63.3,null,"https://www.echo-usa.com/blowers/pb-770t#specs"]
["Backpack Blower ","Echo","PB-9010H","PB-9010H",null,null,1110,null,null,null,629.99,null,null,83.8,null,79.900000000000006,null,"https://www.echo-usa.com/blowers/pb-9010h#specs"]
["Backpack Blower ","Echo","PB-9010T","PB-9010T",null,null,1110,null,null,null,629.99,null,null,83.8,null,79.900000000000006,null,"https://www.echo-usa.com/blowers/pb-9010t#specs"]
["Backpack Blower ","Echo","PB-265LN","PB-265LN",null,null,375,null,null,null,299.99,null,null,22.3,null,25.4,null,"https://www.echo-usa.com/blowers/pb-265ln#specs"]
["Backpack Blower ","Echo","PB-580H","PB-580H",null,null,517,null,null,null,349.99,null,null,62,null,58.2,null,"https://www.echo-usa.com/blowers/pb-580h"]
["Backpack Blower ","Echo","PB-580T","PB-580T",null,null,517,null,null,null,349.99,null,null,62,null,58.2,null,"https://www.echo-usa.com/blowers/pb-580t#specs"]
["Backpack Blower ","Echo","PB-755SH","PB-755SH",null,null,651,null,null,null,479.99,null,null,62,null,63.3,null,"https://www.echo-usa.com/blowers/pb-755s#specs"]
["Backpack Blower ","Echo","PB-755ST","PB-755ST",null,null,651,null,null,null,479.99,null,null,62,null,63.3,null,"https://www.echo-usa.com/blowers/pb-755st#specs"]
["Backpack Blower ","Echo","PB-760LNH","PB-760LNH",null,null,535,null,null,null,469.99,null,null,68.3,null,63.3,null,"https://www.echo-usa.com/blowers/pb-760lnh#specs"]
["Backpack Blower ","Echo","PB-760LNT","PB-760LNT",null,null,535,null,null,null,469.99,null,null,68.3,null,63.3,null,"https://www.echo-usa.com/blowers/pb-760lnt#specs"]
["Handheld Blower ","Stihl","BG 86","BG 86",null,null,365,null,null,null,289.99,1.07,null,14.9,null,27.2,null,"https://www.stihlusa.com/products/blowers-and-shredder-vacs/professional-blowers/bg86/#specifications"]
["Handheld Blower ","Stihl","BG 86 C-E","BG 86 C-E",null,null,365,null,null,null,299.99,1.07,null,14.9,null,27.2,null,"https://www.stihlusa.com/products/blowers-and-shredder-vacs/professional-blowers/bg86ce/"]
["Handheld Blower ","Stihl","SH 86 C-E","SH 86 C-E",null,null,444,null,null,null,339.99,1.07,null,14.9,null,27.2,null,"https://www.stihlusa.com/products/blowers-and-shredder-vacs/shredder-vacs/sh86ce/"]
["Handheld Blower ","Stihl ","BG 66 L","BG 66 L",null,null,371,null,null,null,249.99,0.8,null,18.3,null,27.2,null,"https://www.stihlusa.com/products/blowers-and-shredder-vacs/professional-blowers/bg66l/"]
["Handheld Blower ","Husqvarna","525BX","525BX",null,null,459,null,null,null,299.99,1.1399999999999999,null,15.22,null,null,null,"https://www.husqvarna.com/us/leaf-blowers/525bx/"]
["Handheld Blower ","Echo","PB-2620","PB-2620",null,null,456,null,null,null,249.99,null,null,20.3,null,25.4,null,"https://www.echo-usa.com/blowers/pb-2620#fn-1"]
["Handheld Blower ","Echo","PB-2520","PB-2520",null,null,453,null,null,null,169.99,null,null,18.600000000000001,null,25.4,null,"https://www.echo-usa.com/blowers/pb-2520#specs"]
["Handheld Blower ","Echo","PB-255LN","PB-255LN",null,null,354,null,null,null,249.99,null,null,16.899999999999999,null,25.4,null,"https://www.echo-usa.com/blowers/pb-255ln#specs"]
["Handheld Blower ","Echo","ES-250","ES-250",null,null,392,null,null,null,249.99,null,null,16.899999999999999,null,25.4,null,"https://www.echo-usa.com/blowers/es-250#specs"]
["Chain Saw ","Stihl ","MS 261 C-M","MS 261 C-M",null,null,null,20,null,null,689.99,4,null,16.899999999999999,null,50.2,null,"https://www.stihlusa.com/products/chain-saws/professional-saws/ms261cm/"]
["Chain Saw ","Stihl ","MS 261 C-M","MS 261 C-M",null,null,null,20,null,null,699.99,4,null,16.899999999999999,null,50.2,null,"https://www.stihlusa.com/products/chain-saws/professional-saws/ms261cm/"]
["Chain Saw ","Stihl ","MS 362 C-M","MS 362 C-M",null,null,null,18,null,null,889.99,4.6900000000000004,null,20.3,null,59,null,"https://www.stihlusa.com/products/chain-saws/professional-saws/ms362cm/",null,"could also purchase with 25in bar for higher price "]
["Chain Saw ","Stihl ","MS 362 C-M","MS 362 C-M",null,null,null,20,null,null,899.99,4.6900000000000004,null,20.3,null,59,null,"https://www.stihlusa.com/products/chain-saws/professional-saws/ms362cm/",null,"could also purchase with 25in bar for higher price "]
["Chain Saw ","Stihl ","MS 261","MS 261",null,null,null,18,null,null,689.99,4,null,16.899999999999999,null,50.2,null,"https://www.stihlusa.com/products/chain-saws/professional-saws/ms261/"]
["Chain Saw ","Stihl ","MS 261","MS 261",null,null,null,20,null,null,699.99,4,null,16.899999999999999,null,50.2,null,"https://www.stihlusa.com/products/chain-saws/professional-saws/ms261/"]
["Chain Saw ","Stihl ","MS 194 T","MS 194 T",null,null,null,12,null,null,459.99,1.88,null,9.1,null,31.8,null,"https://www.stihlusa.com/products/chain-saws/in-tree-saws/ms194t/"]
["Chain Saw ","Stihl ","MS 194 T","MS 194 T",null,null,null,14,null,null,439.99,1.88,null,9.1,null,31.8,null,"https://www.stihlusa.com/products/chain-saws/in-tree-saws/ms194t/",null,"with lightweight bar for $30 more"]
["Chain Saw ","Stihl ","MS 194 T","MS 194 T",null,null,null,16,null,null,449.99,1.88,null,9.1,null,31.8,null,"https://www.stihlusa.com/products/chain-saws/in-tree-saws/ms194t/",null,"with lightweight bar for $30 more"]
["Chain Saw ","Stihl ","MS 362","MS 362",null,null,null,18,null,null,889.99,4.5999999999999996,null,20.3,null,59,null,"https://www.stihlusa.com/products/chain-saws/professional-saws/ms362/",null,"could also purchase with 25in bar for higher price "]
["Chain Saw ","Stihl ","MS 362","MS 362",null,null,null,20,null,null,899.99,4.5999999999999996,null,20.3,null,59,null,"https://www.stihlusa.com/products/chain-saws/professional-saws/ms362/",null,"could also purchase with 25in bar for higher price "]
["Chain Saw ","Stihl ","MS 661 C-M Magnum","MS 661 C-M Magnum",null,null,null,20,null,null,1529.99,7.2,null,28.7,null,91.1,null,"https://www.stihlusa.com/products/chain-saws/professional-saws/ms661cm/",null,"could also purchase multiple larger bar lengths for higher price "]
["Chain Saw ","Stihl ","MS 500i","MS 500i",null,null,null,20,null,null,1549.99,6.7,null,26.5,null,79.2,null,"https://www.stihlusa.com/products/chain-saws/professional-saws/ms500i/",null,"could also purchase multiple larger bar lengths for higher price "]
["Chain Saw ","Stihl ","MS 201 T C-M","MS 201 T C-M",null,null,null,12,null,null,799.99,2.41,null,10.5,null,35.200000000000003,null,"https://www.stihlusa.com/products/chain-saws/in-tree-saws/ms201tcm/",null,"with lightweight bar for $30 more"]
["Chain Saw ","Stihl ","MS 201 T C-M","MS 201 T C-M",null,null,null,14,null,null,809.99,2.41,null,10.5,null,35.200000000000003,null,"https://www.stihlusa.com/products/chain-saws/in-tree-saws/ms201tcm/",null,"with lightweight bar for $30 more"]
["Chain Saw ","Stihl ","MS 201 T C-M","MS 201 T C-M",null,null,null,16,null,null,819.99,2.41,null,10.5,null,35.200000000000003,null,"https://www.stihlusa.com/products/chain-saws/in-tree-saws/ms201tcm/",null,"with lightweight bar for $30 more"]
["Chain Saw ","Stihl ","MS 462 C-M","MS 462 C-M",null,null,null,20,null,null,1339.99,6,null,24.3,null,72.2,null,"https://www.stihlusa.com/products/chain-saws/professional-saws/ms462cm/",null,"could also purchase multiple larger bar lengths for higher price "]
["Chain Saw ","Stihl ","MS 362 R C-M","MS 362 R C-M",null,null,null,18,null,null,939.99,4.7,null,20.3,null,59,null,"https://www.stihlusa.com/products/chain-saws/professional-saws/ms362r/",null,"could also purchase with 25in bar for higher price "]
["Chain Saw ","Stihl ","MS 362 R C-M","MS 362 R C-M",null,null,null,20,null,null,949.99,4.7,null,20.3,null,59,null,"https://www.stihlusa.com/products/chain-saws/professional-saws/ms362r/",null,"could also purchase with 25in bar for higher price "]
["Chain Saw ","Stihl ","MS 661 R C-M MAGNUM","MS 661 R C-M MAGNUM",null,null,null,20,null,null,1569.99,7.2,null,28.7,null,91.1,null,"https://www.stihlusa.com/products/chain-saws/professional-saws/ms661rcm/",null,"could also purchase multiple larger bar lengths for higher price "]
["Chain Saw ","Stihl ","MS 462 R C-M","MS 462 R C-M",null,null,null,20,null,null,1379.99,5.9,null,24.3,null,72.2,null,"https://www.stihlusa.com/products/chain-saws/professional-saws/ms462rcm/",null,"could also purchase multiple larger bar lengths for higher price "]
["Chain Saw ","Stihl ","MS 500i R","MS 500i R",null,null,null,20,null,null,1589.99,6.7,null,26.05,null,79.2,null,"https://www.stihlusa.com/products/chain-saws/professional-saws/ms500ir/",null,"could also purchase multiple larger bar lengths for higher price "]
["Chain Saw ","Stihl ","MS 661 Magnum","MS 661 Magnum",null,null,null,20,null,null,1529.99,7.2,null,28.7,null,91.1,null,"https://www.stihlusa.com/products/chain-saws/professional-saws/ms661magnum/",null,"could also purchase multiple larger bar lengths for higher price "]
["Chain Saw ","Stihl ","MS 151 T C-E","MS 151 T C-E",null,null,null,12,null,null,619.99,1.41,null,6.76,null,23.6,null,"https://www.stihlusa.com/products/chain-saws/in-tree-saws/ms151tce/"]
["Chain Saw ","Stihl ","MS 661 R Magnum","MS 661 R Magnum ",null,null,null,20,null,null,1569.99,7.2,null,28.7,null,91.1,null,"https://www.stihlusa.com/products/chain-saws/professional-saws/ms661r/",null,"could also purchase multiple larger bar lengths for higher price "]
["Chain Saw ","Husqvarna ","T435","T435",null,null,null,12,null,null,389.99,null,null,null,null,35,null,"https://www.husqvarna.com/us/chainsaws/t435/"]
["Chain Saw ","Husqvarna ","T435","T435",null,null,null,14,null,null,399.99,null,null,null,null,35,null,"https://www.husqvarna.com/us/chainsaws/t435/?article=966997234"]
["Chain Saw ","Husqvarna ","T435","T435",null,null,null,16,null,null,409.99,null,null,null,null,35,null,"https://www.husqvarna.com/us/chainsaws/t435/?article=966997236"]
["Chain Saw ","Husqvarna ","T525","T525",null,null,null,12,null,null,549.99,1.48,null,null,null,27,null,"https://www.husqvarna.com/us/chainsaws/t525/"]
["Chain Saw ","Husqvarna ","T540 XP Mark III","T540 XP Mark III",null,null,null,12,null,null,679.99,2.6,null,null,null,40,null,"https://www.husqvarna.com/us/chainsaws/t540xp-mark-iii/"]
["Chain Saw ","Husqvarna ","T540 XP Mark III","T540 XP Mark III",null,null,null,14,null,null,689.99,2.6,null,null,null,40,null,"https://www.husqvarna.com/us/chainsaws/t540xp-mark-iii/?article=970510014"]
["Chain Saw ","Husqvarna ","T540 XP Mark III","T540 XP Mark III",null,null,null,16,null,null,699.99,2.6,null,null,null,40,null,"https://www.husqvarna.com/us/chainsaws/t540xp-mark-iii/?article=970510016"]
["Chain Saw ","Husqvarna ","T540 XP II","T540 XP II",null,null,null,14,null,null,629.99,2.4,null,null,null,38,null,"https://www.husqvarna.com/us/chainsaws/t540xp-ii/"]
["Chain Saw ","Husqvarna ","T540 XP II","T540 XP II",null,null,null,16,null,null,639.99,2.4,null,null,null,38,null,"https://www.husqvarna.com/us/chainsaws/t540xp-ii/?article=970484016"]
["Chain Saw ","Husqvarna ","543 XP","543 XP",null,null,null,16,null,null,579.99,2.95,null,null,null,43,null,"https://www.husqvarna.com/us/chainsaws/543xp/"]
["Chain Saw ","Husqvarna ","545 Mark II","545 Mark II",null,null,null,16,null,null,619.99,3.6,null,null,null,50,null,"https://www.husqvarna.com/us/chainsaws/545-mark-ii/?article=967690636"]
["Chain Saw ","Husqvarna ","545 Mark II","545 Mark II",null,null,null,18,null,null,629.99,3.6,null,null,null,50,null,"https://www.husqvarna.com/us/chainsaws/545-mark-ii/?article=967690638"]
["Chain Saw ","Husqvarna ","545 Mark II","545 Mark II",null,null,null,20,null,null,639.99,3.6,null,null,null,50,null,"https://www.husqvarna.com/us/chainsaws/545-mark-ii/?article=967690602"]
["Chain Saw ","Husqvarna ","550 XP Mark II","550 XP Mark II",null,null,null,16,null,null,679.99,4,null,null,null,50,null,"https://www.husqvarna.com/us/chainsaws/550xp-mark-ii/?article=967690816"]
["Chain Saw ","Husqvarna ","550 XP Mark II","550 XP Mark II",null,null,null,18,null,null,689.99,4,null,null,null,50,null,"https://www.husqvarna.com/us/chainsaws/550xp-mark-ii/?article=967690818"]
["Chain Saw ","Husqvarna ","550 XP Mark II","550 XP Mark II",null,null,null,20,null,null,699.99,4,null,null,null,50,null,"https://www.husqvarna.com/us/chainsaws/550xp-mark-ii/?article=967690820"]
["Chain Saw ","Husqvarna ","550 XP G Mark II","550 XP G Mark II",null,null,null,16,null,null,749.99,4,null,null,null,50,null,"https://www.husqvarna.com/us/chainsaws/550xp-g-mark-ii/"]
["Chain Saw ","Husqvarna ","550 XP G Mark II","550 XP G Mark II",null,null,null,18,null,null,759.99,4,null,null,null,50,null,"https://www.husqvarna.com/us/chainsaws/550xp-g-mark-ii/?article=967690938"]
["Chain Saw ","Husqvarna ",555,555,null,null,null,18,null,null,749.99,4.16,null,null,null,60,null,"https://www.husqvarna.com/us/chainsaws/555/",null,"also comes with 24\" bar length "]
["Chain Saw ","Husqvarna ",555,555,null,null,null,20,null,null,769.99,4.16,null,null,null,60,null,"https://www.husqvarna.com/us/chainsaws/555/?article=970501406",null,"also comes with 24\" bar length "]
["Chain Saw ","Husqvarna ","562 XP","562 XP",null,null,null,18,null,null,819.99,4.7,null,null,null,60,null,"https://www.husqvarna.com/us/chainsaws/562xp/",null,"also comes with 24\" and 28\" bar length "]
["Chain Saw ","Husqvarna ","562 XP","562 XP",null,null,null,20,null,null,839.99,4.7,null,null,null,60,null,"https://www.husqvarna.com/us/chainsaws/562xp/?article=970502104",null,"also comes with 24\" and 28\" bar length "]
["Chain Saw ","Husqvarna ","562 XP G","563 XP G",null,null,null,18,null,null,899.99,4.7,null,null,null,60,null,"https://www.husqvarna.com/us/chainsaws/562xp-g/",null,"also comes with 24\" bar length "]
["Chain Saw ","Husqvarna ","562 XP G","563 XP G",null,null,null,20,null,null,919.99,4.7,null,null,null,60,null,"https://www.husqvarna.com/us/chainsaws/562xp-g/?article=970502204",null,"also comes with 24\" bar length "]
["Chain Saw ","Husqvarna ","395 XP","395 XP",null,null,null,20,null,null,1439.99,6.6,null,null,null,94,null,"https://www.husqvarna.com/us/chainsaws/395xp/?article=965902720",null,"could also purchase multiple larger bar lengths for higher price "]
["Chain Saw ","Husqvarna ","365 X-Torq","365 X-Torq",null,null,null,20,null,null,1019.99,4.9000000000000004,null,null,null,71,null,"https://www.husqvarna.com/us/chainsaws/365x-torq/",null,"also comes with 24\" and 28\" bar length "]
["Chain Saw ","Husqvarna ","592 XP G","592 XP G",null,null,null,20,null,null,1509.99,7.6,null,null,null,93,null,"https://www.husqvarna.com/us/chainsaws/592xp-g/",null,"could also purchase multiple larger bar lengths for higher price "]
["Chain Saw ","Husqvarna ",565,565,null,null,null,20,null,null,1069.99,5,null,null,null,71,null,"https://www.husqvarna.com/us/chainsaws/565/",null,"could also purchase multiple larger bar lengths for higher price "]
["Chain Saw ","Husqvarna ","372 XP X-Torq","373 XP X-Torq",null,null,null,20,null,null,1129.99,5.5,null,null,null,71,null,"https://www.husqvarna.com/us/chainsaws/372xp-x-torq/",null,"could also purchase multiple larger bar lengths for higher price "]
["Chain Saw ","Husqvarna ","572 XP","572 XP",null,null,null,20,null,null,1169.99,5.8,null,null,null,71,null,"https://www.husqvarna.com/us/chainsaws/572xp/",null,"could also purchase multiple larger bar lengths for higher price "]
["Chain Saw ","Husqvarna ","572 XP G","573 XP G",null,null,null,20,null,null,1229.99,5.8,null,null,null,71,null,"https://www.husqvarna.com/us/chainsaws/572xp-g/",null,"could also purchase 24\" bar length"]
["Chain Saw ","Husqvarna ","390 XP","390 XP",null,null,null,18,null,null,1349.99,6.5,null,null,null,88,null,"https://www.husqvarna.com/us/chainsaws/390xp/?article=965060738",null,"could also purchase multiple larger bar lengths for higher price "]
["Chain Saw ","Husqvarna ","390 XP","390 XP",null,null,null,20,null,null,1299.99,6.5,null,null,null,88,null,"https://www.husqvarna.com/us/chainsaws/390xp/?article=965060730",null,"could also purchase multiple larger bar lengths for higher price "]
["Chain Saw ","Husqvarna ",585,585,null,null,null,20,null,null,1349.99,6.9,null,null,null,86,null,"https://www.husqvarna.com/us/chainsaws/585/?article=970493030",null,"could also purchase multiple larger bar lengths for higher price "]
["Chain Saw ","Husqvarna ","592 XP","592 XP",null,null,null,20,null,null,1449.99,7.6,null,null,null,93,null,"https://www.husqvarna.com/us/chainsaws/592xp/?article=970493140",null,"could also purchase multiple larger bar lengths for higher price "]
["Chain Saw ","Echo","CS-2511T","CS-2511T",null,null,null,12,null,null,449.99,null,null,6.4,null,25,null,"https://www.echo-usa.com/chainsaws/cs-2511t#specs"]
["Chain Saw ","Echo","CS-2511T","CS-2511T",null,null,null,14,null,null,459.99,null,null,6.4,null,25,null,"https://www.echo-usa.com/chainsaws/cs-2511t#specs"]
["Chain Saw ","Echo","CS-2511TN","CS-2511TN",null,null,null,12,null,null,459.99,null,null,6.4,null,25,null,"https://www.echo-usa.com/chainsaws/cs-2511tn#specs"]
["Chain Saw ","Echo","CS-2511TN","CS-2511TN",null,null,null,14,null,null,469.99,null,null,6.4,null,25,null,"https://www.echo-usa.com/chainsaws/cs-2511tn#specs"]
["Chain Saw ","Echo","CS-2511P","CS-2511P",null,null,null,12,null,null,449.99,null,null,6.4,null,25,null,"https://www.echo-usa.com/chainsaws/cs-2511p"]
["Chain Saw ","Echo","CS-2511P","CS-2511P",null,null,null,14,null,null,459.99,null,null,6.4,null,25,null,"https://www.echo-usa.com/chainsaws/cs-2511p"]
["Chain Saw ","Echo","CS-501P","CS-501P",null,null,null,16,null,null,499.99,null,null,16.600000000000001,null,50.2,null,"https://www.echo-usa.com/chainsaws/cs-501p"]
["Chain Saw ","Echo","CS-501P","CS-501P",null,null,null,18,null,null,509.99,null,null,16.600000000000001,null,50.2,null,"https://www.echo-usa.com/chainsaws/cs-501p"]
["Chain Saw ","Echo","CS-501P","CS-501P",null,null,null,20,null,null,519.99,null,null,16.600000000000001,null,50.2,null,"https://www.echo-usa.com/chainsaws/cs-501p"]
["Chain Saw ","Echo","CS-620P","CS-620P",null,null,null,16,null,null,599.99,null,null,21.8,null,59.8,null,"https://www.echo-usa.com/chainsaws/cs-620p#specs"]
["Chain Saw ","Echo","CS-620P","CS-620P",null,null,null,18,null,null,599.99,null,null,21.8,null,59.8,null,"https://www.echo-usa.com/chainsaws/cs-620p#specs",null,"Exact price not given but gave range of 600-610 with multiple larger bar lengths"]
["Chain Saw ","Echo","CS-620P","CS-620P",null,null,null,20,null,null,599.99,null,null,21.8,null,59.8,null,"https://www.echo-usa.com/chainsaws/cs-620p#specs",null,"Exact price not given but gave range of 600-610 with multiple larger bar lengths"]
["Chain Saw ","Echo","CS-2511PN","CS-2511PN",null,null,null,12,null,null,459.99,null,null,6.4,null,25,null,"https://www.echo-usa.com/chainsaws/cs-2511pn"]
["Chain Saw ","Echo","CS-2511PN","CS-2511PN",null,null,null,14,null,null,469.99,null,null,6.4,null,25,null,"https://www.echo-usa.com/chainsaws/cs-2511pn"]
["Chain Saw ","Echo","CS-620PW","CS-620PW",null,null,null,16,null,null,619.99,null,null,21.8,null,59.8,null,"https://www.echo-usa.com/chainsaws/cs-620pw"]
["Chain Saw ","Echo","CS-620PW","CS-620PW",null,null,null,18,null,null,619.99,null,null,21.8,null,59.8,null,"https://www.echo-usa.com/chainsaws/cs-620pw",null,"Exact price not given but gave range of 620-650 with multiple larger bar lengths"]
["Chain Saw ","Echo","CS-620PW","CS-620PW",null,null,null,20,null,null,619.99,null,null,21.8,null,59.8,null,"https://www.echo-usa.com/chainsaws/cs-620pw",null,"Exact price not given but gave range of 620-650 with multiple larger bar lengths"]
["Chain Saw ","Echo","CS-7310P","CS-7310P",null,null,null,20,null,null,999.99,null,null,27.1,null,73.5,null,"https://www.echo-usa.com/chainsaws/cs-7310p#specs"]
["Chain Saw ","Echo","CS-7310PW","CS-7310PW",null,null,null,20,null,null,1049.99,null,null,27.1,null,73.5,null,"https://www.echo-usa.com/chainsaws/cs-7310pw#specs"]
["Chain Saw ","Echo","CS-271T","CS-271T",null,null,null,12,null,null,349.99,null,null,8.1,null,26.9,null,"https://www.echo-usa.com/chainsaws/cs-271t#specs"]
["Chain Saw ","Echo","CS-303T","CS-303T",null,null,null,12,null,null,389.99,null,null,8.5,null,30.1,null,"https://www.echo-usa.com/chainsaws/cs-303t#specs"]
["Chain Saw ","Echo","CS-303T","CS-303T",null,null,null,14,null,null,399.99,null,null,8.5,null,30.1,null,"https://www.echo-usa.com/chainsaws/cs-303t#specs"]
["Chain Saw ","Echo","CS-310","CS-310",null,null,null,14,null,null,219.99,null,null,8.5,null,30.5,null,"https://www.echo-usa.com/chainsaws/cs-310"]
["Chain Saw ","Echo","CS-310","CS-310",null,null,null,16,null,null,219.99,null,null,8.5,null,30.5,null,"https://www.echo-usa.com/chainsaws/cs-310"]
["Chain Saw ","Echo","CS-3510","CS-3510",null,null,null,16,null,null,279.99,null,null,9.5,null,34.4,null,"https://www.echo-usa.com/chainsaws/cs-3510"]
["Chain Saw ","Echo","CS-352","CS-352",null,null,null,16,null,null,249.99,null,null,8.5,null,34,null,"https://www.echo-usa.com/chainsaws/cs-352"]
["Chain Saw ","Echo","CS-355T","CS-355T",null,null,null,14,null,null,369.99,null,null,11.2,null,35.799999999999997,null,"https://www.echo-usa.com/chainsaws/cs-355t#specs"]
["Chain Saw ","Echo","CS-355T","CS-355T",null,null,null,16,null,null,379.99,null,null,11.2,null,35.799999999999997,null,"https://www.echo-usa.com/chainsaws/cs-355t#specs"]
["Chain Saw ","Echo","CS-361P","CS-361P",null,null,null,14,null,null,369.99,null,null,10.8,null,35.799999999999997,null,"https://www.echo-usa.com/chainsaws/cs-361p"]
["Chain Saw ","Echo","CS-361P","CS-361P",null,null,null,16,null,null,379.99,null,null,10.8,null,35.799999999999997,null,"https://www.echo-usa.com/chainsaws/cs-361p"]
["Pole Saw","Husqvarna ","525P4S","525P4S",null,null,null,12,null,null,569.99,1.36,null,null,null,null,null,"https://www.husqvarna.com/us/pole-saws/525p4s/"]
["Pole Saw","Husqvarna ","525P5S","525P5S",null,null,null,12,null,null,649.99,1.36,null,null,null,null,null,"https://www.husqvarna.com/us/pole-saws/525p5s/"]
["Pole Saw","Husqvarna ","525PT5S","525PT5S",null,null,null,12,null,null,689.99,1.36,null,null,null,null,null,"https://www.husqvarna.com/us/pole-saws/525pt5s/"]
["Pole Saw","Husqvarna ","525DEPS MADSAW","525DEPS MADSAW",null,null,null,12,null,null,1599.99,1.36,null,null,null,null,null,"https://www.husqvarna.com/us/pole-saws/525deps-madsaw/"]
["Pole Saw","Stihl","HT 56 C-E","HT 56 C-E",null,null,null,10,null,null,399.99,1.07,null,11.5,null,27.2,null,"https://www.stihlusa.com/products/pole-pruners/homeowner-pole-pruners/ht56ce/"]
["Pole Saw","Stihl","HT 135","HT 135",null,null,null,14,null,null,769.99,1.9,null,17.899999999999999,null,36.299999999999997,null,"https://www.stihlusa.com/products/pole-pruners/professional-pole-pruners/ht135/"]
["Pole Saw","Stihl","HT 131","HT 131",null,null,null,14,null,null,769.99,1.9,null,18,null,36.299999999999997,null,"https://www.stihlusa.com/products/pole-pruners/professional-pole-pruners/ht131polepruner/"]
["Pole Saw","Stihl","HT 105","HT 105",null,null,null,12,null,null,689.99,1.4,null,17.899999999999999,null,31.4,null,"https://www.stihlusa.com/products/pole-pruners/professional-pole-pruners/ht105/"]
["Pole Saw","Stihl","HT 134","HT 134",null,null,null,14,null,null,599.99,1.9,null,17.899999999999999,null,36.299999999999997,null,"https://www.stihlusa.com/products/pole-pruners/professional-pole-pruners/ht134/"]
["Pole Saw","Stihl","HT 250","HT 250",null,null,null,14,null,null,719.99,2.15,null,21.6,null,40.200000000000003,null,"https://www.stihlusa.com/products/pole-pruners/professional-pole-pruners/ht250/"]
["Hedge Trimmer ","Stihl","HS 56","HS 56",null,null,null,null,null,24,429.99,0.87,null,9.5,null,21.4,null,"https://www.stihlusa.com/products/hedge-trimmers/professional-hedge-trimmers/hs56/"]
["Hedge Trimmer ","Stihl","HS 82 T","HS 82 T",null,null,null,null,null,24,589.99,0.94,null,15.6,null,22.7,null,"https://www.stihlusa.com/products/hedge-trimmers/professional-hedge-trimmers/hs82t/",null,"could purchase 30in blade length for higher price "]
["Hedge Trimmer ","Stihl","HS 82 R","HS 82 R",null,null,null,null,null,24,589.99,0.94,null,15.6,null,22.7,null,"https://www.stihlusa.com/products/hedge-trimmers/professional-hedge-trimmers/hs82r/",null,"could purchase 30in blade length for higher price "]
["Hedge Trimmer ","Stihl","HL 94 (145°)","HL 94 (145°)",null,null,null,null,null,24,589.99,1.2,null,18.3,null,24.1,null,"https://www.stihlusa.com/products/hedge-trimmers/professional-hedge-trimmers/hl94145/"]
["Hedge Trimmer ","Stihl","HL 94 K (145°)","HL 94 K (145°)",null,null,null,null,null,24,539.99,1.2,null,18.3,null,24.1,null,"https://www.stihlusa.com/products/hedge-trimmers/professional-hedge-trimmers/hl94k145/"]
["Hedge Trimmer ","Stihl","HL 91 K (0°)","HL 91 K (0°)",null,null,null,null,null,24,489.99,1.2,null,18.3,null,24.1,null,"https://www.stihlusa.com/products/hedge-trimmers/professional-hedge-trimmers/hl91k/"]
["Hedge Trimmer ","Stihl","HL 94 K (0°)","HL 94 K (0°)",null,null,null,null,null,24,529.99,1.2,null,18.3,null,24.1,null,"https://www.stihlusa.com/products/hedge-trimmers/professional-hedge-trimmers/hl94k0/"]
["Hedge Trimmer ","Husqvarna ","522HD60S","522HD60S",null,null,null,null,null,24,579.99,0.8,null,15.2,null,21.7,null,"https://www.husqvarna.com/us/hedge-trimmers/522hd60s/"]
["Hedge Trimmer ","Husqvarna ","522HDR60S","522HDR60S",null,null,null,null,null,24,579.99,0.8,null,15.2,null,21.7,null,"https://www.husqvarna.com/us/hedge-trimmers/522hdr60s/"]
["Hedge Trimmer ","Husqvarna ","522HDR75S","522HDR75S",null,null,null,null,null,30,619.99,0.8,null,15.2,null,21.7,null,"https://www.husqvarna.com/us/hedge-trimmers/522hdr75s/"]
["Hedge Trimmer ","Husqvarna ","522HS75S","522HS75S",null,null,null,null,null,30,619.99,0.8,null,15.2,null,21.7,null,"https://www.husqvarna.com/us/hedge-trimmers/522hs75s/"]
["Hedge Trimmer ","Husqvarna ","525HF3S","525HF3S",null,null,null,null,null,25.59,529.99,1.21,null,17.25,null,25.4,null,"https://www.husqvarna.com/us/hedge-trimmers/525hf3s/"]
["Hedge Trimmer ","Husqvarna ","525HE3","525HE3",null,null,null,null,null,24,579.99,1.34,null,17.25,null,25,null,"https://www.husqvarna.com/us/hedge-trimmers/525he3/"]
["Hedge Trimmer ","Husqvarna ","525HE4","525HE4",null,null,null,null,null,24,629.99,1.34,null,17.25,null,25,null,"https://www.husqvarna.com/us/hedge-trimmers/525he4/"]
["Lawn Edger","Stihl","FC 91","FC 91",null,null,null,null,null,8,399.99,1.27,null,24,null,28.4,null,"https://www.stihlusa.com/products/edgers/professional-edgers/fc91/"]
["Lawn Edger","Stihl","FC 70","FC 70",null,null,null,null,null,8,349.99,1.2,null,11.5,null,27.2,null,"https://www.stihlusa.com/products/edgers/professional-edgers/fc70/"]
["Lawn Edger","Stihl","FC 96","FC 96",null,null,null,null,null,8,499.99,1.27,null,24,null,28.4,null,"https://www.stihlusa.com/products/edgers/professional-edgers/fc96/"]
["Lawn Edger","Stihl","FC 111","FC 111",null,null,null,null,null,8,539.99,1.4,null,24,null,31.4,null,"https://www.stihlusa.com/products/edgers/professional-edgers/fc111/"]
["Lawn Edger","Husqvarna ","525ECS","525ECS",null,null,null,null,null,11.1,399.99,1.34,null,17.3,null,null,null,"https://www.husqvarna.com/us/lawn-edgers/525ecs/"]
["Lawn Edger","Husqvarna ","525ES","525ES",null,null,null,null,null,9.1,499.99,1.34,null,17.3,null,null,null,"https://www.husqvarna.com/us/lawn-edgers/525es/"]
["String Trimmer","Stihl ","FS 91 R","FS 91 R",null,null,null,null,16.5,null,359.99,1.27,null,24,null,28.4,null,"https://www.stihlusa.com/products/trimmers-and-brushcutters/professional-trimmers/fs91r/"]
["String Trimmer","Stihl ","FS 70 R","FS 70 R",null,null,null,null,16.5,null,299.99,1.2,null,11.5,null,27.2,null,"https://www.stihlusa.com/products/trimmers-and-brushcutters/professional-trimmers/fs70rce/"]
["String Trimmer","Stihl ","FS 94 R","FS 94 R",null,null,null,null,16.5,null,399.99,1.2,null,18.3,null,24.1,null,"https://www.stihlusa.com/products/trimmers-and-brushcutters/professional-trimmers/fs94r/"]
["String Trimmer","Stihl ","FS 111R","FS 111R",null,null,null,null,16.5,null,459.99,1.4,null,24,null,31.4,null,"https://www.stihlusa.com/products/trimmers-and-brushcutters/professional-trimmers/fs111r/"]
["String Trimmer","Stihl ","FS 131","FS 131",null,null,null,null,16.5,null,529.99,1.9,null,24,null,36.299999999999997,null,"https://www.stihlusa.com/products/trimmers-and-brushcutters/professional-trimmers/fs131/"]
["String Trimmer","Stihl ","FS 91 ","FS 91 ",null,null,null,null,16.5,null,399.99,1.27,null,24,null,28.44,null,"https://www.stihlusa.com/products/trimmers-and-brushcutters/professional-trimmers/fs91/"]
["String Trimmer","Stihl ","FS 131 R","FS 131 R",null,null,null,null,16.5,null,489.99,1.9,null,24,null,36.299999999999997,null,"https://www.stihlusa.com/products/trimmers-and-brushcutters/professional-trimmers/fs131r/"]
["String Trimmer","Stihl ","FS 111 RX","FS 111 RX",null,null,null,null,16.5,null,449.99,1.4,null,24,null,31.4,null,"https://www.stihlusa.com/products/trimmers-and-brushcutters/professional-trimmers/fs111rx/"]
["String Trimmer","Stihl ","FS 111","FS 111",null,null,null,null,16.5,null,489.99,1.4,null,24,null,31.4,null,"https://www.stihlusa.com/products/trimmers-and-brushcutters/professional-trimmers/fs111/"]
["String Trimmer","Stihl ","FS 240","FS 240",null,null,null,null,16.5,null,729.99,2.2999999999999998,null,25.4,null,37.700000000000003,null,"https://www.stihlusa.com/products/trimmers-and-brushcutters/professional-trimmers/fs240/"]
["String Trimmer","Stihl ","FS 240 R","FS 240 R",null,null,null,null,16.5,null,679.99,2.2999999999999998,null,25.4,null,37.700000000000003,null,"https://www.stihlusa.com/products/trimmers-and-brushcutters/professional-trimmers/fs240r/"]
["String Trimmer","Stihl ","FS 311","FS 311",null,null,null,null,18.899999999999999,null,669.99,1.9,null,24,null,36.299999999999997,null,"https://www.stihlusa.com/products/trimmers-and-brushcutters/professional-trimmers/fs311/"]
["String Trimmer","Stihl ","FS 561 C-EM","FS 561 C-EM",null,null,null,null,22,null,1599.99,3.75,null,33.5,null,57.1,null,"https://www.stihlusa.com/products/trimmers-and-brushcutters/brushcutters-and-clearing-saws/fs561cem/"]
["String Trimmer","Stihl ","FS 361 C-EM","FS 361 C-EM",null,null,null,null,20.5,null,1149.99,2.2999999999999998,null,25.4,null,37.700000000000003,null,"https://www.stihlusa.com/products/trimmers-and-brushcutters/brushcutters-and-clearing-saws/fs361cem/"]
["String Trimmer","Stihl ","FS 461 C-EM","FS 461 C-EM",null,null,null,null,20.5,null,1359.99,3,null,25.4,null,45.6,null,"https://www.stihlusa.com/products/trimmers-and-brushcutters/brushcutters-and-clearing-saws/fs461cem/"]
["String Trimmer","Husqvarna","430LS","430LS",null,null,null,null,18.100000000000001,null,449.99,1.3,null,23.7,null,29.5,null,"https://www.husqvarna.com/us/string-trimmers/430ls/"]
["String Trimmer","Husqvarna","535LS","535LS",null,null,null,null,19.7,null,499.99,2.15,null,20.29,null,35,null,"https://www.husqvarna.com/us/string-trimmers/535ls/"]
["String Trimmer","Husqvarna","535LST","535LST",null,null,null,null,19.7,null,539.99,2.15,null,20.29,null,null,null,"https://www.husqvarna.com/us/string-trimmers/535lst/"]
["String Trimmer","Husqvarna","522L","522L",null,null,null,null,18.100000000000001,null,299.99,1.01,null,16.91,null,null,null,"https://www.husqvarna.com/us/string-trimmers/522l/"]
["String Trimmer","Husqvarna","525L","525L",null,null,null,null,18.100000000000001,null,349.99,1.21,null,17.25,null,null,null,"https://www.husqvarna.com/us/string-trimmers/525l/"]
["String Trimmer","Husqvarna","525LS","525LS",null,null,null,null,19.3,null,389.99,1.34,null,21.98,null,24.5,null,"https://www.husqvarna.com/us/string-trimmers/525ls/"]
["String Trimmer","Husqvarna","525LST","525LST",null,null,null,null,19.3,null,399.99,1.34,null,21.98,null,null,null,"https://www.husqvarna.com/us/string-trimmers/525lst/"]

{"sheet":"Appendix - Economic Model Data","index":10,"n_rows":127,"n_cols":15,"rows_kept":127,"cut":false,"hidden":false,"merged":[[94,0,94,12],[24,0,26,12],[0,0,0,12],[24,14,24,16]]}
["APPENDIX: Reference Data"]
["Maintenance Costs Reference Calculations for Economic Model"]
["Commercial Electric",null,null,null,null,null,null,"Commercial Gasoline"]
[null,null,null,null,null,null,null,null,"Frequency (per # hours)","Hours of Mowing","Times","$ Per","Cost per Year"]
["Electric",null,null,null,null,null,null,"Oil change and oil filter every 50 hrs",50,880,{"$f":"+J5/I5","v":17.600000000000001},20,{"$f":"+K5*L5","v":352}]
[null,"Frequency (per # hours)","Hours of Mowing","Times","$ Per","Cost per Year",null,"Air filter change every 100 hrs",100,880,{"$f":"+J6/I6","v":8.8000000000000007},40,{"$f":"+K6*L6","v":352}]
["Blade sharpening",78,880,{"$f":"+C7/B7","v":11.282051282051283},15,{"$f":"+D7*E7","v":169.23076923076925},null,"Blade sharpening",78,880,{"$f":"+J7/I7","v":11.282051282051283},15,{"$f":"+K7*L7","v":169.23076923076925}]
["Blade replacement",{"$f":"78*3","v":234},880,{"$f":"+C8/B8","v":3.7606837606837606},90,{"$f":"+D8*E8","v":338.46153846153845},null,"Blade replacement",{"$f":"78*3","v":234},880,{"$f":"+J8/I8","v":3.7606837606837606},90,{"$f":"+K8*L8","v":338.46153846153845}]
[null,null,null,null,null,null,null,"Belts",200,880,{"$f":"+J9/I9","v":4.4000000000000004},100,{"$f":"+K9*L9","v":440.00000000000006}]
[]
[null,null,null,null,null,null,null,null,null,null,null,"Total",{"$f":"SUM(M5:M9)","v":1651.6923076923076}]
[null,null,null,null,null,null,null,null,null,null,null,"Per hr",{"$f":"+M11/J9","v":1.8769230769230769}]
[null,null,null,null,"Total",{"$f":"SUM(F7:F11)","v":507.69230769230774}]
[null,null,null,null,"Per hr",{"$f":"+F13/C8","v":0.57692307692307698},null,"OR 7 tune-ups @ $175 each",7,180]
[null,null,null,null,null,null,null,null,null,"Total",{"$f":"+I14*J14","v":1260}]
[null,null,null,null,null,null,null,null,null,"Per hour",{"$f":"+K15/J9","v":1.4318181818181819}]
[]
["Maintenance Cost per hour",{"$f":"F14+(F14*0.05)","v":0.60576923076923084},null,null,null,null,null,"Maintenance Cost per hour",{"$f":"AVERAGE(K16,M12)+(AVERAGE(K16,M12)*0.05)","v":1.737089160839161}]
[]
["Sources: "]
["How To Cost Justify a Stand On Commercial Mower? May 18, 2009 Today's Mower.com. Accessed at http://todaysmower.com/cost-justify-commercial-mower/"]
["Equipment Cost Per Hour. Turf Magazine, Nov 1, 2011. Accessed at https://www.turfmagazine.com/maintenance/equipment-cost-per-hour/"]
["Price lists from service shops"]
[]
["3. The commercial mower (Toro 74568). Oil Change and oil filter every 50 hours. ($20)  At 78 hours a year you will change these two times. (Always change oil at the end of the season) Cost per year $40. Air filters (Donaldson Type) are larger and will last 100 hours or more on the commercial machines. Changed once. Cost per year $40. Commercial blades are two to three times heavier than residential blades and you will need to sharpen them once a year and replace them every three years if you mow three hours a week. Sharpening $15, one-third cost of replacement blades is $30.  Belts ($100) every 200 hours. Cost per year $50.  Total Cost for maintenance $175.",null,null,null,null,null,null,null,null,null,null,null,null,null,"As these numbers were calculated in 2017, we have applied a 5% increase to reflect rising costs"]
[]
[]
["Economic Model Results Data Calculations"]
[]
["Upfront and operating costs cumulative","Battery","Upfront and operating costs cumulative","Gas"]
["Year 1",{"$f":"'Results Table'!H5+'Results Table'!H9","v":6686.7313821538464},"Year 1",{"$f":"'Results Table'!D5+'Results Table'!D9","v":10017.904195804196}]
["Year 2",{"$f":"B31+'Results Table'!$H$9","v":7549.4627643076929},"Year 2",{"$f":"D31+'Results Table'!$D$9","v":16135.808391608392}]
["Year 3",{"$f":"B32+'Results Table'!$H$9","v":8412.1941464615393},"Year 3",{"$f":"D32+'Results Table'!$D$9","v":22253.712587412589}]
["Year 4",{"$f":"B33+'Results Table'!$H$9","v":9274.9255286153857},"Year 4",{"$f":"D33+'Results Table'!$D$9","v":28371.616783216785}]
["Year 5",{"$f":"B34+'Results Table'!$H$9","v":10137.656910769232},"Year 5",{"$f":"D34+'Results Table'!$D$9","v":34489.520979020977}]
["Year 6",{"$f":"B35+'Results Table'!$H$9","v":11000.388292923079},"Year 6",{"$f":"D35+'Results Table'!$D$9","v":40607.42517482517}]
["Year 7",{"$f":"B36+'Results Table'!$H$9","v":11863.119675076925},"Year 7",{"$f":"D36+'Results Table'!$D$9","v":46725.329370629363}]
["Year 8",{"$f":"B37+'Results Table'!$H$9","v":12725.851057230771},"Year 8",{"$f":"D37+'Results Table'!$D$9","v":52843.233566433555}]
["Year 9",{"$f":"B38+'Results Table'!$H$9","v":13588.582439384618},"Year 9",{"$f":"D38+'Results Table'!$D$9","v":58961.137762237748}]
["Year 10",{"$f":"B39+'Results Table'!$H$9","v":14451.313821538464},"Year 10",{"$f":"D39+'Results Table'!$D$9","v":65079.04195804194}]
[]
[null,"Electric Savings"]
[null,"Year 1",{"$f":"D31-B31","v":3331.1728136503498}]
[null,"Year 2",{"$f":"D32-B32","v":8586.3456273006996}]
[null,"Year 3",13841.518440951049]
[null,"Year 4",19096.691254601399]
[null,"Year 5",24351.864068251743]
[null,"Year 6",29607.036881902091]
[null,"Year 7",34862.209695552439]
[null,"Year 8",40117.382509202784]
[null,"Year 9",45372.555322853128]
[null,"Year 10",50627.728136503472]
[]
["Environmental Model Results Data Calculations"]
["Commercial Electric",null,"Commercial Gasoline"]
["Annual Emissions (Metric Tonnes CO2e)",null,"Annual Emissions (Metric Tonnes CO2e)"]
["Year 1",{"$f":"'Results Table'!$H$14","v":1493.3412765957435},"Year 1",{"$f":"'Results Table'!$D$14","v":38424.340895154179}]
["Year 2",{"$f":"'Results Table'!$H$14","v":1493.3412765957435},"Year 2",{"$f":"'Results Table'!$D$14","v":38424.340895154179}]
["Year 3",{"$f":"'Results Table'!$H$14","v":1493.3412765957435},"Year 3",{"$f":"'Results Table'!$D$14","v":38424.340895154179}]
["Year 4",{"$f":"'Results Table'!$H$14","v":1493.3412765957435},"Year 4",{"$f":"'Results Table'!$D$14","v":38424.340895154179}]
["Year 5",{"$f":"'Results Table'!$H$14","v":1493.3412765957435},"Year 5",{"$f":"'Results Table'!$D$14","v":38424.340895154179}]
["Year 6",{"$f":"'Results Table'!$H$14","v":1493.3412765957435},"Year 6",{"$f":"'Results Table'!$D$14","v":38424.340895154179}]
["Year 7",{"$f":"'Results Table'!$H$14","v":1493.3412765957435},"Year 7",{"$f":"'Results Table'!$D$14","v":38424.340895154179}]
["Year 8",{"$f":"'Results Table'!$H$14","v":1493.3412765957435},"Year 8",{"$f":"'Results Table'!$D$14","v":38424.340895154179}]
["Year 9",{"$f":"'Results Table'!$H$14","v":1493.3412765957435},"Year 9",{"$f":"'Results Table'!$D$14","v":38424.340895154179}]
["Year 10",{"$f":"'Results Table'!$H$14","v":1493.3412765957435},"Year 10",{"$f":"'Results Table'!$D$14","v":38424.340895154179}]
["Total",{"$f":"SUM(B57:B66)","v":14933.412765957435},"Total",{"$f":"SUM(D57:D66)","v":384243.4089515417}]
[]
[]
[]
["Building Fuel Calculations",null,"GHG Emissions*",null,null,"Source"]
["Year","Fuel","GHG Emissions Factor (lbs CO2e/unit)","GHG Emissions Factor (metric tonnes CO2e/unit)","GHG Emissions Factor (metric tonnes CO2e/unit)"]
["FY22","Grid Electricity (kWh)",0.56117021276595702,2.5454282949712801E-4,{"$f":"D73*0.995","v":2.5327011534964237E-4},"MA-based combo from MassDEP based on GHG inventory"]
[]
[]
["Fuel","Equivalency Factor (divide by factor)","Reference to calculate equivalents"]
["U.S. Vehicle GHG emissions per year",4.75,"http://www.epa.gov/cleanenergy/energy-resources/refs.html#vehicles"]
[]
[null,null,null,"Conversion Factors for cc to HP [1]",null,"HP Range",null,"HP Definition for Class"]
[null,null,"CC","Max","Min","Max","Min",null,"Conversion Factors for CO2 [2]"]
[null,null,null,null,null,null,null,null,"HC","BFSC*","CO2"]
["Class 1A",null,"<66",14,17,4.7142857142857144,3.8823529411764706,"< 4.7",3.8,0.78100000000000003,{"$f":"+((J82*453.6)-I82)*0.87*(44/12)","v":1117.9725040000001}]
["Class 1B",null,"66 to <100",14,17,7.1428571428571432,5.882352941176471,"4.7 to < 7.1",3.8,0.78100000000000003,1117.9725040000001]
["Class 1",null,"100 to <225",14,17,16.071428571428573,13.235294117647058,"7.1 to < 16.1",3.8,0.78100000000000003,1117.9725040000001]
["Class 2",null,"≥225",14,17,16.071428571428573,13.235294117647058,"> 16.1",3.17,0.73499999999999999,1053.42094]
["Class 3",null,"<20",14,17,1.4285714285714286,1.1764705882352942,"< 1.4",26.87,0.82199999999999995,1103.7055479999999]
["Class 4",null,"20 to <50",14,17,3.5714285714285716,2.9411764705882355,"1.4 to < 3.6",26.87,0.82199999999999995,{"$f":"+((J87*453.6)-I87)*0.87*(44/12)","v":1103.7055479999999}]
["Class 5",null,"≥50",14,17,3.5714285714285716,2.9411764705882355,"> 3.6",47.98,0.60799999999999998,726.71007199999997]
[]
["*BFSC: Brake-specific fuel consumption"]
["*For Classes I and 2, conversion factors assumes Ph 3 overhead valve engines (most efficient)."]
["*For Classes 3 and 4, conversion factors assumes Ph 2 with catalyst (most efficient)."]
[]
["[1] We used 14-17 cc per 1 hp per https://www.simetric.co.uk/si_cc2hp.htm"]
["[2] For CO2 emissions - this equation is on p 17 of Exhaust Emission Factors for Nonroad Engine Modeling (EPA 2010)\n"]
[]
[]
["Equipment Type","CO2 Constant (g/hp-hr)"]
["Select Type","-"]
["Push-Mower 30-32\"",1117.9725040000001]
["Riding Zero-Turn Mower 42\"",1053.42094]
["Riding Zero-Turn Mower 48\"",1053.42094]
["Riding Zero-Turn Mower 52\"",1053.42094]
["Riding Zero-Turn Mower 60\"",1053.42094]
["Riding Zero-Turn Mower 72-74\"",1053.42094]
["Stand-On Mower 48\"",1053.42094]
["Stand-On Mower 52\"",1053.42094]
["Stand-On Mower 60\"",1053.42094]
["Handheld Blower 350-400 cfm",1103.71]
["Backpack Blower 600-650 cfm",726.71007199999997]
["Backpack Blower 650-700 cfm",726.71007199999997]
["Backpack Blower 750-800 cfm",726.71007199999997]
["String Trimmer 16.5\"",1103.71]
["Hedge Trimmer 24\"",1103.71]
["Chainsaw 12\"",1103.71]
["Chainsaw 14\"",1103.71]
["Chainsaw 16\"",1103.71]
["Chainsaw 18\"",726.71]
["Chainsaw 20\"",726.71]
["Pole Saw 10\"",1103.7055479999999,null,null,null,"Pounds to Metric Tonnes Conversion"]
[null,null,null,null,null,2204.6]
[]
["ICE Equipment","Constant Selected:",null,"Horsepower Hours/Year","CO2 Pounds per Year","Metric Tonnes CO2e"]
[null,{"$f":"IFERROR(VLOOKUP(Inputs!J3,'Appendix - Economic Model Data'!A99:B120,2,FALSE),\"Select Type\")","v":1053.42094},null,{"$f":"'Input Summary'!F10*'Input Summary'!F19","v":16560},{"$f":"+(B124*D124)/454","v":38424.340895154179},{"$f":"(E124/F121)","v":17.429166694708417}]
[]
["BPLE Equipment",null,null,"kWh/Year","CO2 Pounds per Year","Metric Tonnes CO2e"]
[null,null,null,{"$f":"'Input Summary'!C12*'Input Summary'!C19","v":2661.12},{"$f":"D127*C73","v":1493.3412765957435},{"$f":"D127*D73","v":0.6773690144313973}]